Workbook

Sheet Getting Started
A1: MPSA Practice Spreadsheet 20190101
A2: Use for activities and practice on Days 1-2 of the Capstone Track
A4: All data should be entered in the yellow highlighted cells only.
A6: Overview of Tabs
A7: As Is Cash Flow Analysis: Use these sheets to complete an As Is cash flow analysis.
A8: Alternative Cash Flow Analysis: Use sheets to complete an Alternative cash flow analysis.
A9: Comparison Grids: Use these sheets to complete a property-type specific comparison grids and calculate average adjusted effective rents.
A10: Calculator: Use this sheet as an alternative to the financial calculator.
A11: Blank Sheet for Calculations: Use to perform additional calculations, if desired.
A13: Saving your File Title the file with your name at the end of the file name. Save the file to your desktop so that you can easily access it.
A15: Protected Cells Most formula-driven cells are “protected” so that these formulas are not inadvertently written over.

Sheet As-Is Owner Goals
A1: As Is Owner Goals
A2: Enter data in the yellow cells only.
A3: ANALYSIS VARIABLES | F3: INITIAL LOAN ANALYSIS
A4: Loan Amount ($) | F4: Annual Debt Service (ADS) | H4: =IF(C5=0,"-",IF(C7=0,(C4*C5),IF(C4=0,"-",IF(C14="Monthly",(PMT(C5/12,C7*12,B22)*12),(PMT(((1+C5/2)^(2/12))-1,C7*12,B22)*12))))) -> -
A5: Loan Interest Rate (%)
A6: Loan Pre-paid points (%) (EFI%)
A7: Loan Amortization Period (years)
A8: Loan Term/Balloon (years) | B8: (EFI%)
A9: Loan Penalty (%) | B9: (EFI%)
A10: Analysis Begin Month
A11: Owner's Required Return (%)
A12: Going-IN Capitalization Rate (%)
A13: Cost of Sale (%)
A14: Loan Compounding Period | C14: Monthly | F14: MIDSTREAM LOAN ANALYSIS (if applicable)
C15: =IF(C7="","",IF(C7=0,"Interest Only Loan",IF(C7<10,"Make Loan Amortization > or = to 10?",""))) ->  | F15: Loan to Value Ratio (LTV) | H15: =IF(B27=0,"-",IF(B25=0,"-",B27/B25)) -> -
A16: INITIAL ANALYSIS | F16: Debt Coverage Ratio (DCR) | H16: =IF(OR(C10<=1),"-",IF(+'As-Is Pro Forma Statement'!C50=0,"-",IF(H4=0,"-",+'As-Is Pro Forma Statement'!C50/-H4))) -> -
F17: Free-and Clear Rate of Return | H17: =IF(+'As-Is Before-Tax Cash Flow'!F5=0,"-",IF(B25=0,"-",+'As-Is Before-Tax Cash Flow'!F5/'As-Is Owner Goals'!B25)) -> -
A18: Purchase Price | F18: Loan Constant (k%) | H18: =IF(OR(C5<=0,C7<=0),"-",IF(H4=0,"-",IF(B27=0,"-",-H4/B27))) -> -
A19: + Acquisition Expenses | F19: Cash-on-Cash Rate of Return ($/$%) | H19: =IF(OR(C5<=0,C7<=0),"-",IF(+'As-Is Before-Tax Cash Flow'!F9=0,"-",IF(B25=0,"-",IF(B32=0,"-",+'As-Is Before-Tax Cash Flow'!F9/'As-Is Owner Goals'!B32)))) -> -
A20: + Points, Fees | F20: Leverage Position | H20: =IF(C10<=1,"-",IF(AND(H19>H17),"Positive",IF(H17=H19,"-","Negative"))) -> -
A21: = Original Basis | B21: =SUM(B18:B20) -> 0
A22: - Loan Amount | B22: =+C4 -> 0 | F22: Going-OUT Capitalization Rate | G22: Year | H22: Rate
A23: = Initial Equity | B23: =SUM(B21,-B22) -> 0 | G23: 2
A24: MIDSTREAM ANALYSIS (if applicable) | G24: 3 | BM24: =IF(OR($C$10<=1,$C$12<=0),0,'As-Is Pro Forma Statement'!$C$50/'As-Is Owner Goals'!$C$12) -> 0
A25: Current Market Value | B25: =IF(OR($C$10<=1,$C$12<=0),0,'As-Is Pro Forma Statement'!$C$50/'As-Is Owner Goals'!$C$12) -> 0 | G25: 4
A26: - Cost of Sale | B26: =IF(C10<=1,0,+B25*C13) -> 0 | G26: 5
A27: - Current Loan Balance | B27: =IF(OR(C7<=0,B25=0,C10<=1),0,(SUM(+'As-Is Loan Amortization'!F8))) -> 0
A28: = Cash-Out Potential | B28: =IF(B25="",0,SUM(B25,-B26,-B27)) -> 0
A29: + Capital Improvements
A30: - New Loans (Mid Stream) | B30: 0
A31: + New Points, Fees | B31: 0
A32: = Current Equity | B32: =IF(B28=0,+B23,SUM(B28,B29,-B30,B31)) -> 0 | C32: =IF(C10>1,"",IF(B18<C4,"Loan Amount exceeds Purchase Price","")) -> 

Sheet As-Is Pro Forma Statement
A1: As Is Pro Forma Statement
A2: Enter data in the yellow cells only.
A3: Income | B3: Annual
B4: Increase | C4: Year 1 | D4: Year 2 | E4: Year 3 | F4: Year 4 | G4: Year 5 | H4: Year 6
A5: Gross Potential Income (GPI) | B5: 0 | C5: 0 | D5: =+C5*(1+$B$5) -> 0 | E5: =+D5*(1+$B$5) -> 0 | F5: =+E5*(1+$B$5) -> 0 | G5: =+F5*(1+$B$5) -> 0 | H5: =+G5*(1+$B$5) -> 0
A6: - Loss to Lease | B6: 0 | C6: 0 | D6: =+C6*(1+$B$6) -> 0 | E6: =+D6*(1+$B$6) -> 0 | F6: =+E6*(1+$B$6) -> 0 | G6: =+F6*(1+$B$6) -> 0 | H6: =+G6*(1+$B$6) -> 0
A7: - Vacancy and Collection Loss | B7: 0 | C7: 0 | D7: =+C7*(1+$B$7) -> 0 | E7: =+D7*(1+$B$7) -> 0 | F7: =+E7*(1+$B$7) -> 0 | G7: =+F7*(1+$B$7) -> 0 | H7: =+G7*(1+$B$7) -> 0
A8: = Net Rent Revenue | C8: =SUM(C5,-C6,-C7) -> 0 | D8: 0 | E8: 0 | F8: 0 | G8: 0 | H8: 0
A9: + Miscellaneous Income | B9: 0 | C9: 0 | D9: =+C9*(1+$B$9) -> 0 | E9: =+D9*(1+$B$9) -> 0 | F9: =+E9*(1+$B$9) -> 0 | G9: =+F9*(1+$B$9) -> 0 | H9: =+G9*(1+$B$9) -> 0
A10: + Property Tax Reimbursement | B10: 0 | C10: 0 | D10: =+C10*(1+$B$10) -> 0 | E10: =+D10*(1+$B$10) -> 0 | F10: =+E10*(1+$B$10) -> 0 | G10: =+F10*(1+$B$10) -> 0 | H10: =+G10*(1+$B$10) -> 0
A11: + Utility Reimbursement | B11: 0 | C11: 0 | D11: =+C11*(1+$B$11) -> 0 | E11: =+D11*(1+$B$11) -> 0 | F11: =+E11*(1+$B$11) -> 0 | G11: =+F11*(1+$B$11) -> 0 | H11: =+G11*(1+$B$11) -> 0
A12: + CAM Reimbursement | B12: 0 | C12: 0 | D12: =+C12*(1+$B$12) -> 0 | E12: =+D12*(1+$B$12) -> 0 | F12: =+E12*(1+$B$12) -> 0 | G12: =+F12*(1+$B$12) -> 0 | H12: =+G12*(1+$B$12) -> 0
A13: + Other Reimbursement | B13: 0 | C13: 0 | D13: =+C13*(1+$B$13) -> 0 | E13: =+D13*(1+$B$13) -> 0 | F13: =+E13*(1+$B$13) -> 0 | G13: =+F13*(1+$B$13) -> 0 | H13: =+G13*(1+$B$13) -> 0
A14: = Effective Gross Income (EGI) | C14: =SUM(C8:C13) -> 0 | D14: 0 | E14: 0 | F14: 0 | G14: 0 | H14: 0
A16: Operating Expenses
A17: Utilities
A18: Heat | B18: 0 | C18: 0 | D18: =+C18*(1+$B$18) -> 0 | E18: =+D18*(1+$B$18) -> 0 | F18: =+E18*(1+$B$18) -> 0 | G18: =+F18*(1+$B$18) -> 0 | H18: =+G18*(1+$B$18) -> 0
A19: Electric | B19: 0 | C19: 0 | D19: =+C19*(1+$B$19) -> 0 | E19: =+D19*(1+$B$19) -> 0 | F19: =+E19*(1+$B$19) -> 0 | G19: =+F19*(1+$B$19) -> 0 | H19: =+G19*(1+$B$19) -> 0
A20: Water and Sewer | B20: 0 | C20: 0 | D20: =+C20*(1+$B$20) -> 0 | E20: =+D20*(1+$B$20) -> 0 | F20: =+E20*(1+$B$20) -> 0 | G20: =+F20*(1+$B$20) -> 0 | H20: =+G20*(1+$B$20) -> 0
A21: Total Utilities | C21: =SUM(C18:C20) -> 0 | D21: 0 | E21: 0 | F21: 0 | G21: 0 | H21: 0
A22: Maintenance
A23: Landscaping | B23: 0 | C23: 0 | D23: =+C23*(1+$B$23) -> 0 | E23: =+D23*(1+$B$23) -> 0 | F23: =+E23*(1+$B$23) -> 0 | G23: =+F23*(1+$B$23) -> 0 | H23: =+G23*(1+$B$23) -> 0
A24: Janitorial | B24: 0 | C24: 0 | D24: =+C24*(1+$B$24) -> 0 | E24: =+D24*(1+$B$24) -> 0 | F24: =+E24*(1+$B$24) -> 0 | G24: =+F24*(1+$B$24) -> 0 | H24: =+G24*(1+$B$24) -> 0
A25: Painting and Decorating | B25: 0 | C25: 0 | D25: =+C25*(1+$B$25) -> 0 | E25: =+D25*(1+$B$25) -> 0 | F25: =+E25*(1+$B$25) -> 0 | G25: =+F25*(1+$B$25) -> 0 | H25: =+G25*(1+$B$25) -> 0
A26: Maintenance Labor | B26: 0 | C26: 0 | D26: =+C26*(1+$B$26) -> 0 | E26: =+D26*(1+$B$26) -> 0 | F26: =+E26*(1+$B$26) -> 0 | G26: =+F26*(1+$B$26) -> 0 | H26: =+G26*(1+$B$26) -> 0
A27: Maintenance Contract | B27: 0 | C27: 0 | D27: =+C27*(1+$B$27) -> 0 | E27: =+D27*(1+$B$27) -> 0 | F27: =+E27*(1+$B$27) -> 0 | G27: =+F27*(1+$B$27) -> 0 | H27: =+G27*(1+$B$27) -> 0
A28: HVAC | B28: 0 | C28: 0 | D28: =+C28*(1+$B$28) -> 0 | E28: =+D28*(1+$B$28) -> 0 | F28: =+E28*(1+$B$28) -> 0 | G28: =+F28*(1+$B$28) -> 0 | H28: =+G28*(1+$B$28) -> 0
A29: Plumbing | B29: 0 | C29: 0 | D29: =+C29*(1+$B$29) -> 0 | E29: =+D29*(1+$B$29) -> 0 | F29: =+E29*(1+$B$29) -> 0 | G29: =+F29*(1+$B$29) -> 0 | H29: =+G29*(1+$B$29) -> 0
A30: Electrical | B30: 0 | C30: 0 | D30: =+C30*(1+$B$30) -> 0 | E30: =+D30*(1+$B$30) -> 0 | F30: =+E30*(1+$B$30) -> 0 | G30: =+F30*(1+$B$30) -> 0 | H30: =+G30*(1+$B$30) -> 0
A31: Security | B31: 0 | C31: 0 | D31: =+C31*(1+$B$31) -> 0 | E31: =+D31*(1+$B$31) -> 0 | F31: =+E31*(1+$B$31) -> 0 | G31: =+F31*(1+$B$31) -> 0 | H31: =+G31*(1+$B$31) -> 0
A32: Total Maintenance | C32: =SUM(C23:C31) -> 0 | D32: 0 | E32: 0 | F32: 0 | G32: 0 | H32: 0
A33: Administration
A34: Management Fee | B34: 0 | C34: 0 | D34: =+C34*(1+$B$34) -> 0 | E34: =+D34*(1+$B$34) -> 0 | F34: =+E34*(1+$B$34) -> 0 | G34: =+F34*(1+$B$34) -> 0 | H34: =+G34*(1+$B$34) -> 0
A35: Personnel Expense | B35: 0 | C35: 0 | D35: =+C35*(1+$B$35) -> 0 | E35: =+D35*(1+$B$35) -> 0 | F35: =+E35*(1+$B$35) -> 0 | G35: =+F35*(1+$B$35) -> 0 | H35: =+G35*(1+$B$35) -> 0
A36: Office Supplies | B36: 0 | C36: 0 | D36: =+C36*(1+$B$36) -> 0 | E36: =+D36*(1+$B$36) -> 0 | F36: =+E36*(1+$B$36) -> 0 | G36: =+F36*(1+$B$36) -> 0 | H36: =+G36*(1+$B$36) -> 0
A37: Telephone | B37: 0 | C37: 0 | D37: =+C37*(1+$B$37) -> 0 | E37: =+D37*(1+$B$37) -> 0 | F37: =+E37*(1+$B$37) -> 0 | G37: =+F37*(1+$B$37) -> 0 | H37: =+G37*(1+$B$37) -> 0
A38: Marketing | B38: 0 | C38: 0 | D38: =+C38*(1+$B$38) -> 0 | E38: =+D38*(1+$B$38) -> 0 | F38: =+E38*(1+$B$38) -> 0 | G38: =+F38*(1+$B$38) -> 0 | H38: =+G38*(1+$B$38) -> 0
A39: Total Administration | C39: =SUM(C34:C38) -> 0 | D39: 0 | E39: 0 | F39: 0 | G39: 0 | H39: 0
A40: Fixed Expenses
A41: Insurance | B41: 0 | C41: 0 | D41: =+C41*(1+$B$41) -> 0 | E41: =+D41*(1+$B$41) -> 0 | F41: =+E41*(1+$B$41) -> 0 | G41: =+F41*(1+$B$41) -> 0 | H41: =+G41*(1+$B$41) -> 0
A42: Real Estate Taxes | B42: 0 | C42: 0 | D42: =+C42*(1+$B$42) -> 0 | E42: =+D42*(1+$B$42) -> 0 | F42: =+E42*(1+$B$42) -> 0 | G42: =+F42*(1+$B$42) -> 0 | H42: =+G42*(1+$B$42) -> 0
B43: 0 | C43: 0 | D43: =+C43*(1+$B$43) -> 0 | E43: =+D43*(1+$B$43) -> 0 | F43: =+E43*(1+$B$43) -> 0 | G43: =+F43*(1+$B$43) -> 0 | H43: =+G43*(1+$B$43) -> 0
B44: 0 | C44: 0 | D44: =+C44*(1+$B$44) -> 0 | E44: =+D44*(1+$B$44) -> 0 | F44: =+E44*(1+$B$44) -> 0 | G44: =+F44*(1+$B$44) -> 0 | H44: =+G44*(1+$B$44) -> 0
B45: 0 | C45: 0 | D45: =+C45*(1+$B$45) -> 0 | E45: =+D45*(1+$B$45) -> 0 | F45: =+E45*(1+$B$45) -> 0 | G45: =+F45*(1+$B$45) -> 0 | H45: =+G45*(1+$B$45) -> 0
B46: 0 | C46: 0 | D46: =+C46*(1+$B$46) -> 0 | E46: =+D46*(1+$B$46) -> 0 | F46: =+E46*(1+$B$46) -> 0 | G46: =+F46*(1+$B$46) -> 0 | H46: =+G46*(1+$B$46) -> 0
A47: Total Fixed Expenses | C47: =SUM(C41:C46) -> 0 | D47: 0 | E47: 0 | F47: 0 | G47: 0 | H47: 0
A49: - Total Operating Expenses | C49: =SUM(C21,C32,C39,C47) -> 0 | D49: 0 | E49: 0 | F49: 0 | G49: 0 | H49: 0
A50: = Net Operating Income (NOI) | C50: =SUM(C14,-C49) -> 0 | D50: 0 | E50: 0 | F50: 0 | G50: 0 | H50: 0

Sheet As-Is Before-Tax Cash Flow
A1: As Is Before-Tax Cash Flow Analysis
A2: This tab automatically calculates figures based on data entered in other tabs.
A3: ANALYSIS VARIABLES | E3: BEFORE-TAX CASH FLOW (BTCF)
A4: Loan Amount | C4: =+'As-Is Owner Goals'!C4 -> 0 | F4: Year 1 | G4: Year 2 | H4: Year 3 | I4: Year 4 | J4: Year 5
A5: Loan Interest Rate | C5: =+'As-Is Owner Goals'!C5 -> 0 | E5: NOI | F5: =+'As-Is Pro Forma Statement'!C50 -> 0 | G5: =+'As-Is Pro Forma Statement'!D50 -> 0 | H5: =+'As-Is Pro Forma Statement'!E50 -> 0 | I5: =+'As-Is Pro Forma Statement'!F50 -> 0 | J5: =+'As-Is Pro Forma Statement'!G50 -> 0
A6: Loan Amortization Period (years) | C6: =+'As-Is Owner Goals'!C7 -> 0 | E6: - Loan Principal | F6: =-'As-Is Loan Amortization'!C22 -> 9.950133105e-10 | G6: =-'As-Is Loan Amortization'!C35 -> 9.950232606e-10 | H6: =-'As-Is Loan Amortization'!C48 -> 9.950332109e-10 | I6: =-SUM('As-Is Loan Amortization'!C61) -> 9.950431613e-10 | J6: =-'As-Is Loan Amortization'!C74 -> 9.950531118e-10
A7: Analysis Begin Month | C7: =+'As-Is Owner Goals'!C10 -> 0 | E7: - Loan Interest | F7: =-'As-Is Loan Amortization'!D22 -> 9.995439531e-12 | G7: =-'As-Is Loan Amortization'!D35 -> 9.985489352e-12 | H7: =-'As-Is Loan Amortization'!D48 -> 9.975539074e-12 | I7: =-'As-Is Loan Amortization'!D61 -> 9.965588696e-12 | J7: =-'As-Is Loan Amortization'!D74 -> 9.955638219e-12
A8: Owner Required Return | C8: =+'As-Is Owner Goals'!C11 -> 0
A9: Going-IN Capitalization Rate | C9: =+'As-Is Owner Goals'!C12 -> 0 | E9: = BTCF | F9: =SUM(F5,-F7,-F6) -> -1.00500875e-09 | G9: =SUM(G5,-G7,-G6) -> -1.00500875e-09 | H9: =SUM(H5,-H7,-H6) -> -1.00500875e-09 | I9: =SUM(I5,-I7,-I6) -> -1.00500875e-09 | J9: =SUM(J5,-J7,-J6) -> -1.00500875e-09
A10: Cost of Sale | C10: =+'As-Is Owner Goals'!C13 -> 0 | I10: Year 6 NOI | J10: =+'As-Is Pro Forma Statement'!H50 -> 0
E12: PROCEEDS OF SALE ANALYSIS
A13: INITIAL ANALYSIS | E13: Terminal Value
B14: Initial Value | E14: Sale Price | F14: =IF(C7<=1,B15,+'As-Is Owner Goals'!B25) -> 0 | G14: =IF('As-Is Owner Goals'!H23<=0," -",+H5/'As-Is Owner Goals'!H23) -> - | H14: =IF('As-Is Owner Goals'!H24<=0," -",+I5/'As-Is Owner Goals'!H24) -> - | I14: =IF('As-Is Owner Goals'!H25<=0," -",+J5/'As-Is Owner Goals'!$H25) -> - | J14: =IF('As-Is Owner Goals'!H26<=0," -",+J10/'As-Is Owner Goals'!$H26) -> -
A15: Purchase Price | B15: =+'As-Is Owner Goals'!B18 -> 0 | E15: - Cost of Sale | F15: =+F14*$C$10 -> 0 | G15: =IF('As-Is Owner Goals'!H23<=0," -",+G14*$C$10) -> - | H15: =IF('As-Is Owner Goals'!H24<=0," -",+H14*$C$10) -> - | I15: =IF('As-Is Owner Goals'!H25<=0," -",+I14*$C$10) -> - | J15: =IF('As-Is Owner Goals'!H26<=0," -",+J14*$C$10) -> -
A16: + Acquisition Expenses | B16: =+'As-Is Owner Goals'!B19 -> 0 | E16: - Loan Balance | F16: =+'As-Is Loan Amortization'!F21 -> 9.990049867e-07 | G16: =+'As-Is Loan Amortization'!F34 -> 9.980099634e-07 | H16: =+'As-Is Loan Amortization'!F47 -> 9.970149302e-07 | I16: =+'As-Is Loan Amortization'!F60 -> 9.960198871e-07 | J16: =+'As-Is Loan Amortization'!F73 -> 9.950248339e-07
A17: + Points, Fees | B17: =+'As-Is Owner Goals'!B20 -> 0 | E17: = Net Sale Proceeds | F17: =SUM(F14,-F15,-F16) -> -9.990049867e-07 | G17: =IF('As-Is Owner Goals'!H23<=0," -",SUM(G14,-G15,-G16)) -> - | H17: =IF('As-Is Owner Goals'!H24<=0," -",SUM(H14,-H15,-H16)) -> - | I17: =IF('As-Is Owner Goals'!H25<=0," -",SUM(I14,-I15,-I16)) -> - | J17: =IF('As-Is Owner Goals'!H26<=0," -",SUM(J14,-J15,-J16)) -> -
A18: = Original Basis | B18: =SUM(B15:B17) -> 0
A19: - Loan Amount | B19: =+'As-Is Owner Goals'!B22 -> 0 | E19: 5 Year T-BAR
A20: = Initial Equity | B20: =SUM(B18,-B19) -> 0 | E20: N | F20: $
A21: MIDSTREAM ANALYSIS (if applicable) | E21: Current Equity | F21: =-B29 -> 0
A22: Current Market Value | B22: =+'As-Is Owner Goals'!B25 -> 0 | E22: BTCF Year 1 | F22: =+F9 -> -1.00500875e-09
A23: - Cost of Sale | B23: =+'As-Is Owner Goals'!B26 -> 0 | E23: BTCF Year 2 | F23: =+G9 -> -1.00500875e-09
A24: - Current Loan Balance | B24: =+'As-Is Owner Goals'!B27 -> 0 | E24: BTCF Year 3 | F24: =+H9 -> -1.00500875e-09
A25: = Cash-Out Potential | B25: =+'As-Is Owner Goals'!B28 -> 0 | E25: BTCF Year 4 | F25: =+I9 -> -1.00500875e-09 | G25: Year 5 BTCF | H25: Sales Proceeds
A26: + Capital Improvements | B26: =+'As-Is Owner Goals'!B29 -> 0 | E26: BTCF Year 5 + NSP | F26: =SUM(J9,J17) -> -1.00500875e-09 | G26: =J9 -> -1.00500875e-09 | H26: =J17 -> -
A27: - New Loans | B27: =+'As-Is Owner Goals'!B30 -> 0
A28: + New Points, Fees | B28: =+'As-Is Owner Goals'!B31 -> 0 | E28: FOUR TESTS OF INVESTMENT RETURN: Year 5
A29: = Current Equity | B29: =IF(B25=0,+B20,SUM(B25,B26,-B27,B28)) -> 0 | E29: Year 1 $/$% | F29: Value Enh. | G29: NPV | H29: IRR
E30: =IF(OR(F9=0,B29=0),"-",(F9/B29)) -> - | F30: =IF('As-Is Owner Goals'!H26<=0,"-",SUM(J14,-F14,-$B$26)) -> - | G30: =IF(OR(C8<=0,'As-Is Owner Goals'!H26<=0),"-",NPV('As-Is Owner Goals'!C11,'As-Is Before-Tax Cash Flow'!F22:F26)-'As-Is Before-Tax Cash Flow'!B29) -> - | H30: =IF(OR(MAX('As-Is BTCF T Bars'!C31:C36)<0,OR(MIN('As-Is BTCF T Bars'!C31:C36)>0,OR(B29<=0,'As-Is Owner Goals'!H26<=0))),"-",IRR('As-Is BTCF T Bars'!C31:C36,0.001)) -> -

Sheet Alt Owner Goals
A1: Alternative Owner Goals and Objectives
A2: Enter data in the yellow cells only.
A3: ANALYSIS VARIABLES | F3: INITIAL LOAN ANALYSIS
A4: Loan Amount ($) | F4: Annual Debt Service (ADS) | H4: =IF(C5=0,"-",IF(C7=0,(C4*C5),IF(C4=0,"-",IF(C14="Monthly",(PMT(C5/12,C7*12,B22)*12),(PMT(((1+C5/2)^(2/12))-1,C7*12,B22)*12))))) -> -
A5: Loan Interest Rate (%)
A6: Loan Pre-paid points (%) (EFI%)
A7: Loan Amortization Period (years)
A8: Loan Term/Balloon (years) | B8: (EFI%)
A9: Loan Penalty (%) | B9: (EFI%)
A10: Analysis Begin Month
A11: Owner's Required Return (%)
A12: Going-IN Capitalization Rate (%)
A13: Cost of Sale (%)
A14: Loan Compounding Period | C14: Monthly | F14: MIDSTREAM LOAN ANALYSIS (if applicable)
C15: =IF(C7="","",IF(C7=0,"Interest Only Loan",IF(C7<10,"Make Loan Amortization > or = to 10?",""))) ->  | F15: Loan to Value Ratio (LTV) | H15: =IF(B27=0,"-",IF(B25=0,"-",B27/B25)) -> -
A16: INITIAL ANALYSIS | F16: Debt Coverage Ratio (DCR) | H16: =IF(OR(C10<=1),"-",IF(+'Alt Pro Forma Statement'!C50=0,"-",IF(H4=0,"-",+'Alt Pro Forma Statement'!C50/-H4))) -> -
F17: Free-and Clear Rate of Return | H17: =IF(+'Alt Before-Tax Cash Flow'!F5=0,"-",IF(B25=0,"-",+'Alt Before-Tax Cash Flow'!F5/'Alt Owner Goals'!B25)) -> -
A18: Purchase Price | F18: Loan Constant (k%) | H18: =IF(OR(C5<=0,C7<=0),"-",IF(H4=0,"-",IF(B27=0,"-",-H4/B27))) -> -
A19: + Acquisition Expenses | F19: Cash-on-Cash Rate of Return ($/$%) | H19: =IF(OR(C5<=0,C7<=0),"-",IF(+'Alt Before-Tax Cash Flow'!F9=0,"-",IF(B25=0,"-",IF(B32=0,"-",+'Alt Before-Tax Cash Flow'!F9/'Alt Owner Goals'!B32)))) -> -
A20: + Points, Fees | F20: Leverage Position | H20: =IF(C10<=1,"-",IF(AND(H19>H17),"Positive",IF(H17=H19,"-","Negative"))) -> -
A21: = Original Basis | B21: =SUM(B18:B20) -> 0
A22: - Loan Amount | B22: =+C4 -> 0 | F22: Going-OUT Capitalization Rate | G22: Year | H22: Rate
A23: = Initial Equity | B23: =SUM(B21,-B22) -> 0 | G23: 2
A24: MIDSTREAM ANALYSIS (if applicable) | G24: 3 | BM24: =IF(OR($C$10<=1,$C$12<=0),0,'Alt Pro Forma Statement'!$C$50/'Alt Owner Goals'!$C$12) -> 0
A25: Current Market Value | B25: =IF(OR($C$10<=1,$C$12<=0),0,'Alt Pro Forma Statement'!$C$50/'Alt Owner Goals'!$C$12) -> 0 | G25: 4
A26: - Cost of Sale | B26: =IF(C10<=1,0,+B25*C13) -> 0 | G26: 5
A27: - Current Loan Balance | B27: =IF(OR(C7<=0,B25=0,C10<=1),0,(SUM(+'Alt Loan Amortization'!F8))) -> 0
A28: = Cash-Out Potential | B28: =IF(B25="",0,SUM(B25,-B26,-B27)) -> 0
A29: + Capital Improvements
A30: - New Loans (Mid Stream) | B30: 0
A31: + New Points, Fees | B31: 0
A32: = Current Equity | B32: =IF(B28=0,+B23,SUM(B28,B29,-B30,B31)) -> 0 | C32: =IF(C10>1,"",IF(B18<C4,"Loan Amount exceeds Purchase Price","")) -> 

Sheet Alt Pro Forma Statement
A1: Alternative Pro Forma Statement
A2: Enter data in the yellow cells only.
A3: Income | B3: Annual
B4: Increase | C4: Year 1 | D4: Year 2 | E4: Year 3 | F4: Year 4 | G4: Year 5 | H4: Year 6
A5: Gross Potential Income (GPI) | B5: 0 | C5: 0 | D5: =+C5*(1+$B$5) -> 0 | E5: =+D5*(1+$B$5) -> 0 | F5: =+E5*(1+$B$5) -> 0 | G5: =+F5*(1+$B$5) -> 0 | H5: =+G5*(1+$B$5) -> 0
A6: - Loss to Lease | B6: 0 | C6: 0 | D6: =+C6*(1+$B$6) -> 0 | E6: =+D6*(1+$B$6) -> 0 | F6: =+E6*(1+$B$6) -> 0 | G6: =+F6*(1+$B$6) -> 0 | H6: =+G6*(1+$B$6) -> 0
A7: - Vacancy and Collection Loss | B7: 0 | C7: 0 | D7: =+C7*(1+$B$7) -> 0 | E7: =+D7*(1+$B$7) -> 0 | F7: =+E7*(1+$B$7) -> 0 | G7: =+F7*(1+$B$7) -> 0 | H7: =+G7*(1+$B$7) -> 0
A8: = Net Rent Revenue | C8: =SUM(C5,-C6,-C7) -> 0 | D8: 0 | E8: 0 | F8: 0 | G8: 0 | H8: 0
A9: + Miscellaneous Income | B9: 0 | C9: 0 | D9: =+C9*(1+$B$9) -> 0 | E9: =+D9*(1+$B$9) -> 0 | F9: =+E9*(1+$B$9) -> 0 | G9: =+F9*(1+$B$9) -> 0 | H9: =+G9*(1+$B$9) -> 0
A10: + Property Tax Reimbursement | B10: 0 | C10: 0 | D10: =+C10*(1+$B$10) -> 0 | E10: =+D10*(1+$B$10) -> 0 | F10: =+E10*(1+$B$10) -> 0 | G10: =+F10*(1+$B$10) -> 0 | H10: =+G10*(1+$B$10) -> 0
A11: + Utility Reimbursement | B11: 0 | C11: 0 | D11: =+C11*(1+$B$11) -> 0 | E11: =+D11*(1+$B$11) -> 0 | F11: =+E11*(1+$B$11) -> 0 | G11: =+F11*(1+$B$11) -> 0 | H11: =+G11*(1+$B$11) -> 0
A12: + CAM Reimbursement | B12: 0 | C12: 0 | D12: =+C12*(1+$B$12) -> 0 | E12: =+D12*(1+$B$12) -> 0 | F12: =+E12*(1+$B$12) -> 0 | G12: =+F12*(1+$B$12) -> 0 | H12: =+G12*(1+$B$12) -> 0
A13: + Other Reimbursement | B13: 0 | C13: 0 | D13: =+C13*(1+$B$13) -> 0 | E13: =+D13*(1+$B$13) -> 0 | F13: =+E13*(1+$B$13) -> 0 | G13: =+F13*(1+$B$13) -> 0 | H13: =+G13*(1+$B$13) -> 0
A14: = Effective Gross Income (EGI) | C14: =SUM(C8:C13) -> 0 | D14: 0 | E14: 0 | F14: 0 | G14: 0 | H14: 0
A16: Operating Expenses
A17: Utilities
A18: Heat | B18: 0 | C18: 0 | D18: =+C18*(1+$B$18) -> 0 | E18: =+D18*(1+$B$18) -> 0 | F18: =+E18*(1+$B$18) -> 0 | G18: =+F18*(1+$B$18) -> 0 | H18: =+G18*(1+$B$18) -> 0
A19: Electric | B19: 0 | C19: 0 | D19: =+C19*(1+$B$19) -> 0 | E19: =+D19*(1+$B$19) -> 0 | F19: =+E19*(1+$B$19) -> 0 | G19: =+F19*(1+$B$19) -> 0 | H19: =+G19*(1+$B$19) -> 0
A20: Water and Sewer | B20: 0 | C20: 0 | D20: =+C20*(1+$B$20) -> 0 | E20: =+D20*(1+$B$20) -> 0 | F20: =+E20*(1+$B$20) -> 0 | G20: =+F20*(1+$B$20) -> 0 | H20: =+G20*(1+$B$20) -> 0
A21: Total Utilities | C21: =SUM(C18:C20) -> 0 | D21: 0 | E21: 0 | F21: 0 | G21: 0 | H21: 0
A22: Maintenance
A23: Landscaping | B23: 0 | C23: 0 | D23: =+C23*(1+$B$23) -> 0 | E23: =+D23*(1+$B$23) -> 0 | F23: =+E23*(1+$B$23) -> 0 | G23: =+F23*(1+$B$23) -> 0 | H23: =+G23*(1+$B$23) -> 0
A24: Janitorial | B24: 0 | C24: 0 | D24: =+C24*(1+$B$24) -> 0 | E24: =+D24*(1+$B$24) -> 0 | F24: =+E24*(1+$B$24) -> 0 | G24: =+F24*(1+$B$24) -> 0 | H24: =+G24*(1+$B$24) -> 0
A25: Painting and Decorating | B25: 0 | C25: 0 | D25: =+C25*(1+$B$25) -> 0 | E25: =+D25*(1+$B$25) -> 0 | F25: =+E25*(1+$B$25) -> 0 | G25: =+F25*(1+$B$25) -> 0 | H25: =+G25*(1+$B$25) -> 0
A26: Maintenance Labor | B26: 0 | C26: 0 | D26: =+C26*(1+$B$26) -> 0 | E26: =+D26*(1+$B$26) -> 0 | F26: =+E26*(1+$B$26) -> 0 | G26: =+F26*(1+$B$26) -> 0 | H26: =+G26*(1+$B$26) -> 0
A27: Maintenance Contract | B27: 0 | C27: 0 | D27: =+C27*(1+$B$27) -> 0 | E27: =+D27*(1+$B$27) -> 0 | F27: =+E27*(1+$B$27) -> 0 | G27: =+F27*(1+$B$27) -> 0 | H27: =+G27*(1+$B$27) -> 0
A28: HVAC | B28: 0 | C28: 0 | D28: =+C28*(1+$B$28) -> 0 | E28: =+D28*(1+$B$28) -> 0 | F28: =+E28*(1+$B$28) -> 0 | G28: =+F28*(1+$B$28) -> 0 | H28: =+G28*(1+$B$28) -> 0
A29: Plumbing | B29: 0 | C29: 0 | D29: =+C29*(1+$B$29) -> 0 | E29: =+D29*(1+$B$29) -> 0 | F29: =+E29*(1+$B$29) -> 0 | G29: =+F29*(1+$B$29) -> 0 | H29: =+G29*(1+$B$29) -> 0
A30: Electrical | B30: 0 | C30: 0 | D30: =+C30*(1+$B$30) -> 0 | E30: =+D30*(1+$B$30) -> 0 | F30: =+E30*(1+$B$30) -> 0 | G30: =+F30*(1+$B$30) -> 0 | H30: =+G30*(1+$B$30) -> 0
A31: Security | B31: 0 | C31: 0 | D31: =+C31*(1+$B$31) -> 0 | E31: =+D31*(1+$B$31) -> 0 | F31: =+E31*(1+$B$31) -> 0 | G31: =+F31*(1+$B$31) -> 0 | H31: =+G31*(1+$B$31) -> 0
A32: Total Maintenance | C32: =SUM(C23:C31) -> 0 | D32: 0 | E32: 0 | F32: 0 | G32: 0 | H32: 0
A33: Administration
A34: Management Fee | B34: 0 | C34: 0 | D34: =+C34*(1+$B$34) -> 0 | E34: =+D34*(1+$B$34) -> 0 | F34: =+E34*(1+$B$34) -> 0 | G34: =+F34*(1+$B$34) -> 0 | H34: =+G34*(1+$B$34) -> 0
A35: Personnel Expense | B35: 0 | C35: 0 | D35: =+C35*(1+$B$35) -> 0 | E35: =+D35*(1+$B$35) -> 0 | F35: =+E35*(1+$B$35) -> 0 | G35: =+F35*(1+$B$35) -> 0 | H35: =+G35*(1+$B$35) -> 0
A36: Office Supplies | B36: 0 | C36: 0 | D36: =+C36*(1+$B$36) -> 0 | E36: =+D36*(1+$B$36) -> 0 | F36: =+E36*(1+$B$36) -> 0 | G36: =+F36*(1+$B$36) -> 0 | H36: =+G36*(1+$B$36) -> 0
A37: Telephone | B37: 0 | C37: 0 | D37: =+C37*(1+$B$37) -> 0 | E37: =+D37*(1+$B$37) -> 0 | F37: =+E37*(1+$B$37) -> 0 | G37: =+F37*(1+$B$37) -> 0 | H37: =+G37*(1+$B$37) -> 0
A38: Marketing | B38: 0 | C38: 0 | D38: =+C38*(1+$B$38) -> 0 | E38: =+D38*(1+$B$38) -> 0 | F38: =+E38*(1+$B$38) -> 0 | G38: =+F38*(1+$B$38) -> 0 | H38: =+G38*(1+$B$38) -> 0
A39: Total Administration | C39: =SUM(C34:C38) -> 0 | D39: 0 | E39: 0 | F39: 0 | G39: 0 | H39: 0
A40: Fixed Expenses
A41: Insurance | B41: 0 | C41: 0 | D41: =+C41*(1+$B$41) -> 0 | E41: =+D41*(1+$B$41) -> 0 | F41: =+E41*(1+$B$41) -> 0 | G41: =+F41*(1+$B$41) -> 0 | H41: =+G41*(1+$B$41) -> 0
A42: Real Estate Taxes | B42: 0 | C42: 0 | D42: =+C42*(1+$B$42) -> 0 | E42: =+D42*(1+$B$42) -> 0 | F42: =+E42*(1+$B$42) -> 0 | G42: =+F42*(1+$B$42) -> 0 | H42: =+G42*(1+$B$42) -> 0
B43: 0 | C43: 0 | D43: =+C43*(1+$B$43) -> 0 | E43: =+D43*(1+$B$43) -> 0 | F43: =+E43*(1+$B$43) -> 0 | G43: =+F43*(1+$B$43) -> 0 | H43: =+G43*(1+$B$43) -> 0
B44: 0 | C44: 0 | D44: =+C44*(1+$B$44) -> 0 | E44: =+D44*(1+$B$44) -> 0 | F44: =+E44*(1+$B$44) -> 0 | G44: =+F44*(1+$B$44) -> 0 | H44: =+G44*(1+$B$44) -> 0
B45: 0 | C45: 0 | D45: =+C45*(1+$B$45) -> 0 | E45: =+D45*(1+$B$45) -> 0 | F45: =+E45*(1+$B$45) -> 0 | G45: =+F45*(1+$B$45) -> 0 | H45: =+G45*(1+$B$45) -> 0
B46: 0 | C46: 0 | D46: =+C46*(1+$B$46) -> 0 | E46: =+D46*(1+$B$46) -> 0 | F46: =+E46*(1+$B$46) -> 0 | G46: =+F46*(1+$B$46) -> 0 | H46: =+G46*(1+$B$46) -> 0
A47: Total Fixed Expenses | C47: =SUM(C41:C46) -> 0 | D47: 0 | E47: 0 | F47: 0 | G47: 0 | H47: 0
A49: - Total Operating Expenses | C49: =SUM(C21,C32,C39,C47) -> 0 | D49: 0 | E49: 0 | F49: 0 | G49: 0 | H49: 0
A50: = Net Operating Income (NOI) | C50: =SUM(C14,-C49) -> 0 | D50: 0 | E50: 0 | F50: 0 | G50: 0 | H50: 0

Sheet Alt Before-Tax Cash Flow
A1: Alternative Before-Tax Cash Flow Analysis
A2: This tab automatically calculates figures based on data entered in other tabs.
A3: ANALYSIS VARIABLES | E3: BEFORE-TAX CASH FLOW (BTCF)
A4: Loan Amount | C4: =+'Alt Owner Goals'!C4 -> 0 | F4: Year 1 | G4: Year 2 | H4: Year 3 | I4: Year 4 | J4: Year 5
A5: Loan Interest Rate | C5: =+'Alt Owner Goals'!C5 -> 0 | E5: NOI | F5: =+'Alt Pro Forma Statement'!C50 -> 0 | G5: =+'Alt Pro Forma Statement'!D50 -> 0 | H5: =+'Alt Pro Forma Statement'!E50 -> 0 | I5: =+'Alt Pro Forma Statement'!F50 -> 0 | J5: =+'Alt Pro Forma Statement'!G50 -> 0
A6: Loan Amortization Period (years) | C6: =+'Alt Owner Goals'!C7 -> 0 | E6: - Loan Principal | F6: =-'Alt Loan Amortization'!C22 -> 9.950133105e-10 | G6: =-'Alt Loan Amortization'!C35 -> 9.950232606e-10 | H6: =-'Alt Loan Amortization'!C48 -> 9.950332109e-10 | I6: =-'Alt Loan Amortization'!C61 -> 9.950431613e-10 | J6: =-'Alt Loan Amortization'!C74 -> 9.950531118e-10
A7: Analysis Begin Month | C7: =+'Alt Owner Goals'!C10 -> 0 | E7: - Loan Interest | F7: =-'Alt Loan Amortization'!D22 -> 9.995439531e-12 | G7: =-'Alt Loan Amortization'!D35 -> 9.985489352e-12 | H7: =-'Alt Loan Amortization'!D48 -> 9.975539074e-12 | I7: =-'Alt Loan Amortization'!D61 -> 9.965588696e-12 | J7: =-'Alt Loan Amortization'!D74 -> 9.955638219e-12
A8: Owner Required Return | C8: =+'Alt Owner Goals'!C11 -> 0
A9: Going-IN Capitalization Rate | C9: =+'Alt Owner Goals'!C12 -> 0 | E9: = BTCF | F9: =SUM(F5,-F7,-F6) -> -1.00500875e-09 | G9: =SUM(G5,-G7,-G6) -> -1.00500875e-09 | H9: =SUM(H5,-H7,-H6) -> -1.00500875e-09 | I9: =SUM(I5,-I7,-I6) -> -1.00500875e-09 | J9: =SUM(J5,-J7,-J6) -> -1.00500875e-09
A10: Cost of Sale | C10: =+'Alt Owner Goals'!C13 -> 0 | I10: Year 6 NOI | J10: =+'Alt Pro Forma Statement'!H50 -> 0
E12: PROCEEDS OF SALE ANALYSIS
A13: INITIAL ANALYSIS | E13: Terminal Value
B14: Initial Value | E14: Sale Price | F14: =IF(C7<=1,B15,+'Alt Owner Goals'!B25) -> 0 | G14: =IF('Alt Owner Goals'!H23<=0," -",+H5/'Alt Owner Goals'!H23) -> - | H14: =IF('Alt Owner Goals'!H24<=0," -",+I5/'Alt Owner Goals'!H24) -> - | I14: =IF('Alt Owner Goals'!H25<=0," -",+J5/'Alt Owner Goals'!$H25) -> - | J14: =IF('Alt Owner Goals'!H26<=0," -",+J10/'Alt Owner Goals'!$H26) -> -
A15: Purchase Price | B15: =+'Alt Owner Goals'!B18 -> 0 | E15: - Cost of Sale | F15: =+F14*$C$10 -> 0 | G15: =IF('Alt Owner Goals'!H23<=0," -",+G14*$C$10) -> - | H15: =IF('Alt Owner Goals'!H24<=0," -",+H14*$C$10) -> - | I15: =IF('Alt Owner Goals'!H25<=0," -",+I14*$C$10) -> - | J15: =IF('Alt Owner Goals'!H26<=0," -",+J14*$C$10) -> -
A16: + Acquisition Expenses | B16: =+'Alt Owner Goals'!B19 -> 0 | E16: - Loan Balance | F16: =+'Alt Loan Amortization'!F21 -> 9.990049867e-07 | G16: =+'Alt Loan Amortization'!F34 -> 9.980099634e-07 | H16: =+'Alt Loan Amortization'!F47 -> 9.970149302e-07 | I16: =+'Alt Loan Amortization'!F60 -> 9.960198871e-07 | J16: =+'Alt Loan Amortization'!F73 -> 9.950248339e-07
A17: + Points, Fees | B17: =+'Alt Owner Goals'!B20 -> 0 | E17: = Net Sale Proceeds | F17: =SUM(F14,-F15,-F16) -> -9.990049867e-07 | G17: =IF('Alt Owner Goals'!H23<=0," -",SUM(G14,-G15,-G16)) -> - | H17: =IF('Alt Owner Goals'!H24<=0," -",SUM(H14,-H15,-H16)) -> - | I17: =IF('Alt Owner Goals'!H25<=0," -",SUM(I14,-I15,-I16)) -> - | J17: =IF('Alt Owner Goals'!H26<=0," -",SUM(J14,-J15,-J16)) -> -
A18: = Original Basis | B18: =SUM(B15:B17) -> 0
A19: - Loan Amount | B19: =+'Alt Owner Goals'!B22 -> 0 | E19: 5 Year T-BAR
A20: = Initial Equity | B20: =SUM(B18,-B19) -> 0 | E20: N | F20: $
A21: MIDSTREAM ANALYSIS (if applicable) | E21: Current Equity | F21: =-B29 -> 0
A22: Current Market Value | B22: =+'Alt Owner Goals'!B25 -> 0 | E22: BTCF Year 1 | F22: =+F9 -> -1.00500875e-09
A23: - Cost of Sale | B23: =+'Alt Owner Goals'!B26 -> 0 | E23: BTCF Year 2 | F23: =+G9 -> -1.00500875e-09
A24: - Current Loan Balance | B24: =+'Alt Owner Goals'!B27 -> 0 | E24: BTCF Year 3 | F24: =+H9 -> -1.00500875e-09
A25: = Cash-Out Potential | B25: =+'Alt Owner Goals'!B28 -> 0 | E25: BTCF Year 4 | F25: =+I9 -> -1.00500875e-09 | G25: Year 5 BTCF | H25: Sales Proceeds
A26: + Capital Improvements | B26: =+'Alt Owner Goals'!B29 -> 0 | E26: BTCF Year 5 + NSP | F26: =SUM(J9,J17) -> -1.00500875e-09 | G26: =J9 -> -1.00500875e-09 | H26: =J17 -> -
A27: - New Loans | B27: =+'Alt Owner Goals'!B30 -> 0
A28: + New Points, Fees | B28: =+'Alt Owner Goals'!B31 -> 0 | E28: FOUR TESTS OF INVESTMENT RETURN: Year 5
A29: = Current Equity | B29: =IF(B25=0,+B20,SUM(B25,B26,-B27,B28)) -> 0 | E29: Year 1 $/$% | F29: Value Enh. | G29: NPV | H29: IRR
E30: =IF(OR(F9=0,B29=0),"-",(F9/B29)) -> - | F30: =IF('Alt Owner Goals'!H26<=0,"-",SUM(J14,-F14,-$B$26)) -> - | G30: =IF(OR(C8<=0,'Alt Owner Goals'!H26<=0),"-",NPV('Alt Owner Goals'!C11,'Alt Before-Tax Cash Flow'!F22:F26)-'Alt Before-Tax Cash Flow'!B29) -> - | H30: =IF(OR(MAX('Alt BTCF T Bars'!C31:C36)<0,OR(MIN('Alt BTCF T Bars'!C31:C36)>0,OR(B29<=0,'Alt Owner Goals'!H26<=0))),"-",IRR('Alt BTCF T Bars'!C31:C36,0.001)) -> -

Sheet Alt Office Comp Grid
A1: Office Comparison Grid
A2: Enter data in the yellow cells only.
B4: Subject | C4: Comparable 1 | E4: Comparable 2 | G4: Comparable 3
A5: Property Name
A6: Base rental rate
A7: - Concessions
A8: + Exp. pass-through
A9: + Tenant-paid improv.
A10: = Effective rent | C10: =SUM(C6,-C7,C8,C9) -> 0 | E10: =SUM(E6,-E7,E8,E9) -> 0 | G10: =SUM(G6,-G7,G8,G9) -> 0
A12: Categories | B12: Description | C12: Description | D12: +\- Adj | E12: Description | F12: +\- Adj | G12: Description | H12: +\- Adj
A13: Location/accessibility
A14: Age
A15: Market presence
A16: Building condition:
A17: Exterior
A18: Grounds
A19: Common areas
A20: Office space
A21: Other
A22: Building systems:
A23: Elevators
A24: HVAC efficiency
A25: After hours charge
A26: Life safety
A27: Other
A28: Available space:
A29: Location
A30: Floor plate
A31: Window modulation
A32: Other
A33: Parking:
A34: Type
A35: Visitor space
A36: Cost to tenant
A40: Amenities/features
A42: Total rent adjustments | C42: =SUM(D13:D40) -> 0 | E42: =SUM(F13:F40) -> 0 | G42: =SUM(H13:H40) -> 0
A43: Adjusted effective rent | C43: =SUM(C10,C42) -> 0 | E43: =SUM(E10,E42) -> 0 | G43: =SUM(G10,G42) -> 0
A44: Average adjusted effective rent | B44: =IF(AND(C43>0,E43>0,G43>0),AVERAGE(C43:H43),IF(AND(C43>0,E43>0,G43<=0),AVERAGE(C43:F43),IF(AND(C43>0,E43<=0,G43<=0),C43,IF(AND(C43<=0,E43<=0,G43<=0),0)))) -> 0
A45: All figures are per annual rentable square foot.
A723: Excellent
A724: Good
A725: Fair
A726: Poor

Sheet Alt Residential Comp Grid 1
A1: Residential Comparison Grid
A2: Enter data in the yellow cells only.
B4: Subject | C4: Comparable 1 | E4: Comparable 2 | G4: Comparable 3
A5: Property Name
A6: Base rental rate
A7: - Concessions
A8: + Other income
A9: = Effective rent/unit | C9: =SUM(C6,-C7,C8) -> 0 | E9: =SUM(E6,-E7,E8) -> 0 | G9: =SUM(G6,-G7,G8) -> 0
A10: ÷ Square feet/unit
A11: Effective rent/sq ft | C11: =IF(C9=0,0,IF(C10=0,"-",+C9/C10)) -> 0 | E11: =IF(E9=0,0,IF(E10=0,"-",+E9/E10)) -> 0 | G11: =IF(G9=0,0,IF(G10=0,"-",+G9/G10)) -> 0
A13: Categories | B13: Description | C13: Description | D13: +/- Adj | E13: Description | F13: +/- Adj | G13: Description | H13: +/- Adj
A14: Location
A15: Age
A16: Building condition:
A17: Exterior
A18: Grounds
A19: Common areas
A20: Public lighting
A21: Other
A22: Unit interior:
A23: Unit Floor Plan
A24: Drapes/blinds
A25: Stove/refrigerator
A26: Washer/dryer
A27: Closets/storage
A28: Flooring
A29: Other
A30: Parking availability
A31: Elevator
A34: Owner paid utilities
A35: Amenities/features
A37: Total rent adjustments | C37: =SUM(D14:D35) -> 0 | E37: =SUM(F14:F35) -> 0 | G37: =SUM(H14:H35) -> 0
A38: Adjusted effective rent/unit | C38: =SUM(C9,C37) -> 0 | E38: =SUM(E9,E37) -> 0 | G38: =SUM(G9,G37) -> 0
A39: Average adjusted effective rent/unit | B39: =IF(AND(C38>0,E38>0,G38>0),AVERAGE(C38:H38),IF(AND(C38>0,E38>0,G38<=0),AVERAGE(C38:F38),IF(AND(C38>0,E38<=0,G38<=0),C38,IF(AND(C38<=0,E38<=0,G38<=0),0)))) -> 0
A40: Average adjusted effective rent/sq ft | B40: =IF(B39=0,"-",IF(B10=0,"-",(B39/B10))) -> -

Sheet Alt Residential Comp Grid 2
A1: Residential Comparison Grid
A2: Enter data in the yellow cells only.
B4: Subject | C4: Comparable 1 | E4: Comparable 2 | G4: Comparable 3
A5: Property Name
A6: Base rental rate
A7: - Concessions
A8: + Other income
A9: = Effective rent/unit | C9: =SUM(C6,-C7,C8) -> 0 | E9: =SUM(E6,-E7,E8) -> 0 | G9: =SUM(G6,-G7,G8) -> 0
A10: ÷ Square feet/unit
A11: Effective rent/sq ft | C11: =IF(C9=0,0,IF(C10=0,"-",+C9/C10)) -> 0 | E11: =IF(E9=0,0,IF(E10=0,"-",+E9/E10)) -> 0 | G11: =IF(G9=0,0,IF(G10=0,"-",+G9/G10)) -> 0
A13: Categories | B13: Description | C13: Description | D13: +/- Adj | E13: Description | F13: +/- Adj | G13: Description | H13: +/- Adj
A14: Location
A15: Age
A16: Building condition:
A17: Exterior
A18: Grounds
A19: Common areas
A20: Public lighting
A21: Other
A22: Unit interior:
A23: Unit Floor Plan
A24: Drapes/blinds
A25: Stove/refrigerator
A26: Washer/dryer
A27: Closets/storage
A28: Flooring
A29: Other
A30: Parking availability
A31: Elevator
A34: Owner paid utilities
A35: Amenities/features
A37: Total rent adjustments | C37: =SUM(D14:D35) -> 0 | E37: =SUM(F14:F35) -> 0 | G37: =SUM(H14:H35) -> 0
A38: Adjusted effective rent/unit | C38: =SUM(C9,C37) -> 0 | E38: =SUM(E9,E37) -> 0 | G38: =SUM(G9,G37) -> 0
A39: Average adjusted effective rent/unit | B39: =IF(AND(C38>0,E38>0,G38>0),AVERAGE(C38:H38),IF(AND(C38>0,E38>0,G38<=0),AVERAGE(C38:F38),IF(AND(C38>0,E38<=0,G38<=0),C38,IF(AND(C38<=0,E38<=0,G38<=0),0)))) -> 0
A40: Average adjusted effective rent/sq ft | B40: =IF(B39=0,"-",IF(B10=0,"-",(B39/B10))) -> -

Sheet Alt Retail Comp Grid 1
A1: Retail Comparison Grid
A2: Enter data in the yellow cells only.
B4: Subject | C4: Comparable 1 | E4: Comparable 2 | G4: Comparable 3
A5: Property Name
A6: Base rental rate
A7: - Concessions
A8: + Exp. pass-through
A9: + Tenant-paid improv.
A10: = Effective rent | C10: =SUM(C6,-C7,C8,C9) -> 0 | E10: =SUM(E6,-E7,E8,E9) -> 0 | G10: =SUM(G6,-G7,G8,G9) -> 0
A12: Categories | B12: Description | C12: Description | D12: +\- Adj | E12: Description | F12: +\- Adj | G12: Description | H12: +\- Adj
A13: Anchor draw
A14: Tenant mix synergy
A15: Parking
A16: Street visibility
A17: Drive-by traffic
A18: Vacancy rate
A19: Ingress/egress
A20: Signage
A21: Overall appearance
A22: Proximity to transit
A23: Amenities/features
A35: Total rent adjustments | C35: =SUM(D13:D33) -> 0 | E35: =SUM(F13:F33) -> 0 | G35: =SUM(H13:H33) -> 0
A36: Adjusted effective rent | C36: =SUM(C10,C35) -> 0 | E36: =SUM(E10,E35) -> 0 | G36: =SUM(G10,G35) -> 0
A37: Average adjusted effective rent | B37: =IF(AND(C36>0,E36>0,G36>0),AVERAGE(C36:H36),IF(AND(C36>0,E36>0,G36<=0),AVERAGE(C36:F36),IF(AND(C36>0,E36<=0,G36<=0),C36,IF(AND(C36<=0,E36<=0,H36<=0),0)))) -> 0
A38: All figures are per annual rentable square foot.

Sheet EF Cash Flow (hidden)
I1: Amortization
B2: Rent | C2: Opex Stop | D2: Actual Opex | E2: Opex Impact | F2: Tax Stop | G2: Actual Tax | H2: Tax Impact | I2: TI | J2: Comm. | K2: Buy-out | L2: Move | M2: Space | N2: Other1 | O2: Other2 | P2: Other3 | Q2: Concess | R2: Net
A3: 0 | Q3: =-SUMIF(#REF!,A3,#REF!)/#REF! ->  | R3: =SUM(H3:Q3)+E3+B3 -> 
A4: 1 | B4: =VLOOKUP(A4,#REF!,3)/12 ->  | C4: =-#REF!/12 ->  | D4: =-IF($A4>#REF!,0,(#REF!*(1+#REF!)^(INT((A4-1)/12)))/12) ->  | E4: =IF(D4>C4,D4,C4) ->  | F4: =-#REF!/12 ->  | G4: =-IF($A4>#REF!,0,(#REF!*(1+#REF!)^(INT(($A4-1)/12)))/12) ->  | H4: =IF(G4>F4,G4,F4) ->  | I4: =IF(AND(A4>#REF!,A4<(#REF!+#REF!+1)),#REF!/#REF!,0) ->  | J4: =IF(AND($A4>#REF!,$A4<(#REF!+#REF!+1)),#REF!/#REF!,0) ->  | K4: =IF(AND($A4>#REF!,$A4<(#REF!+#REF!+1)),#REF!/#REF!,0) ->  | L4: =IF(AND($A4>#REF!,$A4<(#REF!+#REF!+1)),#REF!/#REF!,0) ->  | M4: =IF(AND($A4>#REF!,$A4<(#REF!+#REF!+1)),#REF!/#REF!,0) ->  | N4: =IF(AND($A4>#REF!,$A4<(#REF!+#REF!+1)),#REF!/#REF!,0) ->  | O4: =IF(AND($A4>#REF!,$A4<(#REF!+#REF!+1)),#REF!/#REF!,0) ->  | P4: =IF(AND($A4>#REF!,$A4<(#REF!+#REF!+1)),#REF!/#REF!,0) ->  | Q4: =-SUMIF(#REF!,A4,#REF!)/#REF! -> 
A5: 2 | B5: =VLOOKUP(A5,#REF!,3)/12 ->  | C5: =-#REF!/12 ->  | D5: =-IF($A5>#REF!,0,(#REF!*(1+#REF!)^(INT((A5-1)/12)))/12) ->  | F5: =-#REF!/12 ->  | G5: =-IF($A5>#REF!,0,(#REF!*(1+#REF!)^(INT(($A5-1)/12)))/12) ->  | I5: =IF(AND(A5>#REF!,A5<(#REF!+#REF!+1)),#REF!/#REF!,0) ->  | J5: =IF(AND($A5>#REF!,$A5<(#REF!+#REF!+1)),#REF!/#REF!,0) ->  | K5: =IF(AND($A5>#REF!,$A5<(#REF!+#REF!+1)),#REF!/#REF!,0) ->  | L5: =IF(AND($A5>#REF!,$A5<(#REF!+#REF!+1)),#REF!/#REF!,0) ->  | M5: =IF(AND($A5>#REF!,$A5<(#REF!+#REF!+1)),#REF!/#REF!,0) ->  | N5: =IF(AND($A5>#REF!,$A5<(#REF!+#REF!+1)),#REF!/#REF!,0) ->  | O5: =IF(AND($A5>#REF!,$A5<(#REF!+#REF!+1)),#REF!/#REF!,0) ->  | P5: =IF(AND($A5>#REF!,$A5<(#REF!+#REF!+1)),#REF!/#REF!,0) ->  | Q5: =-SUMIF(#REF!,A5,#REF!)/#REF! -> 
A6: 3 | B6: =VLOOKUP(A6,#REF!,3)/12 ->  | C6: =-#REF!/12 ->  | D6: =-IF($A6>#REF!,0,(#REF!*(1+#REF!)^(INT((A6-1)/12)))/12) ->  | F6: =-#REF!/12 ->  | G6: =-IF($A6>#REF!,0,(#REF!*(1+#REF!)^(INT(($A6-1)/12)))/12) ->  | I6: =IF(AND(A6>#REF!,A6<(#REF!+#REF!+1)),#REF!/#REF!,0) ->  | J6: =IF(AND($A6>#REF!,$A6<(#REF!+#REF!+1)),#REF!/#REF!,0) ->  | K6: =IF(AND($A6>#REF!,$A6<(#REF!+#REF!+1)),#REF!/#REF!,0) ->  | L6: =IF(AND($A6>#REF!,$A6<(#REF!+#REF!+1)),#REF!/#REF!,0) ->  | M6: =IF(AND($A6>#REF!,$A6<(#REF!+#REF!+1)),#REF!/#REF!,0) ->  | N6: =IF(AND($A6>#REF!,$A6<(#REF!+#REF!+1)),#REF!/#REF!,0) ->  | O6: =IF(AND($A6>#REF!,$A6<(#REF!+#REF!+1)),#REF!/#REF!,0) ->  | P6: =IF(AND($A6>#REF!,$A6<(#REF!+#REF!+1)),#REF!/#REF!,0) ->  | Q6: =-SUMIF(#REF!,A6,#REF!)/#REF! ->  | T6: Instructions: This sheet automatically calcuates the results to the Effective Rent tab.
A7: 4 | B7: =VLOOKUP(A7,#REF!,3)/12 ->  | C7: =-#REF!/12 ->  | D7: =-IF($A7>#REF!,0,(#REF!*(1+#REF!)^(INT((A7-1)/12)))/12) ->  | F7: =-#REF!/12 ->  | G7: =-IF($A7>#REF!,0,(#REF!*(1+#REF!)^(INT(($A7-1)/12)))/12) ->  | I7: =IF(AND(A7>#REF!,A7<(#REF!+#REF!+1)),#REF!/#REF!,0) ->  | J7: =IF(AND($A7>#REF!,$A7<(#REF!+#REF!+1)),#REF!/#REF!,0) ->  | K7: =IF(AND($A7>#REF!,$A7<(#REF!+#REF!+1)),#REF!/#REF!,0) ->  | L7: =IF(AND($A7>#REF!,$A7<(#REF!+#REF!+1)),#REF!/#REF!,0) ->  | M7: =IF(AND($A7>#REF!,$A7<(#REF!+#REF!+1)),#REF!/#REF!,0) ->  | N7: =IF(AND($A7>#REF!,$A7<(#REF!+#REF!+1)),#REF!/#REF!,0) ->  | O7: =IF(AND($A7>#REF!,$A7<(#REF!+#REF!+1)),#REF!/#REF!,0) ->  | P7: =IF(AND($A7>#REF!,$A7<(#REF!+#REF!+1)),#REF!/#REF!,0) ->  | Q7: =-SUMIF(#REF!,A7,#REF!)/#REF! -> 
A8: 5 | B8: =VLOOKUP(A8,#REF!,3)/12 ->  | C8: =-#REF!/12 ->  | D8: =-IF($A8>#REF!,0,(#REF!*(1+#REF!)^(INT((A8-1)/12)))/12) ->  | F8: =-#REF!/12 ->  | G8: =-IF($A8>#REF!,0,(#REF!*(1+#REF!)^(INT(($A8-1)/12)))/12) ->  | I8: =IF(AND(A8>#REF!,A8<(#REF!+#REF!+1)),#REF!/#REF!,0) ->  | J8: =IF(AND($A8>#REF!,$A8<(#REF!+#REF!+1)),#REF!/#REF!,0) ->  | K8: =IF(AND($A8>#REF!,$A8<(#REF!+#REF!+1)),#REF!/#REF!,0) ->  | L8: =IF(AND($A8>#REF!,$A8<(#REF!+#REF!+1)),#REF!/#REF!,0) ->  | M8: =IF(AND($A8>#REF!,$A8<(#REF!+#REF!+1)),#REF!/#REF!,0) ->  | N8: =IF(AND($A8>#REF!,$A8<(#REF!+#REF!+1)),#REF!/#REF!,0) ->  | O8: =IF(AND($A8>#REF!,$A8<(#REF!+#REF!+1)),#REF!/#REF!,0) ->  | P8: =IF(AND($A8>#REF!,$A8<(#REF!+#REF!+1)),#REF!/#REF!,0) ->  | Q8: =-SUMIF(#REF!,A8,#REF!)/#REF! -> 
A9: 6 | B9: =VLOOKUP(A9,#REF!,3)/12 ->  | C9: =-#REF!/12 ->  | D9: =-IF($A9>#REF!,0,(#REF!*(1+#REF!)^(INT((A9-1)/12)))/12) ->  | F9: =-#REF!/12 ->  | G9: =-IF($A9>#REF!,0,(#REF!*(1+#REF!)^(INT(($A9-1)/12)))/12) ->  | I9: =IF(AND(A9>#REF!,A9<(#REF!+#REF!+1)),#REF!/#REF!,0) ->  | J9: =IF(AND($A9>#REF!,$A9<(#REF!+#REF!+1)),#REF!/#REF!,0) ->  | K9: =IF(AND($A9>#REF!,$A9<(#REF!+#REF!+1)),#REF!/#REF!,0) ->  | L9: =IF(AND($A9>#REF!,$A9<(#REF!+#REF!+1)),#REF!/#REF!,0) ->  | M9: =IF(AND($A9>#REF!,$A9<(#REF!+#REF!+1)),#REF!/#REF!,0) ->  | N9: =IF(AND($A9>#REF!,$A9<(#REF!+#REF!+1)),#REF!/#REF!,0) ->  | O9: =IF(AND($A9>#REF!,$A9<(#REF!+#REF!+1)),#REF!/#REF!,0) ->  | P9: =IF(AND($A9>#REF!,$A9<(#REF!+#REF!+1)),#REF!/#REF!,0) ->  | Q9: =-SUMIF(#REF!,A9,#REF!)/#REF! -> 
A10: 7 | B10: =VLOOKUP(A10,#REF!,3)/12 ->  | C10: =-#REF!/12 ->  | D10: =-IF($A10>#REF!,0,(#REF!*(1+#REF!)^(INT((A10-1)/12)))/12) ->  | F10: =-#REF!/12 ->  | G10: =-IF($A10>#REF!,0,(#REF!*(1+#REF!)^(INT(($A10-1)/12)))/12) ->  | I10: =IF(AND(A10>#REF!,A10<(#REF!+#REF!+1)),#REF!/#REF!,0) ->  | J10: =IF(AND($A10>#REF!,$A10<(#REF!+#REF!+1)),#REF!/#REF!,0) ->  | K10: =IF(AND($A10>#REF!,$A10<(#REF!+#REF!+1)),#REF!/#REF!,0) ->  | L10: =IF(AND($A10>#REF!,$A10<(#REF!+#REF!+1)),#REF!/#REF!,0) ->  | M10: =IF(AND($A10>#REF!,$A10<(#REF!+#REF!+1)),#REF!/#REF!,0) ->  | N10: =IF(AND($A10>#REF!,$A10<(#REF!+#REF!+1)),#REF!/#REF!,0) ->  | O10: =IF(AND($A10>#REF!,$A10<(#REF!+#REF!+1)),#REF!/#REF!,0) ->  | P10: =IF(AND($A10>#REF!,$A10<(#REF!+#REF!+1)),#REF!/#REF!,0) ->  | Q10: =-SUMIF(#REF!,A10,#REF!)/#REF! -> 
A11: 8 | B11: =VLOOKUP(A11,#REF!,3)/12 ->  | C11: =-#REF!/12 ->  | D11: =-IF($A11>#REF!,0,(#REF!*(1+#REF!)^(INT((A11-1)/12)))/12) ->  | F11: =-#REF!/12 ->  | G11: =-IF($A11>#REF!,0,(#REF!*(1+#REF!)^(INT(($A11-1)/12)))/12) ->  | I11: =IF(AND(A11>#REF!,A11<(#REF!+#REF!+1)),#REF!/#REF!,0) ->  | J11: =IF(AND($A11>#REF!,$A11<(#REF!+#REF!+1)),#REF!/#REF!,0) ->  | K11: =IF(AND($A11>#REF!,$A11<(#REF!+#REF!+1)),#REF!/#REF!,0) ->  | L11: =IF(AND($A11>#REF!,$A11<(#REF!+#REF!+1)),#REF!/#REF!,0) ->  | M11: =IF(AND($A11>#REF!,$A11<(#REF!+#REF!+1)),#REF!/#REF!,0) ->  | N11: =IF(AND($A11>#REF!,$A11<(#REF!+#REF!+1)),#REF!/#REF!,0) ->  | O11: =IF(AND($A11>#REF!,$A11<(#REF!+#REF!+1)),#REF!/#REF!,0) ->  | P11: =IF(AND($A11>#REF!,$A11<(#REF!+#REF!+1)),#REF!/#REF!,0) ->  | Q11: =-SUMIF(#REF!,A11,#REF!)/#REF! -> 
A12: 9 | B12: =VLOOKUP(A12,#REF!,3)/12 ->  | C12: =-#REF!/12 ->  | D12: =-IF($A12>#REF!,0,(#REF!*(1+#REF!)^(INT((A12-1)/12)))/12) ->  | F12: =-#REF!/12 ->  | G12: =-IF($A12>#REF!,0,(#REF!*(1+#REF!)^(INT(($A12-1)/12)))/12) ->  | I12: =IF(AND(A12>#REF!,A12<(#REF!+#REF!+1)),#REF!/#REF!,0) ->  | J12: =IF(AND($A12>#REF!,$A12<(#REF!+#REF!+1)),#REF!/#REF!,0) ->  | K12: =IF(AND($A12>#REF!,$A12<(#REF!+#REF!+1)),#REF!/#REF!,0) ->  | L12: =IF(AND($A12>#REF!,$A12<(#REF!+#REF!+1)),#REF!/#REF!,0) ->  | M12: =IF(AND($A12>#REF!,$A12<(#REF!+#REF!+1)),#REF!/#REF!,0) ->  | N12: =IF(AND($A12>#REF!,$A12<(#REF!+#REF!+1)),#REF!/#REF!,0) ->  | O12: =IF(AND($A12>#REF!,$A12<(#REF!+#REF!+1)),#REF!/#REF!,0) ->  | P12: =IF(AND($A12>#REF!,$A12<(#REF!+#REF!+1)),#REF!/#REF!,0) ->  | Q12: =-SUMIF(#REF!,A12,#REF!)/#REF! -> 
A13: 10 | B13: =VLOOKUP(A13,#REF!,3)/12 ->  | C13: =-#REF!/12 ->  | D13: =-IF($A13>#REF!,0,(#REF!*(1+#REF!)^(INT((A13-1)/12)))/12) ->  | F13: =-#REF!/12 ->  | G13: =-IF($A13>#REF!,0,(#REF!*(1+#REF!)^(INT(($A13-1)/12)))/12) ->  | I13: =IF(AND(A13>#REF!,A13<(#REF!+#REF!+1)),#REF!/#REF!,0) ->  | J13: =IF(AND($A13>#REF!,$A13<(#REF!+#REF!+1)),#REF!/#REF!,0) ->  | K13: =IF(AND($A13>#REF!,$A13<(#REF!+#REF!+1)),#REF!/#REF!,0) ->  | L13: =IF(AND($A13>#REF!,$A13<(#REF!+#REF!+1)),#REF!/#REF!,0) ->  | M13: =IF(AND($A13>#REF!,$A13<(#REF!+#REF!+1)),#REF!/#REF!,0) ->  | N13: =IF(AND($A13>#REF!,$A13<(#REF!+#REF!+1)),#REF!/#REF!,0) ->  | O13: =IF(AND($A13>#REF!,$A13<(#REF!+#REF!+1)),#REF!/#REF!,0) ->  | P13: =IF(AND($A13>#REF!,$A13<(#REF!+#REF!+1)),#REF!/#REF!,0) ->  | Q13: =-SUMIF(#REF!,A13,#REF!)/#REF! -> 
A14: 11 | B14: =VLOOKUP(A14,#REF!,3)/12 ->  | C14: =-#REF!/12 ->  | D14: =-IF($A14>#REF!,0,(#REF!*(1+#REF!)^(INT((A14-1)/12)))/12) ->  | F14: =-#REF!/12 ->  | G14: =-IF($A14>#REF!,0,(#REF!*(1+#REF!)^(INT(($A14-1)/12)))/12) ->  | I14: =IF(AND(A14>#REF!,A14<(#REF!+#REF!+1)),#REF!/#REF!,0) ->  | J14: =IF(AND($A14>#REF!,$A14<(#REF!+#REF!+1)),#REF!/#REF!,0) ->  | K14: =IF(AND($A14>#REF!,$A14<(#REF!+#REF!+1)),#REF!/#REF!,0) ->  | L14: =IF(AND($A14>#REF!,$A14<(#REF!+#REF!+1)),#REF!/#REF!,0) ->  | M14: =IF(AND($A14>#REF!,$A14<(#REF!+#REF!+1)),#REF!/#REF!,0) ->  | N14: =IF(AND($A14>#REF!,$A14<(#REF!+#REF!+1)),#REF!/#REF!,0) ->  | O14: =IF(AND($A14>#REF!,$A14<(#REF!+#REF!+1)),#REF!/#REF!,0) ->  | P14: =IF(AND($A14>#REF!,$A14<(#REF!+#REF!+1)),#REF!/#REF!,0) ->  | Q14: =-SUMIF(#REF!,A14,#REF!)/#REF! -> 
A15: 12 | B15: =VLOOKUP(A15,#REF!,3)/12 ->  | C15: =-#REF!/12 ->  | D15: =-IF($A15>#REF!,0,(#REF!*(1+#REF!)^(INT((A15-1)/12)))/12) ->  | F15: =-#REF!/12 ->  | G15: =-IF($A15>#REF!,0,(#REF!*(1+#REF!)^(INT(($A15-1)/12)))/12) ->  | I15: =IF(AND(A15>#REF!,A15<(#REF!+#REF!+1)),#REF!/#REF!,0) ->  | J15: =IF(AND($A15>#REF!,$A15<(#REF!+#REF!+1)),#REF!/#REF!,0) ->  | K15: =IF(AND($A15>#REF!,$A15<(#REF!+#REF!+1)),#REF!/#REF!,0) ->  | L15: =IF(AND($A15>#REF!,$A15<(#REF!+#REF!+1)),#REF!/#REF!,0) ->  | M15: =IF(AND($A15>#REF!,$A15<(#REF!+#REF!+1)),#REF!/#REF!,0) ->  | N15: =IF(AND($A15>#REF!,$A15<(#REF!+#REF!+1)),#REF!/#REF!,0) ->  | O15: =IF(AND($A15>#REF!,$A15<(#REF!+#REF!+1)),#REF!/#REF!,0) ->  | P15: =IF(AND($A15>#REF!,$A15<(#REF!+#REF!+1)),#REF!/#REF!,0) ->  | Q15: =-SUMIF(#REF!,A15,#REF!)/#REF! -> 
A16: 13 | B16: =VLOOKUP(A16,#REF!,3)/12 ->  | C16: =-#REF!/12 ->  | D16: =-IF($A16>#REF!,0,(#REF!*(1+#REF!)^(INT((A16-1)/12)))/12) ->  | F16: =-#REF!/12 ->  | G16: =-IF($A16>#REF!,0,(#REF!*(1+#REF!)^(INT(($A16-1)/12)))/12) ->  | I16: =IF(AND(A16>#REF!,A16<(#REF!+#REF!+1)),#REF!/#REF!,0) ->  | J16: =IF(AND($A16>#REF!,$A16<(#REF!+#REF!+1)),#REF!/#REF!,0) ->  | K16: =IF(AND($A16>#REF!,$A16<(#REF!+#REF!+1)),#REF!/#REF!,0) ->  | L16: =IF(AND($A16>#REF!,$A16<(#REF!+#REF!+1)),#REF!/#REF!,0) ->  | M16: =IF(AND($A16>#REF!,$A16<(#REF!+#REF!+1)),#REF!/#REF!,0) ->  | N16: =IF(AND($A16>#REF!,$A16<(#REF!+#REF!+1)),#REF!/#REF!,0) ->  | O16: =IF(AND($A16>#REF!,$A16<(#REF!+#REF!+1)),#REF!/#REF!,0) ->  | P16: =IF(AND($A16>#REF!,$A16<(#REF!+#REF!+1)),#REF!/#REF!,0) ->  | Q16: =-SUMIF(#REF!,A16,#REF!)/#REF! -> 
A17: 14 | B17: =VLOOKUP(A17,#REF!,3)/12 ->  | C17: =-#REF!/12 ->  | D17: =-IF($A17>#REF!,0,(#REF!*(1+#REF!)^(INT((A17-1)/12)))/12) ->  | F17: =-#REF!/12 ->  | G17: =-IF($A17>#REF!,0,(#REF!*(1+#REF!)^(INT(($A17-1)/12)))/12) ->  | I17: =IF(AND(A17>#REF!,A17<(#REF!+#REF!+1)),#REF!/#REF!,0) ->  | J17: =IF(AND($A17>#REF!,$A17<(#REF!+#REF!+1)),#REF!/#REF!,0) ->  | K17: =IF(AND($A17>#REF!,$A17<(#REF!+#REF!+1)),#REF!/#REF!,0) ->  | L17: =IF(AND($A17>#REF!,$A17<(#REF!+#REF!+1)),#REF!/#REF!,0) ->  | M17: =IF(AND($A17>#REF!,$A17<(#REF!+#REF!+1)),#REF!/#REF!,0) ->  | N17: =IF(AND($A17>#REF!,$A17<(#REF!+#REF!+1)),#REF!/#REF!,0) ->  | O17: =IF(AND($A17>#REF!,$A17<(#REF!+#REF!+1)),#REF!/#REF!,0) ->  | P17: =IF(AND($A17>#REF!,$A17<(#REF!+#REF!+1)),#REF!/#REF!,0) ->  | Q17: =-SUMIF(#REF!,A17,#REF!)/#REF! -> 
A18: 15 | B18: =VLOOKUP(A18,#REF!,3)/12 ->  | C18: =-#REF!/12 ->  | D18: =-IF($A18>#REF!,0,(#REF!*(1+#REF!)^(INT((A18-1)/12)))/12) ->  | F18: =-#REF!/12 ->  | G18: =-IF($A18>#REF!,0,(#REF!*(1+#REF!)^(INT(($A18-1)/12)))/12) ->  | I18: =IF(AND(A18>#REF!,A18<(#REF!+#REF!+1)),#REF!/#REF!,0) ->  | J18: =IF(AND($A18>#REF!,$A18<(#REF!+#REF!+1)),#REF!/#REF!,0) ->  | K18: =IF(AND($A18>#REF!,$A18<(#REF!+#REF!+1)),#REF!/#REF!,0) ->  | L18: =IF(AND($A18>#REF!,$A18<(#REF!+#REF!+1)),#REF!/#REF!,0) ->  | M18: =IF(AND($A18>#REF!,$A18<(#REF!+#REF!+1)),#REF!/#REF!,0) ->  | N18: =IF(AND($A18>#REF!,$A18<(#REF!+#REF!+1)),#REF!/#REF!,0) ->  | O18: =IF(AND($A18>#REF!,$A18<(#REF!+#REF!+1)),#REF!/#REF!,0) ->  | P18: =IF(AND($A18>#REF!,$A18<(#REF!+#REF!+1)),#REF!/#REF!,0) ->  | Q18: =-SUMIF(#REF!,A18,#REF!)/#REF! -> 
A19: 16 | B19: =VLOOKUP(A19,#REF!,3)/12 ->  | C19: =-#REF!/12 ->  | D19: =-IF($A19>#REF!,0,(#REF!*(1+#REF!)^(INT((A19-1)/12)))/12) ->  | F19: =-#REF!/12 ->  | G19: =-IF($A19>#REF!,0,(#REF!*(1+#REF!)^(INT(($A19-1)/12)))/12) ->  | I19: =IF(AND(A19>#REF!,A19<(#REF!+#REF!+1)),#REF!/#REF!,0) ->  | J19: =IF(AND($A19>#REF!,$A19<(#REF!+#REF!+1)),#REF!/#REF!,0) ->  | K19: =IF(AND($A19>#REF!,$A19<(#REF!+#REF!+1)),#REF!/#REF!,0) ->  | L19: =IF(AND($A19>#REF!,$A19<(#REF!+#REF!+1)),#REF!/#REF!,0) ->  | M19: =IF(AND($A19>#REF!,$A19<(#REF!+#REF!+1)),#REF!/#REF!,0) ->  | N19: =IF(AND($A19>#REF!,$A19<(#REF!+#REF!+1)),#REF!/#REF!,0) ->  | O19: =IF(AND($A19>#REF!,$A19<(#REF!+#REF!+1)),#REF!/#REF!,0) ->  | P19: =IF(AND($A19>#REF!,$A19<(#REF!+#REF!+1)),#REF!/#REF!,0) ->  | Q19: =-SUMIF(#REF!,A19,#REF!)/#REF! -> 
A20: 17 | B20: =VLOOKUP(A20,#REF!,3)/12 ->  | C20: =-#REF!/12 ->  | D20: =-IF($A20>#REF!,0,(#REF!*(1+#REF!)^(INT((A20-1)/12)))/12) ->  | F20: =-#REF!/12 ->  | G20: =-IF($A20>#REF!,0,(#REF!*(1+#REF!)^(INT(($A20-1)/12)))/12) ->  | I20: =IF(AND(A20>#REF!,A20<(#REF!+#REF!+1)),#REF!/#REF!,0) ->  | J20: =IF(AND($A20>#REF!,$A20<(#REF!+#REF!+1)),#REF!/#REF!,0) ->  | K20: =IF(AND($A20>#REF!,$A20<(#REF!+#REF!+1)),#REF!/#REF!,0) ->  | L20: =IF(AND($A20>#REF!,$A20<(#REF!+#REF!+1)),#REF!/#REF!,0) ->  | M20: =IF(AND($A20>#REF!,$A20<(#REF!+#REF!+1)),#REF!/#REF!,0) ->  | N20: =IF(AND($A20>#REF!,$A20<(#REF!+#REF!+1)),#REF!/#REF!,0) ->  | O20: =IF(AND($A20>#REF!,$A20<(#REF!+#REF!+1)),#REF!/#REF!,0) ->  | P20: =IF(AND($A20>#REF!,$A20<(#REF!+#REF!+1)),#REF!/#REF!,0) ->  | Q20: =-SUMIF(#REF!,A20,#REF!)/#REF! -> 
A21: 18 | B21: =VLOOKUP(A21,#REF!,3)/12 ->  | C21: =-#REF!/12 ->  | D21: =-IF($A21>#REF!,0,(#REF!*(1+#REF!)^(INT((A21-1)/12)))/12) ->  | F21: =-#REF!/12 ->  | G21: =-IF($A21>#REF!,0,(#REF!*(1+#REF!)^(INT(($A21-1)/12)))/12) ->  | I21: =IF(AND(A21>#REF!,A21<(#REF!+#REF!+1)),#REF!/#REF!,0) ->  | J21: =IF(AND($A21>#REF!,$A21<(#REF!+#REF!+1)),#REF!/#REF!,0) ->  | K21: =IF(AND($A21>#REF!,$A21<(#REF!+#REF!+1)),#REF!/#REF!,0) ->  | L21: =IF(AND($A21>#REF!,$A21<(#REF!+#REF!+1)),#REF!/#REF!,0) ->  | M21: =IF(AND($A21>#REF!,$A21<(#REF!+#REF!+1)),#REF!/#REF!,0) ->  | N21: =IF(AND($A21>#REF!,$A21<(#REF!+#REF!+1)),#REF!/#REF!,0) ->  | O21: =IF(AND($A21>#REF!,$A21<(#REF!+#REF!+1)),#REF!/#REF!,0) ->  | P21: =IF(AND($A21>#REF!,$A21<(#REF!+#REF!+1)),#REF!/#REF!,0) ->  | Q21: =-SUMIF(#REF!,A21,#REF!)/#REF! -> 
A22: 19 | B22: =VLOOKUP(A22,#REF!,3)/12 ->  | C22: =-#REF!/12 ->  | D22: =-IF($A22>#REF!,0,(#REF!*(1+#REF!)^(INT((A22-1)/12)))/12) ->  | F22: =-#REF!/12 ->  | G22: =-IF($A22>#REF!,0,(#REF!*(1+#REF!)^(INT(($A22-1)/12)))/12) ->  | I22: =IF(AND(A22>#REF!,A22<(#REF!+#REF!+1)),#REF!/#REF!,0) ->  | J22: =IF(AND($A22>#REF!,$A22<(#REF!+#REF!+1)),#REF!/#REF!,0) ->  | K22: =IF(AND($A22>#REF!,$A22<(#REF!+#REF!+1)),#REF!/#REF!,0) ->  | L22: =IF(AND($A22>#REF!,$A22<(#REF!+#REF!+1)),#REF!/#REF!,0) ->  | M22: =IF(AND($A22>#REF!,$A22<(#REF!+#REF!+1)),#REF!/#REF!,0) ->  | N22: =IF(AND($A22>#REF!,$A22<(#REF!+#REF!+1)),#REF!/#REF!,0) ->  | O22: =IF(AND($A22>#REF!,$A22<(#REF!+#REF!+1)),#REF!/#REF!,0) ->  | P22: =IF(AND($A22>#REF!,$A22<(#REF!+#REF!+1)),#REF!/#REF!,0) ->  | Q22: =-SUMIF(#REF!,A22,#REF!)/#REF! -> 
A23: 20 | B23: =VLOOKUP(A23,#REF!,3)/12 ->  | C23: =-#REF!/12 ->  | D23: =-IF($A23>#REF!,0,(#REF!*(1+#REF!)^(INT((A23-1)/12)))/12) ->  | F23: =-#REF!/12 ->  | G23: =-IF($A23>#REF!,0,(#REF!*(1+#REF!)^(INT(($A23-1)/12)))/12) ->  | I23: =IF(AND(A23>#REF!,A23<(#REF!+#REF!+1)),#REF!/#REF!,0) ->  | J23: =IF(AND($A23>#REF!,$A23<(#REF!+#REF!+1)),#REF!/#REF!,0) ->  | K23: =IF(AND($A23>#REF!,$A23<(#REF!+#REF!+1)),#REF!/#REF!,0) ->  | L23: =IF(AND($A23>#REF!,$A23<(#REF!+#REF!+1)),#REF!/#REF!,0) ->  | M23: =IF(AND($A23>#REF!,$A23<(#REF!+#REF!+1)),#REF!/#REF!,0) ->  | N23: =IF(AND($A23>#REF!,$A23<(#REF!+#REF!+1)),#REF!/#REF!,0) ->  | O23: =IF(AND($A23>#REF!,$A23<(#REF!+#REF!+1)),#REF!/#REF!,0) ->  | P23: =IF(AND($A23>#REF!,$A23<(#REF!+#REF!+1)),#REF!/#REF!,0) ->  | Q23: =-SUMIF(#REF!,A23,#REF!)/#REF! -> 
A24: 21 | B24: =VLOOKUP(A24,#REF!,3)/12 ->  | C24: =-#REF!/12 ->  | D24: =-IF($A24>#REF!,0,(#REF!*(1+#REF!)^(INT((A24-1)/12)))/12) ->  | F24: =-#REF!/12 ->  | G24: =-IF($A24>#REF!,0,(#REF!*(1+#REF!)^(INT(($A24-1)/12)))/12) ->  | I24: =IF(AND(A24>#REF!,A24<(#REF!+#REF!+1)),#REF!/#REF!,0) ->  | J24: =IF(AND($A24>#REF!,$A24<(#REF!+#REF!+1)),#REF!/#REF!,0) ->  | K24: =IF(AND($A24>#REF!,$A24<(#REF!+#REF!+1)),#REF!/#REF!,0) ->  | L24: =IF(AND($A24>#REF!,$A24<(#REF!+#REF!+1)),#REF!/#REF!,0) ->  | M24: =IF(AND($A24>#REF!,$A24<(#REF!+#REF!+1)),#REF!/#REF!,0) ->  | N24: =IF(AND($A24>#REF!,$A24<(#REF!+#REF!+1)),#REF!/#REF!,0) ->  | O24: =IF(AND($A24>#REF!,$A24<(#REF!+#REF!+1)),#REF!/#REF!,0) ->  | P24: =IF(AND($A24>#REF!,$A24<(#REF!+#REF!+1)),#REF!/#REF!,0) ->  | Q24: =-SUMIF(#REF!,A24,#REF!)/#REF! -> 
A25: 22 | B25: =VLOOKUP(A25,#REF!,3)/12 ->  | C25: =-#REF!/12 ->  | D25: =-IF($A25>#REF!,0,(#REF!*(1+#REF!)^(INT((A25-1)/12)))/12) ->  | F25: =-#REF!/12 ->  | G25: =-IF($A25>#REF!,0,(#REF!*(1+#REF!)^(INT(($A25-1)/12)))/12) ->  | I25: =IF(AND(A25>#REF!,A25<(#REF!+#REF!+1)),#REF!/#REF!,0) ->  | J25: =IF(AND($A25>#REF!,$A25<(#REF!+#REF!+1)),#REF!/#REF!,0) ->  | K25: =IF(AND($A25>#REF!,$A25<(#REF!+#REF!+1)),#REF!/#REF!,0) ->  | L25: =IF(AND($A25>#REF!,$A25<(#REF!+#REF!+1)),#REF!/#REF!,0) ->  | M25: =IF(AND($A25>#REF!,$A25<(#REF!+#REF!+1)),#REF!/#REF!,0) ->  | N25: =IF(AND($A25>#REF!,$A25<(#REF!+#REF!+1)),#REF!/#REF!,0) ->  | O25: =IF(AND($A25>#REF!,$A25<(#REF!+#REF!+1)),#REF!/#REF!,0) ->  | P25: =IF(AND($A25>#REF!,$A25<(#REF!+#REF!+1)),#REF!/#REF!,0) ->  | Q25: =-SUMIF(#REF!,A25,#REF!)/#REF! -> 
A26: 23 | B26: =VLOOKUP(A26,#REF!,3)/12 ->  | C26: =-#REF!/12 ->  | D26: =-IF($A26>#REF!,0,(#REF!*(1+#REF!)^(INT((A26-1)/12)))/12) ->  | F26: =-#REF!/12 ->  | G26: =-IF($A26>#REF!,0,(#REF!*(1+#REF!)^(INT(($A26-1)/12)))/12) ->  | I26: =IF(AND(A26>#REF!,A26<(#REF!+#REF!+1)),#REF!/#REF!,0) ->  | J26: =IF(AND($A26>#REF!,$A26<(#REF!+#REF!+1)),#REF!/#REF!,0) ->  | K26: =IF(AND($A26>#REF!,$A26<(#REF!+#REF!+1)),#REF!/#REF!,0) ->  | L26: =IF(AND($A26>#REF!,$A26<(#REF!+#REF!+1)),#REF!/#REF!,0) ->  | M26: =IF(AND($A26>#REF!,$A26<(#REF!+#REF!+1)),#REF!/#REF!,0) ->  | N26: =IF(AND($A26>#REF!,$A26<(#REF!+#REF!+1)),#REF!/#REF!,0) ->  | O26: =IF(AND($A26>#REF!,$A26<(#REF!+#REF!+1)),#REF!/#REF!,0) ->  | P26: =IF(AND($A26>#REF!,$A26<(#REF!+#REF!+1)),#REF!/#REF!,0) ->  | Q26: =-SUMIF(#REF!,A26,#REF!)/#REF! -> 
A27: 24 | B27: =VLOOKUP(A27,#REF!,3)/12 ->  | C27: =-#REF!/12 ->  | D27: =-IF($A27>#REF!,0,(#REF!*(1+#REF!)^(INT((A27-1)/12)))/12) ->  | F27: =-#REF!/12 ->  | G27: =-IF($A27>#REF!,0,(#REF!*(1+#REF!)^(INT(($A27-1)/12)))/12) ->  | I27: =IF(AND(A27>#REF!,A27<(#REF!+#REF!+1)),#REF!/#REF!,0) ->  | J27: =IF(AND($A27>#REF!,$A27<(#REF!+#REF!+1)),#REF!/#REF!,0) ->  | K27: =IF(AND($A27>#REF!,$A27<(#REF!+#REF!+1)),#REF!/#REF!,0) ->  | L27: =IF(AND($A27>#REF!,$A27<(#REF!+#REF!+1)),#REF!/#REF!,0) ->  | M27: =IF(AND($A27>#REF!,$A27<(#REF!+#REF!+1)),#REF!/#REF!,0) ->  | N27: =IF(AND($A27>#REF!,$A27<(#REF!+#REF!+1)),#REF!/#REF!,0) ->  | O27: =IF(AND($A27>#REF!,$A27<(#REF!+#REF!+1)),#REF!/#REF!,0) ->  | P27: =IF(AND($A27>#REF!,$A27<(#REF!+#REF!+1)),#REF!/#REF!,0) ->  | Q27: =-SUMIF(#REF!,A27,#REF!)/#REF! -> 
A28: 25 | B28: =VLOOKUP(A28,#REF!,3)/12 ->  | C28: =-#REF!/12 ->  | D28: =-IF($A28>#REF!,0,(#REF!*(1+#REF!)^(INT((A28-1)/12)))/12) ->  | F28: =-#REF!/12 ->  | G28: =-IF($A28>#REF!,0,(#REF!*(1+#REF!)^(INT(($A28-1)/12)))/12) ->  | I28: =IF(AND(A28>#REF!,A28<(#REF!+#REF!+1)),#REF!/#REF!,0) ->  | J28: =IF(AND($A28>#REF!,$A28<(#REF!+#REF!+1)),#REF!/#REF!,0) ->  | K28: =IF(AND($A28>#REF!,$A28<(#REF!+#REF!+1)),#REF!/#REF!,0) ->  | L28: =IF(AND($A28>#REF!,$A28<(#REF!+#REF!+1)),#REF!/#REF!,0) ->  | M28: =IF(AND($A28>#REF!,$A28<(#REF!+#REF!+1)),#REF!/#REF!,0) ->  | N28: =IF(AND($A28>#REF!,$A28<(#REF!+#REF!+1)),#REF!/#REF!,0) ->  | O28: =IF(AND($A28>#REF!,$A28<(#REF!+#REF!+1)),#REF!/#REF!,0) ->  | P28: =IF(AND($A28>#REF!,$A28<(#REF!+#REF!+1)),#REF!/#REF!,0) ->  | Q28: =-SUMIF(#REF!,A28,#REF!)/#REF! -> 
A29: 26 | B29: =VLOOKUP(A29,#REF!,3)/12 ->  | C29: =-#REF!/12 ->  | D29: =-IF($A29>#REF!,0,(#REF!*(1+#REF!)^(INT((A29-1)/12)))/12) ->  | F29: =-#REF!/12 ->  | G29: =-IF($A29>#REF!,0,(#REF!*(1+#REF!)^(INT(($A29-1)/12)))/12) ->  | I29: =IF(AND(A29>#REF!,A29<(#REF!+#REF!+1)),#REF!/#REF!,0) ->  | J29: =IF(AND($A29>#REF!,$A29<(#REF!+#REF!+1)),#REF!/#REF!,0) ->  | K29: =IF(AND($A29>#REF!,$A29<(#REF!+#REF!+1)),#REF!/#REF!,0) ->  | L29: =IF(AND($A29>#REF!,$A29<(#REF!+#REF!+1)),#REF!/#REF!,0) ->  | M29: =IF(AND($A29>#REF!,$A29<(#REF!+#REF!+1)),#REF!/#REF!,0) ->  | N29: =IF(AND($A29>#REF!,$A29<(#REF!+#REF!+1)),#REF!/#REF!,0) ->  | O29: =IF(AND($A29>#REF!,$A29<(#REF!+#REF!+1)),#REF!/#REF!,0) ->  | P29: =IF(AND($A29>#REF!,$A29<(#REF!+#REF!+1)),#REF!/#REF!,0) ->  | Q29: =-SUMIF(#REF!,A29,#REF!)/#REF! -> 
A30: 27 | B30: =VLOOKUP(A30,#REF!,3)/12 ->  | C30: =-#REF!/12 ->  | D30: =-IF($A30>#REF!,0,(#REF!*(1+#REF!)^(INT((A30-1)/12)))/12) ->  | F30: =-#REF!/12 ->  | G30: =-IF($A30>#REF!,0,(#REF!*(1+#REF!)^(INT(($A30-1)/12)))/12) ->  | I30: =IF(AND(A30>#REF!,A30<(#REF!+#REF!+1)),#REF!/#REF!,0) ->  | J30: =IF(AND($A30>#REF!,$A30<(#REF!+#REF!+1)),#REF!/#REF!,0) ->  | K30: =IF(AND($A30>#REF!,$A30<(#REF!+#REF!+1)),#REF!/#REF!,0) ->  | L30: =IF(AND($A30>#REF!,$A30<(#REF!+#REF!+1)),#REF!/#REF!,0) ->  | M30: =IF(AND($A30>#REF!,$A30<(#REF!+#REF!+1)),#REF!/#REF!,0) ->  | N30: =IF(AND($A30>#REF!,$A30<(#REF!+#REF!+1)),#REF!/#REF!,0) ->  | O30: =IF(AND($A30>#REF!,$A30<(#REF!+#REF!+1)),#REF!/#REF!,0) ->  | P30: =IF(AND($A30>#REF!,$A30<(#REF!+#REF!+1)),#REF!/#REF!,0) ->  | Q30: =-SUMIF(#REF!,A30,#REF!)/#REF! -> 
A31: 28 | B31: =VLOOKUP(A31,#REF!,3)/12 ->  | C31: =-#REF!/12 ->  | D31: =-IF($A31>#REF!,0,(#REF!*(1+#REF!)^(INT((A31-1)/12)))/12) ->  | F31: =-#REF!/12 ->  | G31: =-IF($A31>#REF!,0,(#REF!*(1+#REF!)^(INT(($A31-1)/12)))/12) ->  | I31: =IF(AND(A31>#REF!,A31<(#REF!+#REF!+1)),#REF!/#REF!,0) ->  | J31: =IF(AND($A31>#REF!,$A31<(#REF!+#REF!+1)),#REF!/#REF!,0) ->  | K31: =IF(AND($A31>#REF!,$A31<(#REF!+#REF!+1)),#REF!/#REF!,0) ->  | L31: =IF(AND($A31>#REF!,$A31<(#REF!+#REF!+1)),#REF!/#REF!,0) ->  | M31: =IF(AND($A31>#REF!,$A31<(#REF!+#REF!+1)),#REF!/#REF!,0) ->  | N31: =IF(AND($A31>#REF!,$A31<(#REF!+#REF!+1)),#REF!/#REF!,0) ->  | O31: =IF(AND($A31>#REF!,$A31<(#REF!+#REF!+1)),#REF!/#REF!,0) ->  | P31: =IF(AND($A31>#REF!,$A31<(#REF!+#REF!+1)),#REF!/#REF!,0) ->  | Q31: =-SUMIF(#REF!,A31,#REF!)/#REF! -> 
A32: 29 | B32: =VLOOKUP(A32,#REF!,3)/12 ->  | C32: =-#REF!/12 ->  | D32: =-IF($A32>#REF!,0,(#REF!*(1+#REF!)^(INT((A32-1)/12)))/12) ->  | F32: =-#REF!/12 ->  | G32: =-IF($A32>#REF!,0,(#REF!*(1+#REF!)^(INT(($A32-1)/12)))/12) ->  | I32: =IF(AND(A32>#REF!,A32<(#REF!+#REF!+1)),#REF!/#REF!,0) ->  | J32: =IF(AND($A32>#REF!,$A32<(#REF!+#REF!+1)),#REF!/#REF!,0) ->  | K32: =IF(AND($A32>#REF!,$A32<(#REF!+#REF!+1)),#REF!/#REF!,0) ->  | L32: =IF(AND($A32>#REF!,$A32<(#REF!+#REF!+1)),#REF!/#REF!,0) ->  | M32: =IF(AND($A32>#REF!,$A32<(#REF!+#REF!+1)),#REF!/#REF!,0) ->  | N32: =IF(AND($A32>#REF!,$A32<(#REF!+#REF!+1)),#REF!/#REF!,0) ->  | O32: =IF(AND($A32>#REF!,$A32<(#REF!+#REF!+1)),#REF!/#REF!,0) ->  | P32: =IF(AND($A32>#REF!,$A32<(#REF!+#REF!+1)),#REF!/#REF!,0) ->  | Q32: =-SUMIF(#REF!,A32,#REF!)/#REF! -> 
A33: 30 | B33: =VLOOKUP(A33,#REF!,3)/12 ->  | C33: =-#REF!/12 ->  | D33: =-IF($A33>#REF!,0,(#REF!*(1+#REF!)^(INT((A33-1)/12)))/12) ->  | F33: =-#REF!/12 ->  | G33: =-IF($A33>#REF!,0,(#REF!*(1+#REF!)^(INT(($A33-1)/12)))/12) ->  | I33: =IF(AND(A33>#REF!,A33<(#REF!+#REF!+1)),#REF!/#REF!,0) ->  | J33: =IF(AND($A33>#REF!,$A33<(#REF!+#REF!+1)),#REF!/#REF!,0) ->  | K33: =IF(AND($A33>#REF!,$A33<(#REF!+#REF!+1)),#REF!/#REF!,0) ->  | L33: =IF(AND($A33>#REF!,$A33<(#REF!+#REF!+1)),#REF!/#REF!,0) ->  | M33: =IF(AND($A33>#REF!,$A33<(#REF!+#REF!+1)),#REF!/#REF!,0) ->  | N33: =IF(AND($A33>#REF!,$A33<(#REF!+#REF!+1)),#REF!/#REF!,0) ->  | O33: =IF(AND($A33>#REF!,$A33<(#REF!+#REF!+1)),#REF!/#REF!,0) ->  | P33: =IF(AND($A33>#REF!,$A33<(#REF!+#REF!+1)),#REF!/#REF!,0) ->  | Q33: =-SUMIF(#REF!,A33,#REF!)/#REF! -> 
A34: 31 | B34: =VLOOKUP(A34,#REF!,3)/12 ->  | C34: =-#REF!/12 ->  | D34: =-IF($A34>#REF!,0,(#REF!*(1+#REF!)^(INT((A34-1)/12)))/12) ->  | F34: =-#REF!/12 ->  | G34: =-IF($A34>#REF!,0,(#REF!*(1+#REF!)^(INT(($A34-1)/12)))/12) ->  | I34: =IF(AND(A34>#REF!,A34<(#REF!+#REF!+1)),#REF!/#REF!,0) ->  | J34: =IF(AND($A34>#REF!,$A34<(#REF!+#REF!+1)),#REF!/#REF!,0) ->  | K34: =IF(AND($A34>#REF!,$A34<(#REF!+#REF!+1)),#REF!/#REF!,0) ->  | L34: =IF(AND($A34>#REF!,$A34<(#REF!+#REF!+1)),#REF!/#REF!,0) ->  | M34: =IF(AND($A34>#REF!,$A34<(#REF!+#REF!+1)),#REF!/#REF!,0) ->  | N34: =IF(AND($A34>#REF!,$A34<(#REF!+#REF!+1)),#REF!/#REF!,0) ->  | O34: =IF(AND($A34>#REF!,$A34<(#REF!+#REF!+1)),#REF!/#REF!,0) ->  | P34: =IF(AND($A34>#REF!,$A34<(#REF!+#REF!+1)),#REF!/#REF!,0) ->  | Q34: =-SUMIF(#REF!,A34,#REF!)/#REF! -> 
A35: 32 | B35: =VLOOKUP(A35,#REF!,3)/12 ->  | C35: =-#REF!/12 ->  | D35: =-IF($A35>#REF!,0,(#REF!*(1+#REF!)^(INT((A35-1)/12)))/12) ->  | F35: =-#REF!/12 ->  | G35: =-IF($A35>#REF!,0,(#REF!*(1+#REF!)^(INT(($A35-1)/12)))/12) ->  | I35: =IF(AND(A35>#REF!,A35<(#REF!+#REF!+1)),#REF!/#REF!,0) ->  | J35: =IF(AND($A35>#REF!,$A35<(#REF!+#REF!+1)),#REF!/#REF!,0) ->  | K35: =IF(AND($A35>#REF!,$A35<(#REF!+#REF!+1)),#REF!/#REF!,0) ->  | L35: =IF(AND($A35>#REF!,$A35<(#REF!+#REF!+1)),#REF!/#REF!,0) ->  | M35: =IF(AND($A35>#REF!,$A35<(#REF!+#REF!+1)),#REF!/#REF!,0) ->  | N35: =IF(AND($A35>#REF!,$A35<(#REF!+#REF!+1)),#REF!/#REF!,0) ->  | O35: =IF(AND($A35>#REF!,$A35<(#REF!+#REF!+1)),#REF!/#REF!,0) ->  | P35: =IF(AND($A35>#REF!,$A35<(#REF!+#REF!+1)),#REF!/#REF!,0) ->  | Q35: =-SUMIF(#REF!,A35,#REF!)/#REF! ->  | R35: =SUM(H35:Q35)+E35+B35 -> 
A36: 33 | B36: =VLOOKUP(A36,#REF!,3)/12 ->  | C36: =-#REF!/12 ->  | D36: =-IF($A36>#REF!,0,(#REF!*(1+#REF!)^(INT((A36-1)/12)))/12) ->  | E36: =IF(D36>C36,D36,C36) ->  | F36: =-#REF!/12 ->  | G36: =-IF($A36>#REF!,0,(#REF!*(1+#REF!)^(INT(($A36-1)/12)))/12) ->  | H36: =IF(G36>F36,G36,F36) ->  | I36: =IF(AND(A36>#REF!,A36<(#REF!+#REF!+1)),#REF!/#REF!,0) ->  | J36: =IF(AND($A36>#REF!,$A36<(#REF!+#REF!+1)),#REF!/#REF!,0) ->  | K36: =IF(AND($A36>#REF!,$A36<(#REF!+#REF!+1)),#REF!/#REF!,0) ->  | L36: =IF(AND($A36>#REF!,$A36<(#REF!+#REF!+1)),#REF!/#REF!,0) ->  | M36: =IF(AND($A36>#REF!,$A36<(#REF!+#REF!+1)),#REF!/#REF!,0) ->  | N36: =IF(AND($A36>#REF!,$A36<(#REF!+#REF!+1)),#REF!/#REF!,0) ->  | O36: =IF(AND($A36>#REF!,$A36<(#REF!+#REF!+1)),#REF!/#REF!,0) ->  | P36: =IF(AND($A36>#REF!,$A36<(#REF!+#REF!+1)),#REF!/#REF!,0) ->  | Q36: =-SUMIF(#REF!,A36,#REF!)/#REF! -> 
A37: 34 | B37: =VLOOKUP(A37,#REF!,3)/12 ->  | C37: =-#REF!/12 ->  | D37: =-IF($A37>#REF!,0,(#REF!*(1+#REF!)^(INT((A37-1)/12)))/12) ->  | F37: =-#REF!/12 ->  | G37: =-IF($A37>#REF!,0,(#REF!*(1+#REF!)^(INT(($A37-1)/12)))/12) ->  | I37: =IF(AND(A37>#REF!,A37<(#REF!+#REF!+1)),#REF!/#REF!,0) ->  | J37: =IF(AND($A37>#REF!,$A37<(#REF!+#REF!+1)),#REF!/#REF!,0) ->  | K37: =IF(AND($A37>#REF!,$A37<(#REF!+#REF!+1)),#REF!/#REF!,0) ->  | L37: =IF(AND($A37>#REF!,$A37<(#REF!+#REF!+1)),#REF!/#REF!,0) ->  | M37: =IF(AND($A37>#REF!,$A37<(#REF!+#REF!+1)),#REF!/#REF!,0) ->  | N37: =IF(AND($A37>#REF!,$A37<(#REF!+#REF!+1)),#REF!/#REF!,0) ->  | O37: =IF(AND($A37>#REF!,$A37<(#REF!+#REF!+1)),#REF!/#REF!,0) ->  | P37: =IF(AND($A37>#REF!,$A37<(#REF!+#REF!+1)),#REF!/#REF!,0) ->  | Q37: =-SUMIF(#REF!,A37,#REF!)/#REF! -> 
A38: 35 | B38: =VLOOKUP(A38,#REF!,3)/12 ->  | C38: =-#REF!/12 ->  | D38: =-IF($A38>#REF!,0,(#REF!*(1+#REF!)^(INT((A38-1)/12)))/12) ->  | F38: =-#REF!/12 ->  | G38: =-IF($A38>#REF!,0,(#REF!*(1+#REF!)^(INT(($A38-1)/12)))/12) ->  | I38: =IF(AND(A38>#REF!,A38<(#REF!+#REF!+1)),#REF!/#REF!,0) ->  | J38: =IF(AND($A38>#REF!,$A38<(#REF!+#REF!+1)),#REF!/#REF!,0) ->  | K38: =IF(AND($A38>#REF!,$A38<(#REF!+#REF!+1)),#REF!/#REF!,0) ->  | L38: =IF(AND($A38>#REF!,$A38<(#REF!+#REF!+1)),#REF!/#REF!,0) ->  | M38: =IF(AND($A38>#REF!,$A38<(#REF!+#REF!+1)),#REF!/#REF!,0) ->  | N38: =IF(AND($A38>#REF!,$A38<(#REF!+#REF!+1)),#REF!/#REF!,0) ->  | O38: =IF(AND($A38>#REF!,$A38<(#REF!+#REF!+1)),#REF!/#REF!,0) ->  | P38: =IF(AND($A38>#REF!,$A38<(#REF!+#REF!+1)),#REF!/#REF!,0) ->  | Q38: =-SUMIF(#REF!,A38,#REF!)/#REF! -> 
A39: 36 | B39: =VLOOKUP(A39,#REF!,3)/12 ->  | C39: =-#REF!/12 ->  | D39: =-IF($A39>#REF!,0,(#REF!*(1+#REF!)^(INT((A39-1)/12)))/12) ->  | F39: =-#REF!/12 ->  | G39: =-IF($A39>#REF!,0,(#REF!*(1+#REF!)^(INT(($A39-1)/12)))/12) ->  | I39: =IF(AND(A39>#REF!,A39<(#REF!+#REF!+1)),#REF!/#REF!,0) ->  | J39: =IF(AND($A39>#REF!,$A39<(#REF!+#REF!+1)),#REF!/#REF!,0) ->  | K39: =IF(AND($A39>#REF!,$A39<(#REF!+#REF!+1)),#REF!/#REF!,0) ->  | L39: =IF(AND($A39>#REF!,$A39<(#REF!+#REF!+1)),#REF!/#REF!,0) ->  | M39: =IF(AND($A39>#REF!,$A39<(#REF!+#REF!+1)),#REF!/#REF!,0) ->  | N39: =IF(AND($A39>#REF!,$A39<(#REF!+#REF!+1)),#REF!/#REF!,0) ->  | O39: =IF(AND($A39>#REF!,$A39<(#REF!+#REF!+1)),#REF!/#REF!,0) ->  | P39: =IF(AND($A39>#REF!,$A39<(#REF!+#REF!+1)),#REF!/#REF!,0) ->  | Q39: =-SUMIF(#REF!,A39,#REF!)/#REF! -> 
A40: 37 | B40: =VLOOKUP(A40,#REF!,3)/12 ->  | C40: =-#REF!/12 ->  | D40: =-IF($A40>#REF!,0,(#REF!*(1+#REF!)^(INT((A40-1)/12)))/12) ->  | F40: =-#REF!/12 ->  | G40: =-IF($A40>#REF!,0,(#REF!*(1+#REF!)^(INT(($A40-1)/12)))/12) ->  | I40: =IF(AND(A40>#REF!,A40<(#REF!+#REF!+1)),#REF!/#REF!,0) ->  | J40: =IF(AND($A40>#REF!,$A40<(#REF!+#REF!+1)),#REF!/#REF!,0) ->  | K40: =IF(AND($A40>#REF!,$A40<(#REF!+#REF!+1)),#REF!/#REF!,0) ->  | L40: =IF(AND($A40>#REF!,$A40<(#REF!+#REF!+1)),#REF!/#REF!,0) ->  | M40: =IF(AND($A40>#REF!,$A40<(#REF!+#REF!+1)),#REF!/#REF!,0) ->  | N40: =IF(AND($A40>#REF!,$A40<(#REF!+#REF!+1)),#REF!/#REF!,0) ->  | O40: =IF(AND($A40>#REF!,$A40<(#REF!+#REF!+1)),#REF!/#REF!,0) ->  | P40: =IF(AND($A40>#REF!,$A40<(#REF!+#REF!+1)),#REF!/#REF!,0) ->  | Q40: =-SUMIF(#REF!,A40,#REF!)/#REF! -> 
A41: 38 | B41: =VLOOKUP(A41,#REF!,3)/12 ->  | C41: =-#REF!/12 ->  | D41: =-IF($A41>#REF!,0,(#REF!*(1+#REF!)^(INT((A41-1)/12)))/12) ->  | F41: =-#REF!/12 ->  | G41: =-IF($A41>#REF!,0,(#REF!*(1+#REF!)^(INT(($A41-1)/12)))/12) ->  | I41: =IF(AND(A41>#REF!,A41<(#REF!+#REF!+1)),#REF!/#REF!,0) ->  | J41: =IF(AND($A41>#REF!,$A41<(#REF!+#REF!+1)),#REF!/#REF!,0) ->  | K41: =IF(AND($A41>#REF!,$A41<(#REF!+#REF!+1)),#REF!/#REF!,0) ->  | L41: =IF(AND($A41>#REF!,$A41<(#REF!+#REF!+1)),#REF!/#REF!,0) ->  | M41: =IF(AND($A41>#REF!,$A41<(#REF!+#REF!+1)),#REF!/#REF!,0) ->  | N41: =IF(AND($A41>#REF!,$A41<(#REF!+#REF!+1)),#REF!/#REF!,0) ->  | O41: =IF(AND($A41>#REF!,$A41<(#REF!+#REF!+1)),#REF!/#REF!,0) ->  | P41: =IF(AND($A41>#REF!,$A41<(#REF!+#REF!+1)),#REF!/#REF!,0) ->  | Q41: =-SUMIF(#REF!,A41,#REF!)/#REF! -> 
A42: 39 | B42: =VLOOKUP(A42,#REF!,3)/12 ->  | C42: =-#REF!/12 ->  | D42: =-IF($A42>#REF!,0,(#REF!*(1+#REF!)^(INT((A42-1)/12)))/12) ->  | F42: =-#REF!/12 ->  | G42: =-IF($A42>#REF!,0,(#REF!*(1+#REF!)^(INT(($A42-1)/12)))/12) ->  | I42: =IF(AND(A42>#REF!,A42<(#REF!+#REF!+1)),#REF!/#REF!,0) ->  | J42: =IF(AND($A42>#REF!,$A42<(#REF!+#REF!+1)),#REF!/#REF!,0) ->  | K42: =IF(AND($A42>#REF!,$A42<(#REF!+#REF!+1)),#REF!/#REF!,0) ->  | L42: =IF(AND($A42>#REF!,$A42<(#REF!+#REF!+1)),#REF!/#REF!,0) ->  | M42: =IF(AND($A42>#REF!,$A42<(#REF!+#REF!+1)),#REF!/#REF!,0) ->  | N42: =IF(AND($A42>#REF!,$A42<(#REF!+#REF!+1)),#REF!/#REF!,0) ->  | O42: =IF(AND($A42>#REF!,$A42<(#REF!+#REF!+1)),#REF!/#REF!,0) ->  | P42: =IF(AND($A42>#REF!,$A42<(#REF!+#REF!+1)),#REF!/#REF!,0) ->  | Q42: =-SUMIF(#REF!,A42,#REF!)/#REF! -> 
A43: 40 | B43: =VLOOKUP(A43,#REF!,3)/12 ->  | C43: =-#REF!/12 ->  | D43: =-IF($A43>#REF!,0,(#REF!*(1+#REF!)^(INT((A43-1)/12)))/12) ->  | F43: =-#REF!/12 ->  | G43: =-IF($A43>#REF!,0,(#REF!*(1+#REF!)^(INT(($A43-1)/12)))/12) ->  | I43: =IF(AND(A43>#REF!,A43<(#REF!+#REF!+1)),#REF!/#REF!,0) ->  | J43: =IF(AND($A43>#REF!,$A43<(#REF!+#REF!+1)),#REF!/#REF!,0) ->  | K43: =IF(AND($A43>#REF!,$A43<(#REF!+#REF!+1)),#REF!/#REF!,0) ->  | L43: =IF(AND($A43>#REF!,$A43<(#REF!+#REF!+1)),#REF!/#REF!,0) ->  | M43: =IF(AND($A43>#REF!,$A43<(#REF!+#REF!+1)),#REF!/#REF!,0) ->  | N43: =IF(AND($A43>#REF!,$A43<(#REF!+#REF!+1)),#REF!/#REF!,0) ->  | O43: =IF(AND($A43>#REF!,$A43<(#REF!+#REF!+1)),#REF!/#REF!,0) ->  | P43: =IF(AND($A43>#REF!,$A43<(#REF!+#REF!+1)),#REF!/#REF!,0) ->  | Q43: =-SUMIF(#REF!,A43,#REF!)/#REF! -> 
A44: 41 | B44: =VLOOKUP(A44,#REF!,3)/12 ->  | C44: =-#REF!/12 ->  | D44: =-IF($A44>#REF!,0,(#REF!*(1+#REF!)^(INT((A44-1)/12)))/12) ->  | F44: =-#REF!/12 ->  | G44: =-IF($A44>#REF!,0,(#REF!*(1+#REF!)^(INT(($A44-1)/12)))/12) ->  | I44: =IF(AND(A44>#REF!,A44<(#REF!+#REF!+1)),#REF!/#REF!,0) ->  | J44: =IF(AND($A44>#REF!,$A44<(#REF!+#REF!+1)),#REF!/#REF!,0) ->  | K44: =IF(AND($A44>#REF!,$A44<(#REF!+#REF!+1)),#REF!/#REF!,0) ->  | L44: =IF(AND($A44>#REF!,$A44<(#REF!+#REF!+1)),#REF!/#REF!,0) ->  | M44: =IF(AND($A44>#REF!,$A44<(#REF!+#REF!+1)),#REF!/#REF!,0) ->  | N44: =IF(AND($A44>#REF!,$A44<(#REF!+#REF!+1)),#REF!/#REF!,0) ->  | O44: =IF(AND($A44>#REF!,$A44<(#REF!+#REF!+1)),#REF!/#REF!,0) ->  | P44: =IF(AND($A44>#REF!,$A44<(#REF!+#REF!+1)),#REF!/#REF!,0) ->  | Q44: =-SUMIF(#REF!,A44,#REF!)/#REF! -> 
A45: 42 | B45: =VLOOKUP(A45,#REF!,3)/12 ->  | C45: =-#REF!/12 ->  | D45: =-IF($A45>#REF!,0,(#REF!*(1+#REF!)^(INT((A45-1)/12)))/12) ->  | F45: =-#REF!/12 ->  | G45: =-IF($A45>#REF!,0,(#REF!*(1+#REF!)^(INT(($A45-1)/12)))/12) ->  | I45: =IF(AND(A45>#REF!,A45<(#REF!+#REF!+1)),#REF!/#REF!,0) ->  | J45: =IF(AND($A45>#REF!,$A45<(#REF!+#REF!+1)),#REF!/#REF!,0) ->  | K45: =IF(AND($A45>#REF!,$A45<(#REF!+#REF!+1)),#REF!/#REF!,0) ->  | L45: =IF(AND($A45>#REF!,$A45<(#REF!+#REF!+1)),#REF!/#REF!,0) ->  | M45: =IF(AND($A45>#REF!,$A45<(#REF!+#REF!+1)),#REF!/#REF!,0) ->  | N45: =IF(AND($A45>#REF!,$A45<(#REF!+#REF!+1)),#REF!/#REF!,0) ->  | O45: =IF(AND($A45>#REF!,$A45<(#REF!+#REF!+1)),#REF!/#REF!,0) ->  | P45: =IF(AND($A45>#REF!,$A45<(#REF!+#REF!+1)),#REF!/#REF!,0) ->  | Q45: =-SUMIF(#REF!,A45,#REF!)/#REF! -> 
A46: 43 | B46: =VLOOKUP(A46,#REF!,3)/12 ->  | C46: =-#REF!/12 ->  | D46: =-IF($A46>#REF!,0,(#REF!*(1+#REF!)^(INT((A46-1)/12)))/12) ->  | F46: =-#REF!/12 ->  | G46: =-IF($A46>#REF!,0,(#REF!*(1+#REF!)^(INT(($A46-1)/12)))/12) ->  | I46: =IF(AND(A46>#REF!,A46<(#REF!+#REF!+1)),#REF!/#REF!,0) ->  | J46: =IF(AND($A46>#REF!,$A46<(#REF!+#REF!+1)),#REF!/#REF!,0) ->  | K46: =IF(AND($A46>#REF!,$A46<(#REF!+#REF!+1)),#REF!/#REF!,0) ->  | L46: =IF(AND($A46>#REF!,$A46<(#REF!+#REF!+1)),#REF!/#REF!,0) ->  | M46: =IF(AND($A46>#REF!,$A46<(#REF!+#REF!+1)),#REF!/#REF!,0) ->  | N46: =IF(AND($A46>#REF!,$A46<(#REF!+#REF!+1)),#REF!/#REF!,0) ->  | O46: =IF(AND($A46>#REF!,$A46<(#REF!+#REF!+1)),#REF!/#REF!,0) ->  | P46: =IF(AND($A46>#REF!,$A46<(#REF!+#REF!+1)),#REF!/#REF!,0) ->  | Q46: =-SUMIF(#REF!,A46,#REF!)/#REF! -> 
A47: 44 | B47: =VLOOKUP(A47,#REF!,3)/12 ->  | C47: =-#REF!/12 ->  | D47: =-IF($A47>#REF!,0,(#REF!*(1+#REF!)^(INT((A47-1)/12)))/12) ->  | F47: =-#REF!/12 ->  | G47: =-IF($A47>#REF!,0,(#REF!*(1+#REF!)^(INT(($A47-1)/12)))/12) ->  | I47: =IF(AND(A47>#REF!,A47<(#REF!+#REF!+1)),#REF!/#REF!,0) ->  | J47: =IF(AND($A47>#REF!,$A47<(#REF!+#REF!+1)),#REF!/#REF!,0) ->  | K47: =IF(AND($A47>#REF!,$A47<(#REF!+#REF!+1)),#REF!/#REF!,0) ->  | L47: =IF(AND($A47>#REF!,$A47<(#REF!+#REF!+1)),#REF!/#REF!,0) ->  | M47: =IF(AND($A47>#REF!,$A47<(#REF!+#REF!+1)),#REF!/#REF!,0) ->  | N47: =IF(AND($A47>#REF!,$A47<(#REF!+#REF!+1)),#REF!/#REF!,0) ->  | O47: =IF(AND($A47>#REF!,$A47<(#REF!+#REF!+1)),#REF!/#REF!,0) ->  | P47: =IF(AND($A47>#REF!,$A47<(#REF!+#REF!+1)),#REF!/#REF!,0) ->  | Q47: =-SUMIF(#REF!,A47,#REF!)/#REF! -> 
A48: 45 | B48: =VLOOKUP(A48,#REF!,3)/12 ->  | C48: =-#REF!/12 ->  | D48: =-IF($A48>#REF!,0,(#REF!*(1+#REF!)^(INT((A48-1)/12)))/12) ->  | F48: =-#REF!/12 ->  | G48: =-IF($A48>#REF!,0,(#REF!*(1+#REF!)^(INT(($A48-1)/12)))/12) ->  | I48: =IF(AND(A48>#REF!,A48<(#REF!+#REF!+1)),#REF!/#REF!,0) ->  | J48: =IF(AND($A48>#REF!,$A48<(#REF!+#REF!+1)),#REF!/#REF!,0) ->  | K48: =IF(AND($A48>#REF!,$A48<(#REF!+#REF!+1)),#REF!/#REF!,0) ->  | L48: =IF(AND($A48>#REF!,$A48<(#REF!+#REF!+1)),#REF!/#REF!,0) ->  | M48: =IF(AND($A48>#REF!,$A48<(#REF!+#REF!+1)),#REF!/#REF!,0) ->  | N48: =IF(AND($A48>#REF!,$A48<(#REF!+#REF!+1)),#REF!/#REF!,0) ->  | O48: =IF(AND($A48>#REF!,$A48<(#REF!+#REF!+1)),#REF!/#REF!,0) ->  | P48: =IF(AND($A48>#REF!,$A48<(#REF!+#REF!+1)),#REF!/#REF!,0) ->  | Q48: =-SUMIF(#REF!,A48,#REF!)/#REF! -> 
A49: 46 | B49: =VLOOKUP(A49,#REF!,3)/12 ->  | C49: =-#REF!/12 ->  | D49: =-IF($A49>#REF!,0,(#REF!*(1+#REF!)^(INT((A49-1)/12)))/12) ->  | F49: =-#REF!/12 ->  | G49: =-IF($A49>#REF!,0,(#REF!*(1+#REF!)^(INT(($A49-1)/12)))/12) ->  | I49: =IF(AND(A49>#REF!,A49<(#REF!+#REF!+1)),#REF!/#REF!,0) ->  | J49: =IF(AND($A49>#REF!,$A49<(#REF!+#REF!+1)),#REF!/#REF!,0) ->  | K49: =IF(AND($A49>#REF!,$A49<(#REF!+#REF!+1)),#REF!/#REF!,0) ->  | L49: =IF(AND($A49>#REF!,$A49<(#REF!+#REF!+1)),#REF!/#REF!,0) ->  | M49: =IF(AND($A49>#REF!,$A49<(#REF!+#REF!+1)),#REF!/#REF!,0) ->  | N49: =IF(AND($A49>#REF!,$A49<(#REF!+#REF!+1)),#REF!/#REF!,0) ->  | O49: =IF(AND($A49>#REF!,$A49<(#REF!+#REF!+1)),#REF!/#REF!,0) ->  | P49: =IF(AND($A49>#REF!,$A49<(#REF!+#REF!+1)),#REF!/#REF!,0) ->  | Q49: =-SUMIF(#REF!,A49,#REF!)/#REF! -> 
A50: 47 | B50: =VLOOKUP(A50,#REF!,3)/12 ->  | C50: =-#REF!/12 ->  | D50: =-IF($A50>#REF!,0,(#REF!*(1+#REF!)^(INT((A50-1)/12)))/12) ->  | F50: =-#REF!/12 ->  | G50: =-IF($A50>#REF!,0,(#REF!*(1+#REF!)^(INT(($A50-1)/12)))/12) ->  | I50: =IF(AND(A50>#REF!,A50<(#REF!+#REF!+1)),#REF!/#REF!,0) ->  | J50: =IF(AND($A50>#REF!,$A50<(#REF!+#REF!+1)),#REF!/#REF!,0) ->  | K50: =IF(AND($A50>#REF!,$A50<(#REF!+#REF!+1)),#REF!/#REF!,0) ->  | L50: =IF(AND($A50>#REF!,$A50<(#REF!+#REF!+1)),#REF!/#REF!,0) ->  | M50: =IF(AND($A50>#REF!,$A50<(#REF!+#REF!+1)),#REF!/#REF!,0) ->  | N50: =IF(AND($A50>#REF!,$A50<(#REF!+#REF!+1)),#REF!/#REF!,0) ->  | O50: =IF(AND($A50>#REF!,$A50<(#REF!+#REF!+1)),#REF!/#REF!,0) ->  | P50: =IF(AND($A50>#REF!,$A50<(#REF!+#REF!+1)),#REF!/#REF!,0) ->  | Q50: =-SUMIF(#REF!,A50,#REF!)/#REF! -> 
A51: 48 | B51: =VLOOKUP(A51,#REF!,3)/12 ->  | C51: =-#REF!/12 ->  | D51: =-IF($A51>#REF!,0,(#REF!*(1+#REF!)^(INT((A51-1)/12)))/12) ->  | F51: =-#REF!/12 ->  | G51: =-IF($A51>#REF!,0,(#REF!*(1+#REF!)^(INT(($A51-1)/12)))/12) ->  | I51: =IF(AND(A51>#REF!,A51<(#REF!+#REF!+1)),#REF!/#REF!,0) ->  | J51: =IF(AND($A51>#REF!,$A51<(#REF!+#REF!+1)),#REF!/#REF!,0) ->  | K51: =IF(AND($A51>#REF!,$A51<(#REF!+#REF!+1)),#REF!/#REF!,0) ->  | L51: =IF(AND($A51>#REF!,$A51<(#REF!+#REF!+1)),#REF!/#REF!,0) ->  | M51: =IF(AND($A51>#REF!,$A51<(#REF!+#REF!+1)),#REF!/#REF!,0) ->  | N51: =IF(AND($A51>#REF!,$A51<(#REF!+#REF!+1)),#REF!/#REF!,0) ->  | O51: =IF(AND($A51>#REF!,$A51<(#REF!+#REF!+1)),#REF!/#REF!,0) ->  | P51: =IF(AND($A51>#REF!,$A51<(#REF!+#REF!+1)),#REF!/#REF!,0) ->  | Q51: =-SUMIF(#REF!,A51,#REF!)/#REF! -> 
A52: 49 | B52: =VLOOKUP(A52,#REF!,3)/12 ->  | C52: =-#REF!/12 ->  | D52: =-IF($A52>#REF!,0,(#REF!*(1+#REF!)^(INT((A52-1)/12)))/12) ->  | F52: =-#REF!/12 ->  | G52: =-IF($A52>#REF!,0,(#REF!*(1+#REF!)^(INT(($A52-1)/12)))/12) ->  | I52: =IF(AND(A52>#REF!,A52<(#REF!+#REF!+1)),#REF!/#REF!,0) ->  | J52: =IF(AND($A52>#REF!,$A52<(#REF!+#REF!+1)),#REF!/#REF!,0) ->  | K52: =IF(AND($A52>#REF!,$A52<(#REF!+#REF!+1)),#REF!/#REF!,0) ->  | L52: =IF(AND($A52>#REF!,$A52<(#REF!+#REF!+1)),#REF!/#REF!,0) ->  | M52: =IF(AND($A52>#REF!,$A52<(#REF!+#REF!+1)),#REF!/#REF!,0) ->  | N52: =IF(AND($A52>#REF!,$A52<(#REF!+#REF!+1)),#REF!/#REF!,0) ->  | O52: =IF(AND($A52>#REF!,$A52<(#REF!+#REF!+1)),#REF!/#REF!,0) ->  | P52: =IF(AND($A52>#REF!,$A52<(#REF!+#REF!+1)),#REF!/#REF!,0) ->  | Q52: =-SUMIF(#REF!,A52,#REF!)/#REF! -> 
A53: 50 | B53: =VLOOKUP(A53,#REF!,3)/12 ->  | C53: =-#REF!/12 ->  | D53: =-IF($A53>#REF!,0,(#REF!*(1+#REF!)^(INT((A53-1)/12)))/12) ->  | F53: =-#REF!/12 ->  | G53: =-IF($A53>#REF!,0,(#REF!*(1+#REF!)^(INT(($A53-1)/12)))/12) ->  | I53: =IF(AND(A53>#REF!,A53<(#REF!+#REF!+1)),#REF!/#REF!,0) ->  | J53: =IF(AND($A53>#REF!,$A53<(#REF!+#REF!+1)),#REF!/#REF!,0) ->  | K53: =IF(AND($A53>#REF!,$A53<(#REF!+#REF!+1)),#REF!/#REF!,0) ->  | L53: =IF(AND($A53>#REF!,$A53<(#REF!+#REF!+1)),#REF!/#REF!,0) ->  | M53: =IF(AND($A53>#REF!,$A53<(#REF!+#REF!+1)),#REF!/#REF!,0) ->  | N53: =IF(AND($A53>#REF!,$A53<(#REF!+#REF!+1)),#REF!/#REF!,0) ->  | O53: =IF(AND($A53>#REF!,$A53<(#REF!+#REF!+1)),#REF!/#REF!,0) ->  | P53: =IF(AND($A53>#REF!,$A53<(#REF!+#REF!+1)),#REF!/#REF!,0) ->  | Q53: =-SUMIF(#REF!,A53,#REF!)/#REF! -> 
A54: 51 | B54: =VLOOKUP(A54,#REF!,3)/12 ->  | C54: =-#REF!/12 ->  | D54: =-IF($A54>#REF!,0,(#REF!*(1+#REF!)^(INT((A54-1)/12)))/12) ->  | F54: =-#REF!/12 ->  | G54: =-IF($A54>#REF!,0,(#REF!*(1+#REF!)^(INT(($A54-1)/12)))/12) ->  | I54: =IF(AND(A54>#REF!,A54<(#REF!+#REF!+1)),#REF!/#REF!,0) ->  | J54: =IF(AND($A54>#REF!,$A54<(#REF!+#REF!+1)),#REF!/#REF!,0) ->  | K54: =IF(AND($A54>#REF!,$A54<(#REF!+#REF!+1)),#REF!/#REF!,0) ->  | L54: =IF(AND($A54>#REF!,$A54<(#REF!+#REF!+1)),#REF!/#REF!,0) ->  | M54: =IF(AND($A54>#REF!,$A54<(#REF!+#REF!+1)),#REF!/#REF!,0) ->  | N54: =IF(AND($A54>#REF!,$A54<(#REF!+#REF!+1)),#REF!/#REF!,0) ->  | O54: =IF(AND($A54>#REF!,$A54<(#REF!+#REF!+1)),#REF!/#REF!,0) ->  | P54: =IF(AND($A54>#REF!,$A54<(#REF!+#REF!+1)),#REF!/#REF!,0) ->  | Q54: =-SUMIF(#REF!,A54,#REF!)/#REF! -> 
A55: 52 | B55: =VLOOKUP(A55,#REF!,3)/12 ->  | C55: =-#REF!/12 ->  | D55: =-IF($A55>#REF!,0,(#REF!*(1+#REF!)^(INT((A55-1)/12)))/12) ->  | F55: =-#REF!/12 ->  | G55: =-IF($A55>#REF!,0,(#REF!*(1+#REF!)^(INT(($A55-1)/12)))/12) ->  | I55: =IF(AND(A55>#REF!,A55<(#REF!+#REF!+1)),#REF!/#REF!,0) ->  | J55: =IF(AND($A55>#REF!,$A55<(#REF!+#REF!+1)),#REF!/#REF!,0) ->  | K55: =IF(AND($A55>#REF!,$A55<(#REF!+#REF!+1)),#REF!/#REF!,0) ->  | L55: =IF(AND($A55>#REF!,$A55<(#REF!+#REF!+1)),#REF!/#REF!,0) ->  | M55: =IF(AND($A55>#REF!,$A55<(#REF!+#REF!+1)),#REF!/#REF!,0) ->  | N55: =IF(AND($A55>#REF!,$A55<(#REF!+#REF!+1)),#REF!/#REF!,0) ->  | O55: =IF(AND($A55>#REF!,$A55<(#REF!+#REF!+1)),#REF!/#REF!,0) ->  | P55: =IF(AND($A55>#REF!,$A55<(#REF!+#REF!+1)),#REF!/#REF!,0) ->  | Q55: =-SUMIF(#REF!,A55,#REF!)/#REF! -> 
A56: 53 | B56: =VLOOKUP(A56,#REF!,3)/12 ->  | C56: =-#REF!/12 ->  | D56: =-IF($A56>#REF!,0,(#REF!*(1+#REF!)^(INT((A56-1)/12)))/12) ->  | F56: =-#REF!/12 ->  | G56: =-IF($A56>#REF!,0,(#REF!*(1+#REF!)^(INT(($A56-1)/12)))/12) ->  | I56: =IF(AND(A56>#REF!,A56<(#REF!+#REF!+1)),#REF!/#REF!,0) ->  | J56: =IF(AND($A56>#REF!,$A56<(#REF!+#REF!+1)),#REF!/#REF!,0) ->  | K56: =IF(AND($A56>#REF!,$A56<(#REF!+#REF!+1)),#REF!/#REF!,0) ->  | L56: =IF(AND($A56>#REF!,$A56<(#REF!+#REF!+1)),#REF!/#REF!,0) ->  | M56: =IF(AND($A56>#REF!,$A56<(#REF!+#REF!+1)),#REF!/#REF!,0) ->  | N56: =IF(AND($A56>#REF!,$A56<(#REF!+#REF!+1)),#REF!/#REF!,0) ->  | O56: =IF(AND($A56>#REF!,$A56<(#REF!+#REF!+1)),#REF!/#REF!,0) ->  | P56: =IF(AND($A56>#REF!,$A56<(#REF!+#REF!+1)),#REF!/#REF!,0) ->  | Q56: =-SUMIF(#REF!,A56,#REF!)/#REF! -> 
A57: 54 | B57: =VLOOKUP(A57,#REF!,3)/12 ->  | C57: =-#REF!/12 ->  | D57: =-IF($A57>#REF!,0,(#REF!*(1+#REF!)^(INT((A57-1)/12)))/12) ->  | F57: =-#REF!/12 ->  | G57: =-IF($A57>#REF!,0,(#REF!*(1+#REF!)^(INT(($A57-1)/12)))/12) ->  | I57: =IF(AND(A57>#REF!,A57<(#REF!+#REF!+1)),#REF!/#REF!,0) ->  | J57: =IF(AND($A57>#REF!,$A57<(#REF!+#REF!+1)),#REF!/#REF!,0) ->  | K57: =IF(AND($A57>#REF!,$A57<(#REF!+#REF!+1)),#REF!/#REF!,0) ->  | L57: =IF(AND($A57>#REF!,$A57<(#REF!+#REF!+1)),#REF!/#REF!,0) ->  | M57: =IF(AND($A57>#REF!,$A57<(#REF!+#REF!+1)),#REF!/#REF!,0) ->  | N57: =IF(AND($A57>#REF!,$A57<(#REF!+#REF!+1)),#REF!/#REF!,0) ->  | O57: =IF(AND($A57>#REF!,$A57<(#REF!+#REF!+1)),#REF!/#REF!,0) ->  | P57: =IF(AND($A57>#REF!,$A57<(#REF!+#REF!+1)),#REF!/#REF!,0) ->  | Q57: =-SUMIF(#REF!,A57,#REF!)/#REF! -> 
A58: 55 | B58: =VLOOKUP(A58,#REF!,3)/12 ->  | C58: =-#REF!/12 ->  | D58: =-IF($A58>#REF!,0,(#REF!*(1+#REF!)^(INT((A58-1)/12)))/12) ->  | F58: =-#REF!/12 ->  | G58: =-IF($A58>#REF!,0,(#REF!*(1+#REF!)^(INT(($A58-1)/12)))/12) ->  | I58: =IF(AND(A58>#REF!,A58<(#REF!+#REF!+1)),#REF!/#REF!,0) ->  | J58: =IF(AND($A58>#REF!,$A58<(#REF!+#REF!+1)),#REF!/#REF!,0) ->  | K58: =IF(AND($A58>#REF!,$A58<(#REF!+#REF!+1)),#REF!/#REF!,0) ->  | L58: =IF(AND($A58>#REF!,$A58<(#REF!+#REF!+1)),#REF!/#REF!,0) ->  | M58: =IF(AND($A58>#REF!,$A58<(#REF!+#REF!+1)),#REF!/#REF!,0) ->  | N58: =IF(AND($A58>#REF!,$A58<(#REF!+#REF!+1)),#REF!/#REF!,0) ->  | O58: =IF(AND($A58>#REF!,$A58<(#REF!+#REF!+1)),#REF!/#REF!,0) ->  | P58: =IF(AND($A58>#REF!,$A58<(#REF!+#REF!+1)),#REF!/#REF!,0) ->  | Q58: =-SUMIF(#REF!,A58,#REF!)/#REF! -> 
A59: 56 | B59: =VLOOKUP(A59,#REF!,3)/12 ->  | C59: =-#REF!/12 ->  | D59: =-IF($A59>#REF!,0,(#REF!*(1+#REF!)^(INT((A59-1)/12)))/12) ->  | F59: =-#REF!/12 ->  | G59: =-IF($A59>#REF!,0,(#REF!*(1+#REF!)^(INT(($A59-1)/12)))/12) ->  | I59: =IF(AND(A59>#REF!,A59<(#REF!+#REF!+1)),#REF!/#REF!,0) ->  | J59: =IF(AND($A59>#REF!,$A59<(#REF!+#REF!+1)),#REF!/#REF!,0) ->  | K59: =IF(AND($A59>#REF!,$A59<(#REF!+#REF!+1)),#REF!/#REF!,0) ->  | L59: =IF(AND($A59>#REF!,$A59<(#REF!+#REF!+1)),#REF!/#REF!,0) ->  | M59: =IF(AND($A59>#REF!,$A59<(#REF!+#REF!+1)),#REF!/#REF!,0) ->  | N59: =IF(AND($A59>#REF!,$A59<(#REF!+#REF!+1)),#REF!/#REF!,0) ->  | O59: =IF(AND($A59>#REF!,$A59<(#REF!+#REF!+1)),#REF!/#REF!,0) ->  | P59: =IF(AND($A59>#REF!,$A59<(#REF!+#REF!+1)),#REF!/#REF!,0) ->  | Q59: =-SUMIF(#REF!,A59,#REF!)/#REF! -> 
A60: 57 | B60: =VLOOKUP(A60,#REF!,3)/12 ->  | C60: =-#REF!/12 ->  | D60: =-IF($A60>#REF!,0,(#REF!*(1+#REF!)^(INT((A60-1)/12)))/12) ->  | F60: =-#REF!/12 ->  | G60: =-IF($A60>#REF!,0,(#REF!*(1+#REF!)^(INT(($A60-1)/12)))/12) ->  | I60: =IF(AND(A60>#REF!,A60<(#REF!+#REF!+1)),#REF!/#REF!,0) ->  | J60: =IF(AND($A60>#REF!,$A60<(#REF!+#REF!+1)),#REF!/#REF!,0) ->  | K60: =IF(AND($A60>#REF!,$A60<(#REF!+#REF!+1)),#REF!/#REF!,0) ->  | L60: =IF(AND($A60>#REF!,$A60<(#REF!+#REF!+1)),#REF!/#REF!,0) ->  | M60: =IF(AND($A60>#REF!,$A60<(#REF!+#REF!+1)),#REF!/#REF!,0) ->  | N60: =IF(AND($A60>#REF!,$A60<(#REF!+#REF!+1)),#REF!/#REF!,0) ->  | O60: =IF(AND($A60>#REF!,$A60<(#REF!+#REF!+1)),#REF!/#REF!,0) ->  | P60: =IF(AND($A60>#REF!,$A60<(#REF!+#REF!+1)),#REF!/#REF!,0) ->  | Q60: =-SUMIF(#REF!,A60,#REF!)/#REF! -> 
A61: 58 | B61: =VLOOKUP(A61,#REF!,3)/12 ->  | C61: =-#REF!/12 ->  | D61: =-IF($A61>#REF!,0,(#REF!*(1+#REF!)^(INT((A61-1)/12)))/12) ->  | F61: =-#REF!/12 ->  | G61: =-IF($A61>#REF!,0,(#REF!*(1+#REF!)^(INT(($A61-1)/12)))/12) ->  | I61: =IF(AND(A61>#REF!,A61<(#REF!+#REF!+1)),#REF!/#REF!,0) ->  | J61: =IF(AND($A61>#REF!,$A61<(#REF!+#REF!+1)),#REF!/#REF!,0) ->  | K61: =IF(AND($A61>#REF!,$A61<(#REF!+#REF!+1)),#REF!/#REF!,0) ->  | L61: =IF(AND($A61>#REF!,$A61<(#REF!+#REF!+1)),#REF!/#REF!,0) ->  | M61: =IF(AND($A61>#REF!,$A61<(#REF!+#REF!+1)),#REF!/#REF!,0) ->  | N61: =IF(AND($A61>#REF!,$A61<(#REF!+#REF!+1)),#REF!/#REF!,0) ->  | O61: =IF(AND($A61>#REF!,$A61<(#REF!+#REF!+1)),#REF!/#REF!,0) ->  | P61: =IF(AND($A61>#REF!,$A61<(#REF!+#REF!+1)),#REF!/#REF!,0) ->  | Q61: =-SUMIF(#REF!,A61,#REF!)/#REF! -> 
A62: 59 | B62: =VLOOKUP(A62,#REF!,3)/12 ->  | C62: =-#REF!/12 ->  | D62: =-IF($A62>#REF!,0,(#REF!*(1+#REF!)^(INT((A62-1)/12)))/12) ->  | F62: =-#REF!/12 ->  | G62: =-IF($A62>#REF!,0,(#REF!*(1+#REF!)^(INT(($A62-1)/12)))/12) ->  | I62: =IF(AND(A62>#REF!,A62<(#REF!+#REF!+1)),#REF!/#REF!,0) ->  | J62: =IF(AND($A62>#REF!,$A62<(#REF!+#REF!+1)),#REF!/#REF!,0) ->  | K62: =IF(AND($A62>#REF!,$A62<(#REF!+#REF!+1)),#REF!/#REF!,0) ->  | L62: =IF(AND($A62>#REF!,$A62<(#REF!+#REF!+1)),#REF!/#REF!,0) ->  | M62: =IF(AND($A62>#REF!,$A62<(#REF!+#REF!+1)),#REF!/#REF!,0) ->  | N62: =IF(AND($A62>#REF!,$A62<(#REF!+#REF!+1)),#REF!/#REF!,0) ->  | O62: =IF(AND($A62>#REF!,$A62<(#REF!+#REF!+1)),#REF!/#REF!,0) ->  | P62: =IF(AND($A62>#REF!,$A62<(#REF!+#REF!+1)),#REF!/#REF!,0) ->  | Q62: =-SUMIF(#REF!,A62,#REF!)/#REF! -> 
A63: 60 | B63: =VLOOKUP(A63,#REF!,3)/12 ->  | C63: =-#REF!/12 ->  | D63: =-IF($A63>#REF!,0,(#REF!*(1+#REF!)^(INT((A63-1)/12)))/12) ->  | F63: =-#REF!/12 ->  | G63: =-IF($A63>#REF!,0,(#REF!*(1+#REF!)^(INT(($A63-1)/12)))/12) ->  | I63: =IF(AND(A63>#REF!,A63<(#REF!+#REF!+1)),#REF!/#REF!,0) ->  | J63: =IF(AND($A63>#REF!,$A63<(#REF!+#REF!+1)),#REF!/#REF!,0) ->  | K63: =IF(AND($A63>#REF!,$A63<(#REF!+#REF!+1)),#REF!/#REF!,0) ->  | L63: =IF(AND($A63>#REF!,$A63<(#REF!+#REF!+1)),#REF!/#REF!,0) ->  | M63: =IF(AND($A63>#REF!,$A63<(#REF!+#REF!+1)),#REF!/#REF!,0) ->  | N63: =IF(AND($A63>#REF!,$A63<(#REF!+#REF!+1)),#REF!/#REF!,0) ->  | O63: =IF(AND($A63>#REF!,$A63<(#REF!+#REF!+1)),#REF!/#REF!,0) ->  | P63: =IF(AND($A63>#REF!,$A63<(#REF!+#REF!+1)),#REF!/#REF!,0) ->  | Q63: =-SUMIF(#REF!,A63,#REF!)/#REF! -> 
A64: 61 | B64: =VLOOKUP(A64,#REF!,3)/12 ->  | C64: =-#REF!/12 ->  | D64: =-IF($A64>#REF!,0,(#REF!*(1+#REF!)^(INT((A64-1)/12)))/12) ->  | F64: =-#REF!/12 ->  | G64: =-IF($A64>#REF!,0,(#REF!*(1+#REF!)^(INT(($A64-1)/12)))/12) ->  | I64: =IF(AND(A64>#REF!,A64<(#REF!+#REF!+1)),#REF!/#REF!,0) ->  | J64: =IF(AND($A64>#REF!,$A64<(#REF!+#REF!+1)),#REF!/#REF!,0) ->  | K64: =IF(AND($A64>#REF!,$A64<(#REF!+#REF!+1)),#REF!/#REF!,0) ->  | L64: =IF(AND($A64>#REF!,$A64<(#REF!+#REF!+1)),#REF!/#REF!,0) ->  | M64: =IF(AND($A64>#REF!,$A64<(#REF!+#REF!+1)),#REF!/#REF!,0) ->  | N64: =IF(AND($A64>#REF!,$A64<(#REF!+#REF!+1)),#REF!/#REF!,0) ->  | O64: =IF(AND($A64>#REF!,$A64<(#REF!+#REF!+1)),#REF!/#REF!,0) ->  | P64: =IF(AND($A64>#REF!,$A64<(#REF!+#REF!+1)),#REF!/#REF!,0) ->  | Q64: =-SUMIF(#REF!,A64,#REF!)/#REF! -> 
A65: 62 | B65: =VLOOKUP(A65,#REF!,3)/12 ->  | C65: =-#REF!/12 ->  | D65: =-IF($A65>#REF!,0,(#REF!*(1+#REF!)^(INT((A65-1)/12)))/12) ->  | F65: =-#REF!/12 ->  | G65: =-IF($A65>#REF!,0,(#REF!*(1+#REF!)^(INT(($A65-1)/12)))/12) ->  | I65: =IF(AND(A65>#REF!,A65<(#REF!+#REF!+1)),#REF!/#REF!,0) ->  | J65: =IF(AND($A65>#REF!,$A65<(#REF!+#REF!+1)),#REF!/#REF!,0) ->  | K65: =IF(AND($A65>#REF!,$A65<(#REF!+#REF!+1)),#REF!/#REF!,0) ->  | L65: =IF(AND($A65>#REF!,$A65<(#REF!+#REF!+1)),#REF!/#REF!,0) ->  | M65: =IF(AND($A65>#REF!,$A65<(#REF!+#REF!+1)),#REF!/#REF!,0) ->  | N65: =IF(AND($A65>#REF!,$A65<(#REF!+#REF!+1)),#REF!/#REF!,0) ->  | O65: =IF(AND($A65>#REF!,$A65<(#REF!+#REF!+1)),#REF!/#REF!,0) ->  | P65: =IF(AND($A65>#REF!,$A65<(#REF!+#REF!+1)),#REF!/#REF!,0) ->  | Q65: =-SUMIF(#REF!,A65,#REF!)/#REF! -> 
A66: 63 | B66: =VLOOKUP(A66,#REF!,3)/12 ->  | C66: =-#REF!/12 ->  | D66: =-IF($A66>#REF!,0,(#REF!*(1+#REF!)^(INT((A66-1)/12)))/12) ->  | F66: =-#REF!/12 ->  | G66: =-IF($A66>#REF!,0,(#REF!*(1+#REF!)^(INT(($A66-1)/12)))/12) ->  | I66: =IF(AND(A66>#REF!,A66<(#REF!+#REF!+1)),#REF!/#REF!,0) ->  | J66: =IF(AND($A66>#REF!,$A66<(#REF!+#REF!+1)),#REF!/#REF!,0) ->  | K66: =IF(AND($A66>#REF!,$A66<(#REF!+#REF!+1)),#REF!/#REF!,0) ->  | L66: =IF(AND($A66>#REF!,$A66<(#REF!+#REF!+1)),#REF!/#REF!,0) ->  | M66: =IF(AND($A66>#REF!,$A66<(#REF!+#REF!+1)),#REF!/#REF!,0) ->  | N66: =IF(AND($A66>#REF!,$A66<(#REF!+#REF!+1)),#REF!/#REF!,0) ->  | O66: =IF(AND($A66>#REF!,$A66<(#REF!+#REF!+1)),#REF!/#REF!,0) ->  | P66: =IF(AND($A66>#REF!,$A66<(#REF!+#REF!+1)),#REF!/#REF!,0) ->  | Q66: =-SUMIF(#REF!,A66,#REF!)/#REF! -> 
A67: 64 | B67: =VLOOKUP(A67,#REF!,3)/12 ->  | C67: =-#REF!/12 ->  | D67: =-IF($A67>#REF!,0,(#REF!*(1+#REF!)^(INT((A67-1)/12)))/12) ->  | F67: =-#REF!/12 ->  | G67: =-IF($A67>#REF!,0,(#REF!*(1+#REF!)^(INT(($A67-1)/12)))/12) ->  | I67: =IF(AND(A67>#REF!,A67<(#REF!+#REF!+1)),#REF!/#REF!,0) ->  | J67: =IF(AND($A67>#REF!,$A67<(#REF!+#REF!+1)),#REF!/#REF!,0) ->  | K67: =IF(AND($A67>#REF!,$A67<(#REF!+#REF!+1)),#REF!/#REF!,0) ->  | L67: =IF(AND($A67>#REF!,$A67<(#REF!+#REF!+1)),#REF!/#REF!,0) ->  | M67: =IF(AND($A67>#REF!,$A67<(#REF!+#REF!+1)),#REF!/#REF!,0) ->  | N67: =IF(AND($A67>#REF!,$A67<(#REF!+#REF!+1)),#REF!/#REF!,0) ->  | O67: =IF(AND($A67>#REF!,$A67<(#REF!+#REF!+1)),#REF!/#REF!,0) ->  | P67: =IF(AND($A67>#REF!,$A67<(#REF!+#REF!+1)),#REF!/#REF!,0) ->  | Q67: =-SUMIF(#REF!,A67,#REF!)/#REF! ->  | R67: =SUM(H67:Q67)+E67+B67 -> 
A68: 65 | B68: =VLOOKUP(A68,#REF!,3)/12 ->  | C68: =-#REF!/12 ->  | D68: =-IF($A68>#REF!,0,(#REF!*(1+#REF!)^(INT((A68-1)/12)))/12) ->  | E68: =IF(D68>C68,D68,C68) ->  | F68: =-#REF!/12 ->  | G68: =-IF($A68>#REF!,0,(#REF!*(1+#REF!)^(INT(($A68-1)/12)))/12) ->  | H68: =IF(G68>F68,G68,F68) ->  | I68: =IF(AND(A68>#REF!,A68<(#REF!+#REF!+1)),#REF!/#REF!,0) ->  | J68: =IF(AND($A68>#REF!,$A68<(#REF!+#REF!+1)),#REF!/#REF!,0) ->  | K68: =IF(AND($A68>#REF!,$A68<(#REF!+#REF!+1)),#REF!/#REF!,0) ->  | L68: =IF(AND($A68>#REF!,$A68<(#REF!+#REF!+1)),#REF!/#REF!,0) ->  | M68: =IF(AND($A68>#REF!,$A68<(#REF!+#REF!+1)),#REF!/#REF!,0) ->  | N68: =IF(AND($A68>#REF!,$A68<(#REF!+#REF!+1)),#REF!/#REF!,0) ->  | O68: =IF(AND($A68>#REF!,$A68<(#REF!+#REF!+1)),#REF!/#REF!,0) ->  | P68: =IF(AND($A68>#REF!,$A68<(#REF!+#REF!+1)),#REF!/#REF!,0) ->  | Q68: =-SUMIF(#REF!,A68,#REF!)/#REF! -> 
A69: 66 | B69: =VLOOKUP(A69,#REF!,3)/12 ->  | C69: =-#REF!/12 ->  | D69: =-IF($A69>#REF!,0,(#REF!*(1+#REF!)^(INT((A69-1)/12)))/12) ->  | F69: =-#REF!/12 ->  | G69: =-IF($A69>#REF!,0,(#REF!*(1+#REF!)^(INT(($A69-1)/12)))/12) ->  | I69: =IF(AND(A69>#REF!,A69<(#REF!+#REF!+1)),#REF!/#REF!,0) ->  | J69: =IF(AND($A69>#REF!,$A69<(#REF!+#REF!+1)),#REF!/#REF!,0) ->  | K69: =IF(AND($A69>#REF!,$A69<(#REF!+#REF!+1)),#REF!/#REF!,0) ->  | L69: =IF(AND($A69>#REF!,$A69<(#REF!+#REF!+1)),#REF!/#REF!,0) ->  | M69: =IF(AND($A69>#REF!,$A69<(#REF!+#REF!+1)),#REF!/#REF!,0) ->  | N69: =IF(AND($A69>#REF!,$A69<(#REF!+#REF!+1)),#REF!/#REF!,0) ->  | O69: =IF(AND($A69>#REF!,$A69<(#REF!+#REF!+1)),#REF!/#REF!,0) ->  | P69: =IF(AND($A69>#REF!,$A69<(#REF!+#REF!+1)),#REF!/#REF!,0) ->  | Q69: =-SUMIF(#REF!,A69,#REF!)/#REF! -> 
A70: 67 | B70: =VLOOKUP(A70,#REF!,3)/12 ->  | C70: =-#REF!/12 ->  | D70: =-IF($A70>#REF!,0,(#REF!*(1+#REF!)^(INT((A70-1)/12)))/12) ->  | F70: =-#REF!/12 ->  | G70: =-IF($A70>#REF!,0,(#REF!*(1+#REF!)^(INT(($A70-1)/12)))/12) ->  | I70: =IF(AND(A70>#REF!,A70<(#REF!+#REF!+1)),#REF!/#REF!,0) ->  | J70: =IF(AND($A70>#REF!,$A70<(#REF!+#REF!+1)),#REF!/#REF!,0) ->  | K70: =IF(AND($A70>#REF!,$A70<(#REF!+#REF!+1)),#REF!/#REF!,0) ->  | L70: =IF(AND($A70>#REF!,$A70<(#REF!+#REF!+1)),#REF!/#REF!,0) ->  | M70: =IF(AND($A70>#REF!,$A70<(#REF!+#REF!+1)),#REF!/#REF!,0) ->  | N70: =IF(AND($A70>#REF!,$A70<(#REF!+#REF!+1)),#REF!/#REF!,0) ->  | O70: =IF(AND($A70>#REF!,$A70<(#REF!+#REF!+1)),#REF!/#REF!,0) ->  | P70: =IF(AND($A70>#REF!,$A70<(#REF!+#REF!+1)),#REF!/#REF!,0) ->  | Q70: =-SUMIF(#REF!,A70,#REF!)/#REF! -> 
A71: 68 | B71: =VLOOKUP(A71,#REF!,3)/12 ->  | C71: =-#REF!/12 ->  | D71: =-IF($A71>#REF!,0,(#REF!*(1+#REF!)^(INT((A71-1)/12)))/12) ->  | F71: =-#REF!/12 ->  | G71: =-IF($A71>#REF!,0,(#REF!*(1+#REF!)^(INT(($A71-1)/12)))/12) ->  | I71: =IF(AND(A71>#REF!,A71<(#REF!+#REF!+1)),#REF!/#REF!,0) ->  | J71: =IF(AND($A71>#REF!,$A71<(#REF!+#REF!+1)),#REF!/#REF!,0) ->  | K71: =IF(AND($A71>#REF!,$A71<(#REF!+#REF!+1)),#REF!/#REF!,0) ->  | L71: =IF(AND($A71>#REF!,$A71<(#REF!+#REF!+1)),#REF!/#REF!,0) ->  | M71: =IF(AND($A71>#REF!,$A71<(#REF!+#REF!+1)),#REF!/#REF!,0) ->  | N71: =IF(AND($A71>#REF!,$A71<(#REF!+#REF!+1)),#REF!/#REF!,0) ->  | O71: =IF(AND($A71>#REF!,$A71<(#REF!+#REF!+1)),#REF!/#REF!,0) ->  | P71: =IF(AND($A71>#REF!,$A71<(#REF!+#REF!+1)),#REF!/#REF!,0) ->  | Q71: =-SUMIF(#REF!,A71,#REF!)/#REF! -> 
A72: 69 | B72: =VLOOKUP(A72,#REF!,3)/12 ->  | C72: =-#REF!/12 ->  | D72: =-IF($A72>#REF!,0,(#REF!*(1+#REF!)^(INT((A72-1)/12)))/12) ->  | F72: =-#REF!/12 ->  | G72: =-IF($A72>#REF!,0,(#REF!*(1+#REF!)^(INT(($A72-1)/12)))/12) ->  | I72: =IF(AND(A72>#REF!,A72<(#REF!+#REF!+1)),#REF!/#REF!,0) ->  | J72: =IF(AND($A72>#REF!,$A72<(#REF!+#REF!+1)),#REF!/#REF!,0) ->  | K72: =IF(AND($A72>#REF!,$A72<(#REF!+#REF!+1)),#REF!/#REF!,0) ->  | L72: =IF(AND($A72>#REF!,$A72<(#REF!+#REF!+1)),#REF!/#REF!,0) ->  | M72: =IF(AND($A72>#REF!,$A72<(#REF!+#REF!+1)),#REF!/#REF!,0) ->  | N72: =IF(AND($A72>#REF!,$A72<(#REF!+#REF!+1)),#REF!/#REF!,0) ->  | O72: =IF(AND($A72>#REF!,$A72<(#REF!+#REF!+1)),#REF!/#REF!,0) ->  | P72: =IF(AND($A72>#REF!,$A72<(#REF!+#REF!+1)),#REF!/#REF!,0) ->  | Q72: =-SUMIF(#REF!,A72,#REF!)/#REF! -> 
A73: 70 | B73: =VLOOKUP(A73,#REF!,3)/12 ->  | C73: =-#REF!/12 ->  | D73: =-IF($A73>#REF!,0,(#REF!*(1+#REF!)^(INT((A73-1)/12)))/12) ->  | F73: =-#REF!/12 ->  | G73: =-IF($A73>#REF!,0,(#REF!*(1+#REF!)^(INT(($A73-1)/12)))/12) ->  | I73: =IF(AND(A73>#REF!,A73<(#REF!+#REF!+1)),#REF!/#REF!,0) ->  | J73: =IF(AND($A73>#REF!,$A73<(#REF!+#REF!+1)),#REF!/#REF!,0) ->  | K73: =IF(AND($A73>#REF!,$A73<(#REF!+#REF!+1)),#REF!/#REF!,0) ->  | L73: =IF(AND($A73>#REF!,$A73<(#REF!+#REF!+1)),#REF!/#REF!,0) ->  | M73: =IF(AND($A73>#REF!,$A73<(#REF!+#REF!+1)),#REF!/#REF!,0) ->  | N73: =IF(AND($A73>#REF!,$A73<(#REF!+#REF!+1)),#REF!/#REF!,0) ->  | O73: =IF(AND($A73>#REF!,$A73<(#REF!+#REF!+1)),#REF!/#REF!,0) ->  | P73: =IF(AND($A73>#REF!,$A73<(#REF!+#REF!+1)),#REF!/#REF!,0) ->  | Q73: =-SUMIF(#REF!,A73,#REF!)/#REF! -> 
A74: 71 | B74: =VLOOKUP(A74,#REF!,3)/12 ->  | C74: =-#REF!/12 ->  | D74: =-IF($A74>#REF!,0,(#REF!*(1+#REF!)^(INT((A74-1)/12)))/12) ->  | F74: =-#REF!/12 ->  | G74: =-IF($A74>#REF!,0,(#REF!*(1+#REF!)^(INT(($A74-1)/12)))/12) ->  | I74: =IF(AND(A74>#REF!,A74<(#REF!+#REF!+1)),#REF!/#REF!,0) ->  | J74: =IF(AND($A74>#REF!,$A74<(#REF!+#REF!+1)),#REF!/#REF!,0) ->  | K74: =IF(AND($A74>#REF!,$A74<(#REF!+#REF!+1)),#REF!/#REF!,0) ->  | L74: =IF(AND($A74>#REF!,$A74<(#REF!+#REF!+1)),#REF!/#REF!,0) ->  | M74: =IF(AND($A74>#REF!,$A74<(#REF!+#REF!+1)),#REF!/#REF!,0) ->  | N74: =IF(AND($A74>#REF!,$A74<(#REF!+#REF!+1)),#REF!/#REF!,0) ->  | O74: =IF(AND($A74>#REF!,$A74<(#REF!+#REF!+1)),#REF!/#REF!,0) ->  | P74: =IF(AND($A74>#REF!,$A74<(#REF!+#REF!+1)),#REF!/#REF!,0) ->  | Q74: =-SUMIF(#REF!,A74,#REF!)/#REF! -> 
A75: 72 | B75: =VLOOKUP(A75,#REF!,3)/12 ->  | C75: =-#REF!/12 ->  | D75: =-IF($A75>#REF!,0,(#REF!*(1+#REF!)^(INT((A75-1)/12)))/12) ->  | F75: =-#REF!/12 ->  | G75: =-IF($A75>#REF!,0,(#REF!*(1+#REF!)^(INT(($A75-1)/12)))/12) ->  | I75: =IF(AND(A75>#REF!,A75<(#REF!+#REF!+1)),#REF!/#REF!,0) ->  | J75: =IF(AND($A75>#REF!,$A75<(#REF!+#REF!+1)),#REF!/#REF!,0) ->  | K75: =IF(AND($A75>#REF!,$A75<(#REF!+#REF!+1)),#REF!/#REF!,0) ->  | L75: =IF(AND($A75>#REF!,$A75<(#REF!+#REF!+1)),#REF!/#REF!,0) ->  | M75: =IF(AND($A75>#REF!,$A75<(#REF!+#REF!+1)),#REF!/#REF!,0) ->  | N75: =IF(AND($A75>#REF!,$A75<(#REF!+#REF!+1)),#REF!/#REF!,0) ->  | O75: =IF(AND($A75>#REF!,$A75<(#REF!+#REF!+1)),#REF!/#REF!,0) ->  | P75: =IF(AND($A75>#REF!,$A75<(#REF!+#REF!+1)),#REF!/#REF!,0) ->  | Q75: =-SUMIF(#REF!,A75,#REF!)/#REF! -> 
A76: 73 | B76: =VLOOKUP(A76,#REF!,3)/12 ->  | C76: =-#REF!/12 ->  | D76: =-IF($A76>#REF!,0,(#REF!*(1+#REF!)^(INT((A76-1)/12)))/12) ->  | F76: =-#REF!/12 ->  | G76: =-IF($A76>#REF!,0,(#REF!*(1+#REF!)^(INT(($A76-1)/12)))/12) ->  | I76: =IF(AND(A76>#REF!,A76<(#REF!+#REF!+1)),#REF!/#REF!,0) ->  | J76: =IF(AND($A76>#REF!,$A76<(#REF!+#REF!+1)),#REF!/#REF!,0) ->  | K76: =IF(AND($A76>#REF!,$A76<(#REF!+#REF!+1)),#REF!/#REF!,0) ->  | L76: =IF(AND($A76>#REF!,$A76<(#REF!+#REF!+1)),#REF!/#REF!,0) ->  | M76: =IF(AND($A76>#REF!,$A76<(#REF!+#REF!+1)),#REF!/#REF!,0) ->  | N76: =IF(AND($A76>#REF!,$A76<(#REF!+#REF!+1)),#REF!/#REF!,0) ->  | O76: =IF(AND($A76>#REF!,$A76<(#REF!+#REF!+1)),#REF!/#REF!,0) ->  | P76: =IF(AND($A76>#REF!,$A76<(#REF!+#REF!+1)),#REF!/#REF!,0) ->  | Q76: =-SUMIF(#REF!,A76,#REF!)/#REF! -> 
A77: 74 | B77: =VLOOKUP(A77,#REF!,3)/12 ->  | C77: =-#REF!/12 ->  | D77: =-IF($A77>#REF!,0,(#REF!*(1+#REF!)^(INT((A77-1)/12)))/12) ->  | F77: =-#REF!/12 ->  | G77: =-IF($A77>#REF!,0,(#REF!*(1+#REF!)^(INT(($A77-1)/12)))/12) ->  | I77: =IF(AND(A77>#REF!,A77<(#REF!+#REF!+1)),#REF!/#REF!,0) ->  | J77: =IF(AND($A77>#REF!,$A77<(#REF!+#REF!+1)),#REF!/#REF!,0) ->  | K77: =IF(AND($A77>#REF!,$A77<(#REF!+#REF!+1)),#REF!/#REF!,0) ->  | L77: =IF(AND($A77>#REF!,$A77<(#REF!+#REF!+1)),#REF!/#REF!,0) ->  | M77: =IF(AND($A77>#REF!,$A77<(#REF!+#REF!+1)),#REF!/#REF!,0) ->  | N77: =IF(AND($A77>#REF!,$A77<(#REF!+#REF!+1)),#REF!/#REF!,0) ->  | O77: =IF(AND($A77>#REF!,$A77<(#REF!+#REF!+1)),#REF!/#REF!,0) ->  | P77: =IF(AND($A77>#REF!,$A77<(#REF!+#REF!+1)),#REF!/#REF!,0) ->  | Q77: =-SUMIF(#REF!,A77,#REF!)/#REF! -> 
A78: 75 | B78: =VLOOKUP(A78,#REF!,3)/12 ->  | C78: =-#REF!/12 ->  | D78: =-IF($A78>#REF!,0,(#REF!*(1+#REF!)^(INT((A78-1)/12)))/12) ->  | F78: =-#REF!/12 ->  | G78: =-IF($A78>#REF!,0,(#REF!*(1+#REF!)^(INT(($A78-1)/12)))/12) ->  | I78: =IF(AND(A78>#REF!,A78<(#REF!+#REF!+1)),#REF!/#REF!,0) ->  | J78: =IF(AND($A78>#REF!,$A78<(#REF!+#REF!+1)),#REF!/#REF!,0) ->  | K78: =IF(AND($A78>#REF!,$A78<(#REF!+#REF!+1)),#REF!/#REF!,0) ->  | L78: =IF(AND($A78>#REF!,$A78<(#REF!+#REF!+1)),#REF!/#REF!,0) ->  | M78: =IF(AND($A78>#REF!,$A78<(#REF!+#REF!+1)),#REF!/#REF!,0) ->  | N78: =IF(AND($A78>#REF!,$A78<(#REF!+#REF!+1)),#REF!/#REF!,0) ->  | O78: =IF(AND($A78>#REF!,$A78<(#REF!+#REF!+1)),#REF!/#REF!,0) ->  | P78: =IF(AND($A78>#REF!,$A78<(#REF!+#REF!+1)),#REF!/#REF!,0) ->  | Q78: =-SUMIF(#REF!,A78,#REF!)/#REF! -> 
A79: 76 | B79: =VLOOKUP(A79,#REF!,3)/12 ->  | C79: =-#REF!/12 ->  | D79: =-IF($A79>#REF!,0,(#REF!*(1+#REF!)^(INT((A79-1)/12)))/12) ->  | F79: =-#REF!/12 ->  | G79: =-IF($A79>#REF!,0,(#REF!*(1+#REF!)^(INT(($A79-1)/12)))/12) ->  | I79: =IF(AND(A79>#REF!,A79<(#REF!+#REF!+1)),#REF!/#REF!,0) ->  | J79: =IF(AND($A79>#REF!,$A79<(#REF!+#REF!+1)),#REF!/#REF!,0) ->  | K79: =IF(AND($A79>#REF!,$A79<(#REF!+#REF!+1)),#REF!/#REF!,0) ->  | L79: =IF(AND($A79>#REF!,$A79<(#REF!+#REF!+1)),#REF!/#REF!,0) ->  | M79: =IF(AND($A79>#REF!,$A79<(#REF!+#REF!+1)),#REF!/#REF!,0) ->  | N79: =IF(AND($A79>#REF!,$A79<(#REF!+#REF!+1)),#REF!/#REF!,0) ->  | O79: =IF(AND($A79>#REF!,$A79<(#REF!+#REF!+1)),#REF!/#REF!,0) ->  | P79: =IF(AND($A79>#REF!,$A79<(#REF!+#REF!+1)),#REF!/#REF!,0) ->  | Q79: =-SUMIF(#REF!,A79,#REF!)/#REF! -> 
A80: 77 | B80: =VLOOKUP(A80,#REF!,3)/12 ->  | C80: =-#REF!/12 ->  | D80: =-IF($A80>#REF!,0,(#REF!*(1+#REF!)^(INT((A80-1)/12)))/12) ->  | F80: =-#REF!/12 ->  | G80: =-IF($A80>#REF!,0,(#REF!*(1+#REF!)^(INT(($A80-1)/12)))/12) ->  | I80: =IF(AND(A80>#REF!,A80<(#REF!+#REF!+1)),#REF!/#REF!,0) ->  | J80: =IF(AND($A80>#REF!,$A80<(#REF!+#REF!+1)),#REF!/#REF!,0) ->  | K80: =IF(AND($A80>#REF!,$A80<(#REF!+#REF!+1)),#REF!/#REF!,0) ->  | L80: =IF(AND($A80>#REF!,$A80<(#REF!+#REF!+1)),#REF!/#REF!,0) ->  | M80: =IF(AND($A80>#REF!,$A80<(#REF!+#REF!+1)),#REF!/#REF!,0) ->  | N80: =IF(AND($A80>#REF!,$A80<(#REF!+#REF!+1)),#REF!/#REF!,0) ->  | O80: =IF(AND($A80>#REF!,$A80<(#REF!+#REF!+1)),#REF!/#REF!,0) ->  | P80: =IF(AND($A80>#REF!,$A80<(#REF!+#REF!+1)),#REF!/#REF!,0) ->  | Q80: =-SUMIF(#REF!,A80,#REF!)/#REF! -> 
A81: 78 | B81: =VLOOKUP(A81,#REF!,3)/12 ->  | C81: =-#REF!/12 ->  | D81: =-IF($A81>#REF!,0,(#REF!*(1+#REF!)^(INT((A81-1)/12)))/12) ->  | F81: =-#REF!/12 ->  | G81: =-IF($A81>#REF!,0,(#REF!*(1+#REF!)^(INT(($A81-1)/12)))/12) ->  | I81: =IF(AND(A81>#REF!,A81<(#REF!+#REF!+1)),#REF!/#REF!,0) ->  | J81: =IF(AND($A81>#REF!,$A81<(#REF!+#REF!+1)),#REF!/#REF!,0) ->  | K81: =IF(AND($A81>#REF!,$A81<(#REF!+#REF!+1)),#REF!/#REF!,0) ->  | L81: =IF(AND($A81>#REF!,$A81<(#REF!+#REF!+1)),#REF!/#REF!,0) ->  | M81: =IF(AND($A81>#REF!,$A81<(#REF!+#REF!+1)),#REF!/#REF!,0) ->  | N81: =IF(AND($A81>#REF!,$A81<(#REF!+#REF!+1)),#REF!/#REF!,0) ->  | O81: =IF(AND($A81>#REF!,$A81<(#REF!+#REF!+1)),#REF!/#REF!,0) ->  | P81: =IF(AND($A81>#REF!,$A81<(#REF!+#REF!+1)),#REF!/#REF!,0) ->  | Q81: =-SUMIF(#REF!,A81,#REF!)/#REF! -> 
A82: 79 | B82: =VLOOKUP(A82,#REF!,3)/12 ->  | C82: =-#REF!/12 ->  | D82: =-IF($A82>#REF!,0,(#REF!*(1+#REF!)^(INT((A82-1)/12)))/12) ->  | F82: =-#REF!/12 ->  | G82: =-IF($A82>#REF!,0,(#REF!*(1+#REF!)^(INT(($A82-1)/12)))/12) ->  | I82: =IF(AND(A82>#REF!,A82<(#REF!+#REF!+1)),#REF!/#REF!,0) ->  | J82: =IF(AND($A82>#REF!,$A82<(#REF!+#REF!+1)),#REF!/#REF!,0) ->  | K82: =IF(AND($A82>#REF!,$A82<(#REF!+#REF!+1)),#REF!/#REF!,0) ->  | L82: =IF(AND($A82>#REF!,$A82<(#REF!+#REF!+1)),#REF!/#REF!,0) ->  | M82: =IF(AND($A82>#REF!,$A82<(#REF!+#REF!+1)),#REF!/#REF!,0) ->  | N82: =IF(AND($A82>#REF!,$A82<(#REF!+#REF!+1)),#REF!/#REF!,0) ->  | O82: =IF(AND($A82>#REF!,$A82<(#REF!+#REF!+1)),#REF!/#REF!,0) ->  | P82: =IF(AND($A82>#REF!,$A82<(#REF!+#REF!+1)),#REF!/#REF!,0) ->  | Q82: =-SUMIF(#REF!,A82,#REF!)/#REF! -> 
A83: 80 | B83: =VLOOKUP(A83,#REF!,3)/12 ->  | C83: =-#REF!/12 ->  | D83: =-IF($A83>#REF!,0,(#REF!*(1+#REF!)^(INT((A83-1)/12)))/12) ->  | F83: =-#REF!/12 ->  | G83: =-IF($A83>#REF!,0,(#REF!*(1+#REF!)^(INT(($A83-1)/12)))/12) ->  | I83: =IF(AND(A83>#REF!,A83<(#REF!+#REF!+1)),#REF!/#REF!,0) ->  | J83: =IF(AND($A83>#REF!,$A83<(#REF!+#REF!+1)),#REF!/#REF!,0) ->  | K83: =IF(AND($A83>#REF!,$A83<(#REF!+#REF!+1)),#REF!/#REF!,0) ->  | L83: =IF(AND($A83>#REF!,$A83<(#REF!+#REF!+1)),#REF!/#REF!,0) ->  | M83: =IF(AND($A83>#REF!,$A83<(#REF!+#REF!+1)),#REF!/#REF!,0) ->  | N83: =IF(AND($A83>#REF!,$A83<(#REF!+#REF!+1)),#REF!/#REF!,0) ->  | O83: =IF(AND($A83>#REF!,$A83<(#REF!+#REF!+1)),#REF!/#REF!,0) ->  | P83: =IF(AND($A83>#REF!,$A83<(#REF!+#REF!+1)),#REF!/#REF!,0) ->  | Q83: =-SUMIF(#REF!,A83,#REF!)/#REF! -> 
A84: 81 | B84: =VLOOKUP(A84,#REF!,3)/12 ->  | C84: =-#REF!/12 ->  | D84: =-IF($A84>#REF!,0,(#REF!*(1+#REF!)^(INT((A84-1)/12)))/12) ->  | F84: =-#REF!/12 ->  | G84: =-IF($A84>#REF!,0,(#REF!*(1+#REF!)^(INT(($A84-1)/12)))/12) ->  | I84: =IF(AND(A84>#REF!,A84<(#REF!+#REF!+1)),#REF!/#REF!,0) ->  | J84: =IF(AND($A84>#REF!,$A84<(#REF!+#REF!+1)),#REF!/#REF!,0) ->  | K84: =IF(AND($A84>#REF!,$A84<(#REF!+#REF!+1)),#REF!/#REF!,0) ->  | L84: =IF(AND($A84>#REF!,$A84<(#REF!+#REF!+1)),#REF!/#REF!,0) ->  | M84: =IF(AND($A84>#REF!,$A84<(#REF!+#REF!+1)),#REF!/#REF!,0) ->  | N84: =IF(AND($A84>#REF!,$A84<(#REF!+#REF!+1)),#REF!/#REF!,0) ->  | O84: =IF(AND($A84>#REF!,$A84<(#REF!+#REF!+1)),#REF!/#REF!,0) ->  | P84: =IF(AND($A84>#REF!,$A84<(#REF!+#REF!+1)),#REF!/#REF!,0) ->  | Q84: =-SUMIF(#REF!,A84,#REF!)/#REF! -> 
A85: 82 | B85: =VLOOKUP(A85,#REF!,3)/12 ->  | C85: =-#REF!/12 ->  | D85: =-IF($A85>#REF!,0,(#REF!*(1+#REF!)^(INT((A85-1)/12)))/12) ->  | F85: =-#REF!/12 ->  | G85: =-IF($A85>#REF!,0,(#REF!*(1+#REF!)^(INT(($A85-1)/12)))/12) ->  | I85: =IF(AND(A85>#REF!,A85<(#REF!+#REF!+1)),#REF!/#REF!,0) ->  | J85: =IF(AND($A85>#REF!,$A85<(#REF!+#REF!+1)),#REF!/#REF!,0) ->  | K85: =IF(AND($A85>#REF!,$A85<(#REF!+#REF!+1)),#REF!/#REF!,0) ->  | L85: =IF(AND($A85>#REF!,$A85<(#REF!+#REF!+1)),#REF!/#REF!,0) ->  | M85: =IF(AND($A85>#REF!,$A85<(#REF!+#REF!+1)),#REF!/#REF!,0) ->  | N85: =IF(AND($A85>#REF!,$A85<(#REF!+#REF!+1)),#REF!/#REF!,0) ->  | O85: =IF(AND($A85>#REF!,$A85<(#REF!+#REF!+1)),#REF!/#REF!,0) ->  | P85: =IF(AND($A85>#REF!,$A85<(#REF!+#REF!+1)),#REF!/#REF!,0) ->  | Q85: =-SUMIF(#REF!,A85,#REF!)/#REF! -> 
A86: 83 | B86: =VLOOKUP(A86,#REF!,3)/12 ->  | C86: =-#REF!/12 ->  | D86: =-IF($A86>#REF!,0,(#REF!*(1+#REF!)^(INT((A86-1)/12)))/12) ->  | F86: =-#REF!/12 ->  | G86: =-IF($A86>#REF!,0,(#REF!*(1+#REF!)^(INT(($A86-1)/12)))/12) ->  | I86: =IF(AND(A86>#REF!,A86<(#REF!+#REF!+1)),#REF!/#REF!,0) ->  | J86: =IF(AND($A86>#REF!,$A86<(#REF!+#REF!+1)),#REF!/#REF!,0) ->  | K86: =IF(AND($A86>#REF!,$A86<(#REF!+#REF!+1)),#REF!/#REF!,0) ->  | L86: =IF(AND($A86>#REF!,$A86<(#REF!+#REF!+1)),#REF!/#REF!,0) ->  | M86: =IF(AND($A86>#REF!,$A86<(#REF!+#REF!+1)),#REF!/#REF!,0) ->  | N86: =IF(AND($A86>#REF!,$A86<(#REF!+#REF!+1)),#REF!/#REF!,0) ->  | O86: =IF(AND($A86>#REF!,$A86<(#REF!+#REF!+1)),#REF!/#REF!,0) ->  | P86: =IF(AND($A86>#REF!,$A86<(#REF!+#REF!+1)),#REF!/#REF!,0) ->  | Q86: =-SUMIF(#REF!,A86,#REF!)/#REF! -> 
A87: 84 | B87: =VLOOKUP(A87,#REF!,3)/12 ->  | C87: =-#REF!/12 ->  | D87: =-IF($A87>#REF!,0,(#REF!*(1+#REF!)^(INT((A87-1)/12)))/12) ->  | F87: =-#REF!/12 ->  | G87: =-IF($A87>#REF!,0,(#REF!*(1+#REF!)^(INT(($A87-1)/12)))/12) ->  | I87: =IF(AND(A87>#REF!,A87<(#REF!+#REF!+1)),#REF!/#REF!,0) ->  | J87: =IF(AND($A87>#REF!,$A87<(#REF!+#REF!+1)),#REF!/#REF!,0) ->  | K87: =IF(AND($A87>#REF!,$A87<(#REF!+#REF!+1)),#REF!/#REF!,0) ->  | L87: =IF(AND($A87>#REF!,$A87<(#REF!+#REF!+1)),#REF!/#REF!,0) ->  | M87: =IF(AND($A87>#REF!,$A87<(#REF!+#REF!+1)),#REF!/#REF!,0) ->  | N87: =IF(AND($A87>#REF!,$A87<(#REF!+#REF!+1)),#REF!/#REF!,0) ->  | O87: =IF(AND($A87>#REF!,$A87<(#REF!+#REF!+1)),#REF!/#REF!,0) ->  | P87: =IF(AND($A87>#REF!,$A87<(#REF!+#REF!+1)),#REF!/#REF!,0) ->  | Q87: =-SUMIF(#REF!,A87,#REF!)/#REF! -> 
A88: 85 | B88: =VLOOKUP(A88,#REF!,3)/12 ->  | C88: =-#REF!/12 ->  | D88: =-IF($A88>#REF!,0,(#REF!*(1+#REF!)^(INT((A88-1)/12)))/12) ->  | F88: =-#REF!/12 ->  | G88: =-IF($A88>#REF!,0,(#REF!*(1+#REF!)^(INT(($A88-1)/12)))/12) ->  | I88: =IF(AND(A88>#REF!,A88<(#REF!+#REF!+1)),#REF!/#REF!,0) ->  | J88: =IF(AND($A88>#REF!,$A88<(#REF!+#REF!+1)),#REF!/#REF!,0) ->  | K88: =IF(AND($A88>#REF!,$A88<(#REF!+#REF!+1)),#REF!/#REF!,0) ->  | L88: =IF(AND($A88>#REF!,$A88<(#REF!+#REF!+1)),#REF!/#REF!,0) ->  | M88: =IF(AND($A88>#REF!,$A88<(#REF!+#REF!+1)),#REF!/#REF!,0) ->  | N88: =IF(AND($A88>#REF!,$A88<(#REF!+#REF!+1)),#REF!/#REF!,0) ->  | O88: =IF(AND($A88>#REF!,$A88<(#REF!+#REF!+1)),#REF!/#REF!,0) ->  | P88: =IF(AND($A88>#REF!,$A88<(#REF!+#REF!+1)),#REF!/#REF!,0) ->  | Q88: =-SUMIF(#REF!,A88,#REF!)/#REF! -> 
A89: 86 | B89: =VLOOKUP(A89,#REF!,3)/12 ->  | C89: =-#REF!/12 ->  | D89: =-IF($A89>#REF!,0,(#REF!*(1+#REF!)^(INT((A89-1)/12)))/12) ->  | F89: =-#REF!/12 ->  | G89: =-IF($A89>#REF!,0,(#REF!*(1+#REF!)^(INT(($A89-1)/12)))/12) ->  | I89: =IF(AND(A89>#REF!,A89<(#REF!+#REF!+1)),#REF!/#REF!,0) ->  | J89: =IF(AND($A89>#REF!,$A89<(#REF!+#REF!+1)),#REF!/#REF!,0) ->  | K89: =IF(AND($A89>#REF!,$A89<(#REF!+#REF!+1)),#REF!/#REF!,0) ->  | L89: =IF(AND($A89>#REF!,$A89<(#REF!+#REF!+1)),#REF!/#REF!,0) ->  | M89: =IF(AND($A89>#REF!,$A89<(#REF!+#REF!+1)),#REF!/#REF!,0) ->  | N89: =IF(AND($A89>#REF!,$A89<(#REF!+#REF!+1)),#REF!/#REF!,0) ->  | O89: =IF(AND($A89>#REF!,$A89<(#REF!+#REF!+1)),#REF!/#REF!,0) ->  | P89: =IF(AND($A89>#REF!,$A89<(#REF!+#REF!+1)),#REF!/#REF!,0) ->  | Q89: =-SUMIF(#REF!,A89,#REF!)/#REF! -> 
A90: 87 | B90: =VLOOKUP(A90,#REF!,3)/12 ->  | C90: =-#REF!/12 ->  | D90: =-IF($A90>#REF!,0,(#REF!*(1+#REF!)^(INT((A90-1)/12)))/12) ->  | F90: =-#REF!/12 ->  | G90: =-IF($A90>#REF!,0,(#REF!*(1+#REF!)^(INT(($A90-1)/12)))/12) ->  | I90: =IF(AND(A90>#REF!,A90<(#REF!+#REF!+1)),#REF!/#REF!,0) ->  | J90: =IF(AND($A90>#REF!,$A90<(#REF!+#REF!+1)),#REF!/#REF!,0) ->  | K90: =IF(AND($A90>#REF!,$A90<(#REF!+#REF!+1)),#REF!/#REF!,0) ->  | L90: =IF(AND($A90>#REF!,$A90<(#REF!+#REF!+1)),#REF!/#REF!,0) ->  | M90: =IF(AND($A90>#REF!,$A90<(#REF!+#REF!+1)),#REF!/#REF!,0) ->  | N90: =IF(AND($A90>#REF!,$A90<(#REF!+#REF!+1)),#REF!/#REF!,0) ->  | O90: =IF(AND($A90>#REF!,$A90<(#REF!+#REF!+1)),#REF!/#REF!,0) ->  | P90: =IF(AND($A90>#REF!,$A90<(#REF!+#REF!+1)),#REF!/#REF!,0) ->  | Q90: =-SUMIF(#REF!,A90,#REF!)/#REF! -> 
A91: 88 | B91: =VLOOKUP(A91,#REF!,3)/12 ->  | C91: =-#REF!/12 ->  | D91: =-IF($A91>#REF!,0,(#REF!*(1+#REF!)^(INT((A91-1)/12)))/12) ->  | F91: =-#REF!/12 ->  | G91: =-IF($A91>#REF!,0,(#REF!*(1+#REF!)^(INT(($A91-1)/12)))/12) ->  | I91: =IF(AND(A91>#REF!,A91<(#REF!+#REF!+1)),#REF!/#REF!,0) ->  | J91: =IF(AND($A91>#REF!,$A91<(#REF!+#REF!+1)),#REF!/#REF!,0) ->  | K91: =IF(AND($A91>#REF!,$A91<(#REF!+#REF!+1)),#REF!/#REF!,0) ->  | L91: =IF(AND($A91>#REF!,$A91<(#REF!+#REF!+1)),#REF!/#REF!,0) ->  | M91: =IF(AND($A91>#REF!,$A91<(#REF!+#REF!+1)),#REF!/#REF!,0) ->  | N91: =IF(AND($A91>#REF!,$A91<(#REF!+#REF!+1)),#REF!/#REF!,0) ->  | O91: =IF(AND($A91>#REF!,$A91<(#REF!+#REF!+1)),#REF!/#REF!,0) ->  | P91: =IF(AND($A91>#REF!,$A91<(#REF!+#REF!+1)),#REF!/#REF!,0) ->  | Q91: =-SUMIF(#REF!,A91,#REF!)/#REF! -> 
A92: 89 | B92: =VLOOKUP(A92,#REF!,3)/12 ->  | C92: =-#REF!/12 ->  | D92: =-IF($A92>#REF!,0,(#REF!*(1+#REF!)^(INT((A92-1)/12)))/12) ->  | F92: =-#REF!/12 ->  | G92: =-IF($A92>#REF!,0,(#REF!*(1+#REF!)^(INT(($A92-1)/12)))/12) ->  | I92: =IF(AND(A92>#REF!,A92<(#REF!+#REF!+1)),#REF!/#REF!,0) ->  | J92: =IF(AND($A92>#REF!,$A92<(#REF!+#REF!+1)),#REF!/#REF!,0) ->  | K92: =IF(AND($A92>#REF!,$A92<(#REF!+#REF!+1)),#REF!/#REF!,0) ->  | L92: =IF(AND($A92>#REF!,$A92<(#REF!+#REF!+1)),#REF!/#REF!,0) ->  | M92: =IF(AND($A92>#REF!,$A92<(#REF!+#REF!+1)),#REF!/#REF!,0) ->  | N92: =IF(AND($A92>#REF!,$A92<(#REF!+#REF!+1)),#REF!/#REF!,0) ->  | O92: =IF(AND($A92>#REF!,$A92<(#REF!+#REF!+1)),#REF!/#REF!,0) ->  | P92: =IF(AND($A92>#REF!,$A92<(#REF!+#REF!+1)),#REF!/#REF!,0) ->  | Q92: =-SUMIF(#REF!,A92,#REF!)/#REF! -> 
A93: 90 | B93: =VLOOKUP(A93,#REF!,3)/12 ->  | C93: =-#REF!/12 ->  | D93: =-IF($A93>#REF!,0,(#REF!*(1+#REF!)^(INT((A93-1)/12)))/12) ->  | F93: =-#REF!/12 ->  | G93: =-IF($A93>#REF!,0,(#REF!*(1+#REF!)^(INT(($A93-1)/12)))/12) ->  | I93: =IF(AND(A93>#REF!,A93<(#REF!+#REF!+1)),#REF!/#REF!,0) ->  | J93: =IF(AND($A93>#REF!,$A93<(#REF!+#REF!+1)),#REF!/#REF!,0) ->  | K93: =IF(AND($A93>#REF!,$A93<(#REF!+#REF!+1)),#REF!/#REF!,0) ->  | L93: =IF(AND($A93>#REF!,$A93<(#REF!+#REF!+1)),#REF!/#REF!,0) ->  | M93: =IF(AND($A93>#REF!,$A93<(#REF!+#REF!+1)),#REF!/#REF!,0) ->  | N93: =IF(AND($A93>#REF!,$A93<(#REF!+#REF!+1)),#REF!/#REF!,0) ->  | O93: =IF(AND($A93>#REF!,$A93<(#REF!+#REF!+1)),#REF!/#REF!,0) ->  | P93: =IF(AND($A93>#REF!,$A93<(#REF!+#REF!+1)),#REF!/#REF!,0) ->  | Q93: =-SUMIF(#REF!,A93,#REF!)/#REF! -> 
A94: 91 | B94: =VLOOKUP(A94,#REF!,3)/12 ->  | C94: =-#REF!/12 ->  | D94: =-IF($A94>#REF!,0,(#REF!*(1+#REF!)^(INT((A94-1)/12)))/12) ->  | F94: =-#REF!/12 ->  | G94: =-IF($A94>#REF!,0,(#REF!*(1+#REF!)^(INT(($A94-1)/12)))/12) ->  | I94: =IF(AND(A94>#REF!,A94<(#REF!+#REF!+1)),#REF!/#REF!,0) ->  | J94: =IF(AND($A94>#REF!,$A94<(#REF!+#REF!+1)),#REF!/#REF!,0) ->  | K94: =IF(AND($A94>#REF!,$A94<(#REF!+#REF!+1)),#REF!/#REF!,0) ->  | L94: =IF(AND($A94>#REF!,$A94<(#REF!+#REF!+1)),#REF!/#REF!,0) ->  | M94: =IF(AND($A94>#REF!,$A94<(#REF!+#REF!+1)),#REF!/#REF!,0) ->  | N94: =IF(AND($A94>#REF!,$A94<(#REF!+#REF!+1)),#REF!/#REF!,0) ->  | O94: =IF(AND($A94>#REF!,$A94<(#REF!+#REF!+1)),#REF!/#REF!,0) ->  | P94: =IF(AND($A94>#REF!,$A94<(#REF!+#REF!+1)),#REF!/#REF!,0) ->  | Q94: =-SUMIF(#REF!,A94,#REF!)/#REF! -> 
A95: 92 | B95: =VLOOKUP(A95,#REF!,3)/12 ->  | C95: =-#REF!/12 ->  | D95: =-IF($A95>#REF!,0,(#REF!*(1+#REF!)^(INT((A95-1)/12)))/12) ->  | F95: =-#REF!/12 ->  | G95: =-IF($A95>#REF!,0,(#REF!*(1+#REF!)^(INT(($A95-1)/12)))/12) ->  | I95: =IF(AND(A95>#REF!,A95<(#REF!+#REF!+1)),#REF!/#REF!,0) ->  | J95: =IF(AND($A95>#REF!,$A95<(#REF!+#REF!+1)),#REF!/#REF!,0) ->  | K95: =IF(AND($A95>#REF!,$A95<(#REF!+#REF!+1)),#REF!/#REF!,0) ->  | L95: =IF(AND($A95>#REF!,$A95<(#REF!+#REF!+1)),#REF!/#REF!,0) ->  | M95: =IF(AND($A95>#REF!,$A95<(#REF!+#REF!+1)),#REF!/#REF!,0) ->  | N95: =IF(AND($A95>#REF!,$A95<(#REF!+#REF!+1)),#REF!/#REF!,0) ->  | O95: =IF(AND($A95>#REF!,$A95<(#REF!+#REF!+1)),#REF!/#REF!,0) ->  | P95: =IF(AND($A95>#REF!,$A95<(#REF!+#REF!+1)),#REF!/#REF!,0) ->  | Q95: =-SUMIF(#REF!,A95,#REF!)/#REF! -> 
A96: 93 | B96: =VLOOKUP(A96,#REF!,3)/12 ->  | C96: =-#REF!/12 ->  | D96: =-IF($A96>#REF!,0,(#REF!*(1+#REF!)^(INT((A96-1)/12)))/12) ->  | F96: =-#REF!/12 ->  | G96: =-IF($A96>#REF!,0,(#REF!*(1+#REF!)^(INT(($A96-1)/12)))/12) ->  | I96: =IF(AND(A96>#REF!,A96<(#REF!+#REF!+1)),#REF!/#REF!,0) ->  | J96: =IF(AND($A96>#REF!,$A96<(#REF!+#REF!+1)),#REF!/#REF!,0) ->  | K96: =IF(AND($A96>#REF!,$A96<(#REF!+#REF!+1)),#REF!/#REF!,0) ->  | L96: =IF(AND($A96>#REF!,$A96<(#REF!+#REF!+1)),#REF!/#REF!,0) ->  | M96: =IF(AND($A96>#REF!,$A96<(#REF!+#REF!+1)),#REF!/#REF!,0) ->  | N96: =IF(AND($A96>#REF!,$A96<(#REF!+#REF!+1)),#REF!/#REF!,0) ->  | O96: =IF(AND($A96>#REF!,$A96<(#REF!+#REF!+1)),#REF!/#REF!,0) ->  | P96: =IF(AND($A96>#REF!,$A96<(#REF!+#REF!+1)),#REF!/#REF!,0) ->  | Q96: =-SUMIF(#REF!,A96,#REF!)/#REF! -> 
A97: 94 | B97: =VLOOKUP(A97,#REF!,3)/12 ->  | C97: =-#REF!/12 ->  | D97: =-IF($A97>#REF!,0,(#REF!*(1+#REF!)^(INT((A97-1)/12)))/12) ->  | F97: =-#REF!/12 ->  | G97: =-IF($A97>#REF!,0,(#REF!*(1+#REF!)^(INT(($A97-1)/12)))/12) ->  | I97: =IF(AND(A97>#REF!,A97<(#REF!+#REF!+1)),#REF!/#REF!,0) ->  | J97: =IF(AND($A97>#REF!,$A97<(#REF!+#REF!+1)),#REF!/#REF!,0) ->  | K97: =IF(AND($A97>#REF!,$A97<(#REF!+#REF!+1)),#REF!/#REF!,0) ->  | L97: =IF(AND($A97>#REF!,$A97<(#REF!+#REF!+1)),#REF!/#REF!,0) ->  | M97: =IF(AND($A97>#REF!,$A97<(#REF!+#REF!+1)),#REF!/#REF!,0) ->  | N97: =IF(AND($A97>#REF!,$A97<(#REF!+#REF!+1)),#REF!/#REF!,0) ->  | O97: =IF(AND($A97>#REF!,$A97<(#REF!+#REF!+1)),#REF!/#REF!,0) ->  | P97: =IF(AND($A97>#REF!,$A97<(#REF!+#REF!+1)),#REF!/#REF!,0) ->  | Q97: =-SUMIF(#REF!,A97,#REF!)/#REF! -> 
A98: 95 | B98: =VLOOKUP(A98,#REF!,3)/12 ->  | C98: =-#REF!/12 ->  | D98: =-IF($A98>#REF!,0,(#REF!*(1+#REF!)^(INT((A98-1)/12)))/12) ->  | F98: =-#REF!/12 ->  | G98: =-IF($A98>#REF!,0,(#REF!*(1+#REF!)^(INT(($A98-1)/12)))/12) ->  | I98: =IF(AND(A98>#REF!,A98<(#REF!+#REF!+1)),#REF!/#REF!,0) ->  | J98: =IF(AND($A98>#REF!,$A98<(#REF!+#REF!+1)),#REF!/#REF!,0) ->  | K98: =IF(AND($A98>#REF!,$A98<(#REF!+#REF!+1)),#REF!/#REF!,0) ->  | L98: =IF(AND($A98>#REF!,$A98<(#REF!+#REF!+1)),#REF!/#REF!,0) ->  | M98: =IF(AND($A98>#REF!,$A98<(#REF!+#REF!+1)),#REF!/#REF!,0) ->  | N98: =IF(AND($A98>#REF!,$A98<(#REF!+#REF!+1)),#REF!/#REF!,0) ->  | O98: =IF(AND($A98>#REF!,$A98<(#REF!+#REF!+1)),#REF!/#REF!,0) ->  | P98: =IF(AND($A98>#REF!,$A98<(#REF!+#REF!+1)),#REF!/#REF!,0) ->  | Q98: =-SUMIF(#REF!,A98,#REF!)/#REF! -> 
A99: 96 | B99: =VLOOKUP(A99,#REF!,3)/12 ->  | C99: =-#REF!/12 ->  | D99: =-IF($A99>#REF!,0,(#REF!*(1+#REF!)^(INT((A99-1)/12)))/12) ->  | F99: =-#REF!/12 ->  | G99: =-IF($A99>#REF!,0,(#REF!*(1+#REF!)^(INT(($A99-1)/12)))/12) ->  | I99: =IF(AND(A99>#REF!,A99<(#REF!+#REF!+1)),#REF!/#REF!,0) ->  | J99: =IF(AND($A99>#REF!,$A99<(#REF!+#REF!+1)),#REF!/#REF!,0) ->  | K99: =IF(AND($A99>#REF!,$A99<(#REF!+#REF!+1)),#REF!/#REF!,0) ->  | L99: =IF(AND($A99>#REF!,$A99<(#REF!+#REF!+1)),#REF!/#REF!,0) ->  | M99: =IF(AND($A99>#REF!,$A99<(#REF!+#REF!+1)),#REF!/#REF!,0) ->  | N99: =IF(AND($A99>#REF!,$A99<(#REF!+#REF!+1)),#REF!/#REF!,0) ->  | O99: =IF(AND($A99>#REF!,$A99<(#REF!+#REF!+1)),#REF!/#REF!,0) ->  | P99: =IF(AND($A99>#REF!,$A99<(#REF!+#REF!+1)),#REF!/#REF!,0) ->  | Q99: =-SUMIF(#REF!,A99,#REF!)/#REF! ->  | R99: =SUM(H99:Q99)+E99+B99 -> 
A100: 97 | B100: =VLOOKUP(A100,#REF!,3)/12 ->  | C100: =-#REF!/12 ->  | D100: =-IF($A100>#REF!,0,(#REF!*(1+#REF!)^(INT((A100-1)/12)))/12) ->  | E100: =IF(D100>C100,D100,C100) ->  | F100: =-#REF!/12 ->  | G100: =-IF($A100>#REF!,0,(#REF!*(1+#REF!)^(INT(($A100-1)/12)))/12) ->  | H100: =IF(G100>F100,G100,F100) ->  | I100: =IF(AND(A100>#REF!,A100<(#REF!+#REF!+1)),#REF!/#REF!,0) ->  | J100: =IF(AND($A100>#REF!,$A100<(#REF!+#REF!+1)),#REF!/#REF!,0) ->  | K100: =IF(AND($A100>#REF!,$A100<(#REF!+#REF!+1)),#REF!/#REF!,0) ->  | L100: =IF(AND($A100>#REF!,$A100<(#REF!+#REF!+1)),#REF!/#REF!,0) ->  | M100: =IF(AND($A100>#REF!,$A100<(#REF!+#REF!+1)),#REF!/#REF!,0) ->  | N100: =IF(AND($A100>#REF!,$A100<(#REF!+#REF!+1)),#REF!/#REF!,0) ->  | O100: =IF(AND($A100>#REF!,$A100<(#REF!+#REF!+1)),#REF!/#REF!,0) ->  | P100: =IF(AND($A100>#REF!,$A100<(#REF!+#REF!+1)),#REF!/#REF!,0) ->  | Q100: =-SUMIF(#REF!,A100,#REF!)/#REF! -> 
A101: 98 | B101: =VLOOKUP(A101,#REF!,3)/12 ->  | C101: =-#REF!/12 ->  | D101: =-IF($A101>#REF!,0,(#REF!*(1+#REF!)^(INT((A101-1)/12)))/12) ->  | F101: =-#REF!/12 ->  | G101: =-IF($A101>#REF!,0,(#REF!*(1+#REF!)^(INT(($A101-1)/12)))/12) ->  | I101: =IF(AND(A101>#REF!,A101<(#REF!+#REF!+1)),#REF!/#REF!,0) ->  | J101: =IF(AND($A101>#REF!,$A101<(#REF!+#REF!+1)),#REF!/#REF!,0) ->  | K101: =IF(AND($A101>#REF!,$A101<(#REF!+#REF!+1)),#REF!/#REF!,0) ->  | L101: =IF(AND($A101>#REF!,$A101<(#REF!+#REF!+1)),#REF!/#REF!,0) ->  | M101: =IF(AND($A101>#REF!,$A101<(#REF!+#REF!+1)),#REF!/#REF!,0) ->  | N101: =IF(AND($A101>#REF!,$A101<(#REF!+#REF!+1)),#REF!/#REF!,0) ->  | O101: =IF(AND($A101>#REF!,$A101<(#REF!+#REF!+1)),#REF!/#REF!,0) ->  | P101: =IF(AND($A101>#REF!,$A101<(#REF!+#REF!+1)),#REF!/#REF!,0) ->  | Q101: =-SUMIF(#REF!,A101,#REF!)/#REF! -> 
A102: 99 | B102: =VLOOKUP(A102,#REF!,3)/12 ->  | C102: =-#REF!/12 ->  | D102: =-IF($A102>#REF!,0,(#REF!*(1+#REF!)^(INT((A102-1)/12)))/12) ->  | F102: =-#REF!/12 ->  | G102: =-IF($A102>#REF!,0,(#REF!*(1+#REF!)^(INT(($A102-1)/12)))/12) ->  | I102: =IF(AND(A102>#REF!,A102<(#REF!+#REF!+1)),#REF!/#REF!,0) ->  | J102: =IF(AND($A102>#REF!,$A102<(#REF!+#REF!+1)),#REF!/#REF!,0) ->  | K102: =IF(AND($A102>#REF!,$A102<(#REF!+#REF!+1)),#REF!/#REF!,0) ->  | L102: =IF(AND($A102>#REF!,$A102<(#REF!+#REF!+1)),#REF!/#REF!,0) ->  | M102: =IF(AND($A102>#REF!,$A102<(#REF!+#REF!+1)),#REF!/#REF!,0) ->  | N102: =IF(AND($A102>#REF!,$A102<(#REF!+#REF!+1)),#REF!/#REF!,0) ->  | O102: =IF(AND($A102>#REF!,$A102<(#REF!+#REF!+1)),#REF!/#REF!,0) ->  | P102: =IF(AND($A102>#REF!,$A102<(#REF!+#REF!+1)),#REF!/#REF!,0) ->  | Q102: =-SUMIF(#REF!,A102,#REF!)/#REF! -> 
A103: 100 | B103: =VLOOKUP(A103,#REF!,3)/12 ->  | C103: =-#REF!/12 ->  | D103: =-IF($A103>#REF!,0,(#REF!*(1+#REF!)^(INT((A103-1)/12)))/12) ->  | F103: =-#REF!/12 ->  | G103: =-IF($A103>#REF!,0,(#REF!*(1+#REF!)^(INT(($A103-1)/12)))/12) ->  | I103: =IF(AND(A103>#REF!,A103<(#REF!+#REF!+1)),#REF!/#REF!,0) ->  | J103: =IF(AND($A103>#REF!,$A103<(#REF!+#REF!+1)),#REF!/#REF!,0) ->  | K103: =IF(AND($A103>#REF!,$A103<(#REF!+#REF!+1)),#REF!/#REF!,0) ->  | L103: =IF(AND($A103>#REF!,$A103<(#REF!+#REF!+1)),#REF!/#REF!,0) ->  | M103: =IF(AND($A103>#REF!,$A103<(#REF!+#REF!+1)),#REF!/#REF!,0) ->  | N103: =IF(AND($A103>#REF!,$A103<(#REF!+#REF!+1)),#REF!/#REF!,0) ->  | O103: =IF(AND($A103>#REF!,$A103<(#REF!+#REF!+1)),#REF!/#REF!,0) ->  | P103: =IF(AND($A103>#REF!,$A103<(#REF!+#REF!+1)),#REF!/#REF!,0) ->  | Q103: =-SUMIF(#REF!,A103,#REF!)/#REF! -> 
A104: 101 | B104: =VLOOKUP(A104,#REF!,3)/12 ->  | C104: =-#REF!/12 ->  | D104: =-IF($A104>#REF!,0,(#REF!*(1+#REF!)^(INT((A104-1)/12)))/12) ->  | F104: =-#REF!/12 ->  | G104: =-IF($A104>#REF!,0,(#REF!*(1+#REF!)^(INT(($A104-1)/12)))/12) ->  | I104: =IF(AND(A104>#REF!,A104<(#REF!+#REF!+1)),#REF!/#REF!,0) ->  | J104: =IF(AND($A104>#REF!,$A104<(#REF!+#REF!+1)),#REF!/#REF!,0) ->  | K104: =IF(AND($A104>#REF!,$A104<(#REF!+#REF!+1)),#REF!/#REF!,0) ->  | L104: =IF(AND($A104>#REF!,$A104<(#REF!+#REF!+1)),#REF!/#REF!,0) ->  | M104: =IF(AND($A104>#REF!,$A104<(#REF!+#REF!+1)),#REF!/#REF!,0) ->  | N104: =IF(AND($A104>#REF!,$A104<(#REF!+#REF!+1)),#REF!/#REF!,0) ->  | O104: =IF(AND($A104>#REF!,$A104<(#REF!+#REF!+1)),#REF!/#REF!,0) ->  | P104: =IF(AND($A104>#REF!,$A104<(#REF!+#REF!+1)),#REF!/#REF!,0) ->  | Q104: =-SUMIF(#REF!,A104,#REF!)/#REF! -> 
A105: 102 | B105: =VLOOKUP(A105,#REF!,3)/12 ->  | C105: =-#REF!/12 ->  | D105: =-IF($A105>#REF!,0,(#REF!*(1+#REF!)^(INT((A105-1)/12)))/12) ->  | F105: =-#REF!/12 ->  | G105: =-IF($A105>#REF!,0,(#REF!*(1+#REF!)^(INT(($A105-1)/12)))/12) ->  | I105: =IF(AND(A105>#REF!,A105<(#REF!+#REF!+1)),#REF!/#REF!,0) ->  | J105: =IF(AND($A105>#REF!,$A105<(#REF!+#REF!+1)),#REF!/#REF!,0) ->  | K105: =IF(AND($A105>#REF!,$A105<(#REF!+#REF!+1)),#REF!/#REF!,0) ->  | L105: =IF(AND($A105>#REF!,$A105<(#REF!+#REF!+1)),#REF!/#REF!,0) ->  | M105: =IF(AND($A105>#REF!,$A105<(#REF!+#REF!+1)),#REF!/#REF!,0) ->  | N105: =IF(AND($A105>#REF!,$A105<(#REF!+#REF!+1)),#REF!/#REF!,0) ->  | O105: =IF(AND($A105>#REF!,$A105<(#REF!+#REF!+1)),#REF!/#REF!,0) ->  | P105: =IF(AND($A105>#REF!,$A105<(#REF!+#REF!+1)),#REF!/#REF!,0) ->  | Q105: =-SUMIF(#REF!,A105,#REF!)/#REF! -> 
A106: 103 | B106: =VLOOKUP(A106,#REF!,3)/12 ->  | C106: =-#REF!/12 ->  | D106: =-IF($A106>#REF!,0,(#REF!*(1+#REF!)^(INT((A106-1)/12)))/12) ->  | F106: =-#REF!/12 ->  | G106: =-IF($A106>#REF!,0,(#REF!*(1+#REF!)^(INT(($A106-1)/12)))/12) ->  | I106: =IF(AND(A106>#REF!,A106<(#REF!+#REF!+1)),#REF!/#REF!,0) ->  | J106: =IF(AND($A106>#REF!,$A106<(#REF!+#REF!+1)),#REF!/#REF!,0) ->  | K106: =IF(AND($A106>#REF!,$A106<(#REF!+#REF!+1)),#REF!/#REF!,0) ->  | L106: =IF(AND($A106>#REF!,$A106<(#REF!+#REF!+1)),#REF!/#REF!,0) ->  | M106: =IF(AND($A106>#REF!,$A106<(#REF!+#REF!+1)),#REF!/#REF!,0) ->  | N106: =IF(AND($A106>#REF!,$A106<(#REF!+#REF!+1)),#REF!/#REF!,0) ->  | O106: =IF(AND($A106>#REF!,$A106<(#REF!+#REF!+1)),#REF!/#REF!,0) ->  | P106: =IF(AND($A106>#REF!,$A106<(#REF!+#REF!+1)),#REF!/#REF!,0) ->  | Q106: =-SUMIF(#REF!,A106,#REF!)/#REF! -> 
A107: 104 | B107: =VLOOKUP(A107,#REF!,3)/12 ->  | C107: =-#REF!/12 ->  | D107: =-IF($A107>#REF!,0,(#REF!*(1+#REF!)^(INT((A107-1)/12)))/12) ->  | F107: =-#REF!/12 ->  | G107: =-IF($A107>#REF!,0,(#REF!*(1+#REF!)^(INT(($A107-1)/12)))/12) ->  | I107: =IF(AND(A107>#REF!,A107<(#REF!+#REF!+1)),#REF!/#REF!,0) ->  | J107: =IF(AND($A107>#REF!,$A107<(#REF!+#REF!+1)),#REF!/#REF!,0) ->  | K107: =IF(AND($A107>#REF!,$A107<(#REF!+#REF!+1)),#REF!/#REF!,0) ->  | L107: =IF(AND($A107>#REF!,$A107<(#REF!+#REF!+1)),#REF!/#REF!,0) ->  | M107: =IF(AND($A107>#REF!,$A107<(#REF!+#REF!+1)),#REF!/#REF!,0) ->  | N107: =IF(AND($A107>#REF!,$A107<(#REF!+#REF!+1)),#REF!/#REF!,0) ->  | O107: =IF(AND($A107>#REF!,$A107<(#REF!+#REF!+1)),#REF!/#REF!,0) ->  | P107: =IF(AND($A107>#REF!,$A107<(#REF!+#REF!+1)),#REF!/#REF!,0) ->  | Q107: =-SUMIF(#REF!,A107,#REF!)/#REF! -> 
A108: 105 | B108: =VLOOKUP(A108,#REF!,3)/12 ->  | C108: =-#REF!/12 ->  | D108: =-IF($A108>#REF!,0,(#REF!*(1+#REF!)^(INT((A108-1)/12)))/12) ->  | F108: =-#REF!/12 ->  | G108: =-IF($A108>#REF!,0,(#REF!*(1+#REF!)^(INT(($A108-1)/12)))/12) ->  | I108: =IF(AND(A108>#REF!,A108<(#REF!+#REF!+1)),#REF!/#REF!,0) ->  | J108: =IF(AND($A108>#REF!,$A108<(#REF!+#REF!+1)),#REF!/#REF!,0) ->  | K108: =IF(AND($A108>#REF!,$A108<(#REF!+#REF!+1)),#REF!/#REF!,0) ->  | L108: =IF(AND($A108>#REF!,$A108<(#REF!+#REF!+1)),#REF!/#REF!,0) ->  | M108: =IF(AND($A108>#REF!,$A108<(#REF!+#REF!+1)),#REF!/#REF!,0) ->  | N108: =IF(AND($A108>#REF!,$A108<(#REF!+#REF!+1)),#REF!/#REF!,0) ->  | O108: =IF(AND($A108>#REF!,$A108<(#REF!+#REF!+1)),#REF!/#REF!,0) ->  | P108: =IF(AND($A108>#REF!,$A108<(#REF!+#REF!+1)),#REF!/#REF!,0) ->  | Q108: =-SUMIF(#REF!,A108,#REF!)/#REF! -> 
A109: 106 | B109: =VLOOKUP(A109,#REF!,3)/12 ->  | C109: =-#REF!/12 ->  | D109: =-IF($A109>#REF!,0,(#REF!*(1+#REF!)^(INT((A109-1)/12)))/12) ->  | F109: =-#REF!/12 ->  | G109: =-IF($A109>#REF!,0,(#REF!*(1+#REF!)^(INT(($A109-1)/12)))/12) ->  | I109: =IF(AND(A109>#REF!,A109<(#REF!+#REF!+1)),#REF!/#REF!,0) ->  | J109: =IF(AND($A109>#REF!,$A109<(#REF!+#REF!+1)),#REF!/#REF!,0) ->  | K109: =IF(AND($A109>#REF!,$A109<(#REF!+#REF!+1)),#REF!/#REF!,0) ->  | L109: =IF(AND($A109>#REF!,$A109<(#REF!+#REF!+1)),#REF!/#REF!,0) ->  | M109: =IF(AND($A109>#REF!,$A109<(#REF!+#REF!+1)),#REF!/#REF!,0) ->  | N109: =IF(AND($A109>#REF!,$A109<(#REF!+#REF!+1)),#REF!/#REF!,0) ->  | O109: =IF(AND($A109>#REF!,$A109<(#REF!+#REF!+1)),#REF!/#REF!,0) ->  | P109: =IF(AND($A109>#REF!,$A109<(#REF!+#REF!+1)),#REF!/#REF!,0) ->  | Q109: =-SUMIF(#REF!,A109,#REF!)/#REF! -> 
A110: 107 | B110: =VLOOKUP(A110,#REF!,3)/12 ->  | C110: =-#REF!/12 ->  | D110: =-IF($A110>#REF!,0,(#REF!*(1+#REF!)^(INT((A110-1)/12)))/12) ->  | F110: =-#REF!/12 ->  | G110: =-IF($A110>#REF!,0,(#REF!*(1+#REF!)^(INT(($A110-1)/12)))/12) ->  | I110: =IF(AND(A110>#REF!,A110<(#REF!+#REF!+1)),#REF!/#REF!,0) ->  | J110: =IF(AND($A110>#REF!,$A110<(#REF!+#REF!+1)),#REF!/#REF!,0) ->  | K110: =IF(AND($A110>#REF!,$A110<(#REF!+#REF!+1)),#REF!/#REF!,0) ->  | L110: =IF(AND($A110>#REF!,$A110<(#REF!+#REF!+1)),#REF!/#REF!,0) ->  | M110: =IF(AND($A110>#REF!,$A110<(#REF!+#REF!+1)),#REF!/#REF!,0) ->  | N110: =IF(AND($A110>#REF!,$A110<(#REF!+#REF!+1)),#REF!/#REF!,0) ->  | O110: =IF(AND($A110>#REF!,$A110<(#REF!+#REF!+1)),#REF!/#REF!,0) ->  | P110: =IF(AND($A110>#REF!,$A110<(#REF!+#REF!+1)),#REF!/#REF!,0) ->  | Q110: =-SUMIF(#REF!,A110,#REF!)/#REF! -> 
A111: 108 | B111: =VLOOKUP(A111,#REF!,3)/12 ->  | C111: =-#REF!/12 ->  | D111: =-IF($A111>#REF!,0,(#REF!*(1+#REF!)^(INT((A111-1)/12)))/12) ->  | F111: =-#REF!/12 ->  | G111: =-IF($A111>#REF!,0,(#REF!*(1+#REF!)^(INT(($A111-1)/12)))/12) ->  | I111: =IF(AND(A111>#REF!,A111<(#REF!+#REF!+1)),#REF!/#REF!,0) ->  | J111: =IF(AND($A111>#REF!,$A111<(#REF!+#REF!+1)),#REF!/#REF!,0) ->  | K111: =IF(AND($A111>#REF!,$A111<(#REF!+#REF!+1)),#REF!/#REF!,0) ->  | L111: =IF(AND($A111>#REF!,$A111<(#REF!+#REF!+1)),#REF!/#REF!,0) ->  | M111: =IF(AND($A111>#REF!,$A111<(#REF!+#REF!+1)),#REF!/#REF!,0) ->  | N111: =IF(AND($A111>#REF!,$A111<(#REF!+#REF!+1)),#REF!/#REF!,0) ->  | O111: =IF(AND($A111>#REF!,$A111<(#REF!+#REF!+1)),#REF!/#REF!,0) ->  | P111: =IF(AND($A111>#REF!,$A111<(#REF!+#REF!+1)),#REF!/#REF!,0) ->  | Q111: =-SUMIF(#REF!,A111,#REF!)/#REF! -> 
A112: 109 | B112: =VLOOKUP(A112,#REF!,3)/12 ->  | C112: =-#REF!/12 ->  | D112: =-IF($A112>#REF!,0,(#REF!*(1+#REF!)^(INT((A112-1)/12)))/12) ->  | F112: =-#REF!/12 ->  | G112: =-IF($A112>#REF!,0,(#REF!*(1+#REF!)^(INT(($A112-1)/12)))/12) ->  | I112: =IF(AND(A112>#REF!,A112<(#REF!+#REF!+1)),#REF!/#REF!,0) ->  | J112: =IF(AND($A112>#REF!,$A112<(#REF!+#REF!+1)),#REF!/#REF!,0) ->  | K112: =IF(AND($A112>#REF!,$A112<(#REF!+#REF!+1)),#REF!/#REF!,0) ->  | L112: =IF(AND($A112>#REF!,$A112<(#REF!+#REF!+1)),#REF!/#REF!,0) ->  | M112: =IF(AND($A112>#REF!,$A112<(#REF!+#REF!+1)),#REF!/#REF!,0) ->  | N112: =IF(AND($A112>#REF!,$A112<(#REF!+#REF!+1)),#REF!/#REF!,0) ->  | O112: =IF(AND($A112>#REF!,$A112<(#REF!+#REF!+1)),#REF!/#REF!,0) ->  | P112: =IF(AND($A112>#REF!,$A112<(#REF!+#REF!+1)),#REF!/#REF!,0) ->  | Q112: =-SUMIF(#REF!,A112,#REF!)/#REF! -> 
A113: 110 | B113: =VLOOKUP(A113,#REF!,3)/12 ->  | C113: =-#REF!/12 ->  | D113: =-IF($A113>#REF!,0,(#REF!*(1+#REF!)^(INT((A113-1)/12)))/12) ->  | F113: =-#REF!/12 ->  | G113: =-IF($A113>#REF!,0,(#REF!*(1+#REF!)^(INT(($A113-1)/12)))/12) ->  | I113: =IF(AND(A113>#REF!,A113<(#REF!+#REF!+1)),#REF!/#REF!,0) ->  | J113: =IF(AND($A113>#REF!,$A113<(#REF!+#REF!+1)),#REF!/#REF!,0) ->  | K113: =IF(AND($A113>#REF!,$A113<(#REF!+#REF!+1)),#REF!/#REF!,0) ->  | L113: =IF(AND($A113>#REF!,$A113<(#REF!+#REF!+1)),#REF!/#REF!,0) ->  | M113: =IF(AND($A113>#REF!,$A113<(#REF!+#REF!+1)),#REF!/#REF!,0) ->  | N113: =IF(AND($A113>#REF!,$A113<(#REF!+#REF!+1)),#REF!/#REF!,0) ->  | O113: =IF(AND($A113>#REF!,$A113<(#REF!+#REF!+1)),#REF!/#REF!,0) ->  | P113: =IF(AND($A113>#REF!,$A113<(#REF!+#REF!+1)),#REF!/#REF!,0) ->  | Q113: =-SUMIF(#REF!,A113,#REF!)/#REF! -> 
A114: 111 | B114: =VLOOKUP(A114,#REF!,3)/12 ->  | C114: =-#REF!/12 ->  | D114: =-IF($A114>#REF!,0,(#REF!*(1+#REF!)^(INT((A114-1)/12)))/12) ->  | F114: =-#REF!/12 ->  | G114: =-IF($A114>#REF!,0,(#REF!*(1+#REF!)^(INT(($A114-1)/12)))/12) ->  | I114: =IF(AND(A114>#REF!,A114<(#REF!+#REF!+1)),#REF!/#REF!,0) ->  | J114: =IF(AND($A114>#REF!,$A114<(#REF!+#REF!+1)),#REF!/#REF!,0) ->  | K114: =IF(AND($A114>#REF!,$A114<(#REF!+#REF!+1)),#REF!/#REF!,0) ->  | L114: =IF(AND($A114>#REF!,$A114<(#REF!+#REF!+1)),#REF!/#REF!,0) ->  | M114: =IF(AND($A114>#REF!,$A114<(#REF!+#REF!+1)),#REF!/#REF!,0) ->  | N114: =IF(AND($A114>#REF!,$A114<(#REF!+#REF!+1)),#REF!/#REF!,0) ->  | O114: =IF(AND($A114>#REF!,$A114<(#REF!+#REF!+1)),#REF!/#REF!,0) ->  | P114: =IF(AND($A114>#REF!,$A114<(#REF!+#REF!+1)),#REF!/#REF!,0) ->  | Q114: =-SUMIF(#REF!,A114,#REF!)/#REF! -> 
A115: 112 | B115: =VLOOKUP(A115,#REF!,3)/12 ->  | C115: =-#REF!/12 ->  | D115: =-IF($A115>#REF!,0,(#REF!*(1+#REF!)^(INT((A115-1)/12)))/12) ->  | F115: =-#REF!/12 ->  | G115: =-IF($A115>#REF!,0,(#REF!*(1+#REF!)^(INT(($A115-1)/12)))/12) ->  | I115: =IF(AND(A115>#REF!,A115<(#REF!+#REF!+1)),#REF!/#REF!,0) ->  | J115: =IF(AND($A115>#REF!,$A115<(#REF!+#REF!+1)),#REF!/#REF!,0) ->  | K115: =IF(AND($A115>#REF!,$A115<(#REF!+#REF!+1)),#REF!/#REF!,0) ->  | L115: =IF(AND($A115>#REF!,$A115<(#REF!+#REF!+1)),#REF!/#REF!,0) ->  | M115: =IF(AND($A115>#REF!,$A115<(#REF!+#REF!+1)),#REF!/#REF!,0) ->  | N115: =IF(AND($A115>#REF!,$A115<(#REF!+#REF!+1)),#REF!/#REF!,0) ->  | O115: =IF(AND($A115>#REF!,$A115<(#REF!+#REF!+1)),#REF!/#REF!,0) ->  | P115: =IF(AND($A115>#REF!,$A115<(#REF!+#REF!+1)),#REF!/#REF!,0) ->  | Q115: =-SUMIF(#REF!,A115,#REF!)/#REF! -> 
A116: 113 | B116: =VLOOKUP(A116,#REF!,3)/12 ->  | C116: =-#REF!/12 ->  | D116: =-IF($A116>#REF!,0,(#REF!*(1+#REF!)^(INT((A116-1)/12)))/12) ->  | F116: =-#REF!/12 ->  | G116: =-IF($A116>#REF!,0,(#REF!*(1+#REF!)^(INT(($A116-1)/12)))/12) ->  | I116: =IF(AND(A116>#REF!,A116<(#REF!+#REF!+1)),#REF!/#REF!,0) ->  | J116: =IF(AND($A116>#REF!,$A116<(#REF!+#REF!+1)),#REF!/#REF!,0) ->  | K116: =IF(AND($A116>#REF!,$A116<(#REF!+#REF!+1)),#REF!/#REF!,0) ->  | L116: =IF(AND($A116>#REF!,$A116<(#REF!+#REF!+1)),#REF!/#REF!,0) ->  | M116: =IF(AND($A116>#REF!,$A116<(#REF!+#REF!+1)),#REF!/#REF!,0) ->  | N116: =IF(AND($A116>#REF!,$A116<(#REF!+#REF!+1)),#REF!/#REF!,0) ->  | O116: =IF(AND($A116>#REF!,$A116<(#REF!+#REF!+1)),#REF!/#REF!,0) ->  | P116: =IF(AND($A116>#REF!,$A116<(#REF!+#REF!+1)),#REF!/#REF!,0) ->  | Q116: =-SUMIF(#REF!,A116,#REF!)/#REF! -> 
A117: 114 | B117: =VLOOKUP(A117,#REF!,3)/12 ->  | C117: =-#REF!/12 ->  | D117: =-IF($A117>#REF!,0,(#REF!*(1+#REF!)^(INT((A117-1)/12)))/12) ->  | F117: =-#REF!/12 ->  | G117: =-IF($A117>#REF!,0,(#REF!*(1+#REF!)^(INT(($A117-1)/12)))/12) ->  | I117: =IF(AND(A117>#REF!,A117<(#REF!+#REF!+1)),#REF!/#REF!,0) ->  | J117: =IF(AND($A117>#REF!,$A117<(#REF!+#REF!+1)),#REF!/#REF!,0) ->  | K117: =IF(AND($A117>#REF!,$A117<(#REF!+#REF!+1)),#REF!/#REF!,0) ->  | L117: =IF(AND($A117>#REF!,$A117<(#REF!+#REF!+1)),#REF!/#REF!,0) ->  | M117: =IF(AND($A117>#REF!,$A117<(#REF!+#REF!+1)),#REF!/#REF!,0) ->  | N117: =IF(AND($A117>#REF!,$A117<(#REF!+#REF!+1)),#REF!/#REF!,0) ->  | O117: =IF(AND($A117>#REF!,$A117<(#REF!+#REF!+1)),#REF!/#REF!,0) ->  | P117: =IF(AND($A117>#REF!,$A117<(#REF!+#REF!+1)),#REF!/#REF!,0) ->  | Q117: =-SUMIF(#REF!,A117,#REF!)/#REF! -> 
A118: 115 | B118: =VLOOKUP(A118,#REF!,3)/12 ->  | C118: =-#REF!/12 ->  | D118: =-IF($A118>#REF!,0,(#REF!*(1+#REF!)^(INT((A118-1)/12)))/12) ->  | F118: =-#REF!/12 ->  | G118: =-IF($A118>#REF!,0,(#REF!*(1+#REF!)^(INT(($A118-1)/12)))/12) ->  | I118: =IF(AND(A118>#REF!,A118<(#REF!+#REF!+1)),#REF!/#REF!,0) ->  | J118: =IF(AND($A118>#REF!,$A118<(#REF!+#REF!+1)),#REF!/#REF!,0) ->  | K118: =IF(AND($A118>#REF!,$A118<(#REF!+#REF!+1)),#REF!/#REF!,0) ->  | L118: =IF(AND($A118>#REF!,$A118<(#REF!+#REF!+1)),#REF!/#REF!,0) ->  | M118: =IF(AND($A118>#REF!,$A118<(#REF!+#REF!+1)),#REF!/#REF!,0) ->  | N118: =IF(AND($A118>#REF!,$A118<(#REF!+#REF!+1)),#REF!/#REF!,0) ->  | O118: =IF(AND($A118>#REF!,$A118<(#REF!+#REF!+1)),#REF!/#REF!,0) ->  | P118: =IF(AND($A118>#REF!,$A118<(#REF!+#REF!+1)),#REF!/#REF!,0) ->  | Q118: =-SUMIF(#REF!,A118,#REF!)/#REF! -> 
A119: 116 | B119: =VLOOKUP(A119,#REF!,3)/12 ->  | C119: =-#REF!/12 ->  | D119: =-IF($A119>#REF!,0,(#REF!*(1+#REF!)^(INT((A119-1)/12)))/12) ->  | F119: =-#REF!/12 ->  | G119: =-IF($A119>#REF!,0,(#REF!*(1+#REF!)^(INT(($A119-1)/12)))/12) ->  | I119: =IF(AND(A119>#REF!,A119<(#REF!+#REF!+1)),#REF!/#REF!,0) ->  | J119: =IF(AND($A119>#REF!,$A119<(#REF!+#REF!+1)),#REF!/#REF!,0) ->  | K119: =IF(AND($A119>#REF!,$A119<(#REF!+#REF!+1)),#REF!/#REF!,0) ->  | L119: =IF(AND($A119>#REF!,$A119<(#REF!+#REF!+1)),#REF!/#REF!,0) ->  | M119: =IF(AND($A119>#REF!,$A119<(#REF!+#REF!+1)),#REF!/#REF!,0) ->  | N119: =IF(AND($A119>#REF!,$A119<(#REF!+#REF!+1)),#REF!/#REF!,0) ->  | O119: =IF(AND($A119>#REF!,$A119<(#REF!+#REF!+1)),#REF!/#REF!,0) ->  | P119: =IF(AND($A119>#REF!,$A119<(#REF!+#REF!+1)),#REF!/#REF!,0) ->  | Q119: =-SUMIF(#REF!,A119,#REF!)/#REF! -> 
A120: 117 | B120: =VLOOKUP(A120,#REF!,3)/12 ->  | C120: =-#REF!/12 ->  | D120: =-IF($A120>#REF!,0,(#REF!*(1+#REF!)^(INT((A120-1)/12)))/12) ->  | F120: =-#REF!/12 ->  | G120: =-IF($A120>#REF!,0,(#REF!*(1+#REF!)^(INT(($A120-1)/12)))/12) ->  | I120: =IF(AND(A120>#REF!,A120<(#REF!+#REF!+1)),#REF!/#REF!,0) ->  | J120: =IF(AND($A120>#REF!,$A120<(#REF!+#REF!+1)),#REF!/#REF!,0) ->  | K120: =IF(AND($A120>#REF!,$A120<(#REF!+#REF!+1)),#REF!/#REF!,0) ->  | L120: =IF(AND($A120>#REF!,$A120<(#REF!+#REF!+1)),#REF!/#REF!,0) ->  | M120: =IF(AND($A120>#REF!,$A120<(#REF!+#REF!+1)),#REF!/#REF!,0) ->  | N120: =IF(AND($A120>#REF!,$A120<(#REF!+#REF!+1)),#REF!/#REF!,0) ->  | O120: =IF(AND($A120>#REF!,$A120<(#REF!+#REF!+1)),#REF!/#REF!,0) ->  | P120: =IF(AND($A120>#REF!,$A120<(#REF!+#REF!+1)),#REF!/#REF!,0) ->  | Q120: =-SUMIF(#REF!,A120,#REF!)/#REF! -> 
A121: 118 | B121: =VLOOKUP(A121,#REF!,3)/12 ->  | C121: =-#REF!/12 ->  | D121: =-IF($A121>#REF!,0,(#REF!*(1+#REF!)^(INT((A121-1)/12)))/12) ->  | F121: =-#REF!/12 ->  | G121: =-IF($A121>#REF!,0,(#REF!*(1+#REF!)^(INT(($A121-1)/12)))/12) ->  | I121: =IF(AND(A121>#REF!,A121<(#REF!+#REF!+1)),#REF!/#REF!,0) ->  | J121: =IF(AND($A121>#REF!,$A121<(#REF!+#REF!+1)),#REF!/#REF!,0) ->  | K121: =IF(AND($A121>#REF!,$A121<(#REF!+#REF!+1)),#REF!/#REF!,0) ->  | L121: =IF(AND($A121>#REF!,$A121<(#REF!+#REF!+1)),#REF!/#REF!,0) ->  | M121: =IF(AND($A121>#REF!,$A121<(#REF!+#REF!+1)),#REF!/#REF!,0) ->  | N121: =IF(AND($A121>#REF!,$A121<(#REF!+#REF!+1)),#REF!/#REF!,0) ->  | O121: =IF(AND($A121>#REF!,$A121<(#REF!+#REF!+1)),#REF!/#REF!,0) ->  | P121: =IF(AND($A121>#REF!,$A121<(#REF!+#REF!+1)),#REF!/#REF!,0) ->  | Q121: =-SUMIF(#REF!,A121,#REF!)/#REF! -> 
A122: 119 | B122: =VLOOKUP(A122,#REF!,3)/12 ->  | C122: =-#REF!/12 ->  | D122: =-IF($A122>#REF!,0,(#REF!*(1+#REF!)^(INT((A122-1)/12)))/12) ->  | F122: =-#REF!/12 ->  | G122: =-IF($A122>#REF!,0,(#REF!*(1+#REF!)^(INT(($A122-1)/12)))/12) ->  | I122: =IF(AND(A122>#REF!,A122<(#REF!+#REF!+1)),#REF!/#REF!,0) ->  | J122: =IF(AND($A122>#REF!,$A122<(#REF!+#REF!+1)),#REF!/#REF!,0) ->  | K122: =IF(AND($A122>#REF!,$A122<(#REF!+#REF!+1)),#REF!/#REF!,0) ->  | L122: =IF(AND($A122>#REF!,$A122<(#REF!+#REF!+1)),#REF!/#REF!,0) ->  | M122: =IF(AND($A122>#REF!,$A122<(#REF!+#REF!+1)),#REF!/#REF!,0) ->  | N122: =IF(AND($A122>#REF!,$A122<(#REF!+#REF!+1)),#REF!/#REF!,0) ->  | O122: =IF(AND($A122>#REF!,$A122<(#REF!+#REF!+1)),#REF!/#REF!,0) ->  | P122: =IF(AND($A122>#REF!,$A122<(#REF!+#REF!+1)),#REF!/#REF!,0) ->  | Q122: =-SUMIF(#REF!,A122,#REF!)/#REF! -> 
A123: 120 | B123: =VLOOKUP(A123,#REF!,3)/12 ->  | C123: =-#REF!/12 ->  | D123: =-IF($A123>#REF!,0,(#REF!*(1+#REF!)^(INT((A123-1)/12)))/12) ->  | F123: =-#REF!/12 ->  | G123: =-IF($A123>#REF!,0,(#REF!*(1+#REF!)^(INT(($A123-1)/12)))/12) ->  | I123: =IF(AND(A123>#REF!,A123<(#REF!+#REF!+1)),#REF!/#REF!,0) ->  | J123: =IF(AND($A123>#REF!,$A123<(#REF!+#REF!+1)),#REF!/#REF!,0) ->  | K123: =IF(AND($A123>#REF!,$A123<(#REF!+#REF!+1)),#REF!/#REF!,0) ->  | L123: =IF(AND($A123>#REF!,$A123<(#REF!+#REF!+1)),#REF!/#REF!,0) ->  | M123: =IF(AND($A123>#REF!,$A123<(#REF!+#REF!+1)),#REF!/#REF!,0) ->  | N123: =IF(AND($A123>#REF!,$A123<(#REF!+#REF!+1)),#REF!/#REF!,0) ->  | O123: =IF(AND($A123>#REF!,$A123<(#REF!+#REF!+1)),#REF!/#REF!,0) ->  | P123: =IF(AND($A123>#REF!,$A123<(#REF!+#REF!+1)),#REF!/#REF!,0) ->  | Q123: =-SUMIF(#REF!,A123,#REF!)/#REF! -> 
A124: 121 | B124: =VLOOKUP(A124,#REF!,3)/12 ->  | C124: =-#REF!/12 ->  | D124: =-IF($A124>#REF!,0,(#REF!*(1+#REF!)^(INT((A124-1)/12)))/12) ->  | F124: =-#REF!/12 ->  | G124: =-IF($A124>#REF!,0,(#REF!*(1+#REF!)^(INT(($A124-1)/12)))/12) ->  | I124: =IF(AND(A124>#REF!,A124<(#REF!+#REF!+1)),#REF!/#REF!,0) ->  | J124: =IF(AND($A124>#REF!,$A124<(#REF!+#REF!+1)),#REF!/#REF!,0) ->  | K124: =IF(AND($A124>#REF!,$A124<(#REF!+#REF!+1)),#REF!/#REF!,0) ->  | L124: =IF(AND($A124>#REF!,$A124<(#REF!+#REF!+1)),#REF!/#REF!,0) ->  | M124: =IF(AND($A124>#REF!,$A124<(#REF!+#REF!+1)),#REF!/#REF!,0) ->  | N124: =IF(AND($A124>#REF!,$A124<(#REF!+#REF!+1)),#REF!/#REF!,0) ->  | O124: =IF(AND($A124>#REF!,$A124<(#REF!+#REF!+1)),#REF!/#REF!,0) ->  | P124: =IF(AND($A124>#REF!,$A124<(#REF!+#REF!+1)),#REF!/#REF!,0) ->  | Q124: =-SUMIF(#REF!,A124,#REF!)/#REF! -> 
A125: 122 | B125: =VLOOKUP(A125,#REF!,3)/12 ->  | C125: =-#REF!/12 ->  | D125: =-IF($A125>#REF!,0,(#REF!*(1+#REF!)^(INT((A125-1)/12)))/12) ->  | F125: =-#REF!/12 ->  | G125: =-IF($A125>#REF!,0,(#REF!*(1+#REF!)^(INT(($A125-1)/12)))/12) ->  | I125: =IF(AND(A125>#REF!,A125<(#REF!+#REF!+1)),#REF!/#REF!,0) ->  | J125: =IF(AND($A125>#REF!,$A125<(#REF!+#REF!+1)),#REF!/#REF!,0) ->  | K125: =IF(AND($A125>#REF!,$A125<(#REF!+#REF!+1)),#REF!/#REF!,0) ->  | L125: =IF(AND($A125>#REF!,$A125<(#REF!+#REF!+1)),#REF!/#REF!,0) ->  | M125: =IF(AND($A125>#REF!,$A125<(#REF!+#REF!+1)),#REF!/#REF!,0) ->  | N125: =IF(AND($A125>#REF!,$A125<(#REF!+#REF!+1)),#REF!/#REF!,0) ->  | O125: =IF(AND($A125>#REF!,$A125<(#REF!+#REF!+1)),#REF!/#REF!,0) ->  | P125: =IF(AND($A125>#REF!,$A125<(#REF!+#REF!+1)),#REF!/#REF!,0) ->  | Q125: =-SUMIF(#REF!,A125,#REF!)/#REF! -> 
A126: 123 | B126: =VLOOKUP(A126,#REF!,3)/12 ->  | C126: =-#REF!/12 ->  | D126: =-IF($A126>#REF!,0,(#REF!*(1+#REF!)^(INT((A126-1)/12)))/12) ->  | F126: =-#REF!/12 ->  | G126: =-IF($A126>#REF!,0,(#REF!*(1+#REF!)^(INT(($A126-1)/12)))/12) ->  | I126: =IF(AND(A126>#REF!,A126<(#REF!+#REF!+1)),#REF!/#REF!,0) ->  | J126: =IF(AND($A126>#REF!,$A126<(#REF!+#REF!+1)),#REF!/#REF!,0) ->  | K126: =IF(AND($A126>#REF!,$A126<(#REF!+#REF!+1)),#REF!/#REF!,0) ->  | L126: =IF(AND($A126>#REF!,$A126<(#REF!+#REF!+1)),#REF!/#REF!,0) ->  | M126: =IF(AND($A126>#REF!,$A126<(#REF!+#REF!+1)),#REF!/#REF!,0) ->  | N126: =IF(AND($A126>#REF!,$A126<(#REF!+#REF!+1)),#REF!/#REF!,0) ->  | O126: =IF(AND($A126>#REF!,$A126<(#REF!+#REF!+1)),#REF!/#REF!,0) ->  | P126: =IF(AND($A126>#REF!,$A126<(#REF!+#REF!+1)),#REF!/#REF!,0) ->  | Q126: =-SUMIF(#REF!,A126,#REF!)/#REF! -> 
A127: 124 | B127: =VLOOKUP(A127,#REF!,3)/12 ->  | C127: =-#REF!/12 ->  | D127: =-IF($A127>#REF!,0,(#REF!*(1+#REF!)^(INT((A127-1)/12)))/12) ->  | F127: =-#REF!/12 ->  | G127: =-IF($A127>#REF!,0,(#REF!*(1+#REF!)^(INT(($A127-1)/12)))/12) ->  | I127: =IF(AND(A127>#REF!,A127<(#REF!+#REF!+1)),#REF!/#REF!,0) ->  | J127: =IF(AND($A127>#REF!,$A127<(#REF!+#REF!+1)),#REF!/#REF!,0) ->  | K127: =IF(AND($A127>#REF!,$A127<(#REF!+#REF!+1)),#REF!/#REF!,0) ->  | L127: =IF(AND($A127>#REF!,$A127<(#REF!+#REF!+1)),#REF!/#REF!,0) ->  | M127: =IF(AND($A127>#REF!,$A127<(#REF!+#REF!+1)),#REF!/#REF!,0) ->  | N127: =IF(AND($A127>#REF!,$A127<(#REF!+#REF!+1)),#REF!/#REF!,0) ->  | O127: =IF(AND($A127>#REF!,$A127<(#REF!+#REF!+1)),#REF!/#REF!,0) ->  | P127: =IF(AND($A127>#REF!,$A127<(#REF!+#REF!+1)),#REF!/#REF!,0) ->  | Q127: =-SUMIF(#REF!,A127,#REF!)/#REF! -> 
A128: 125 | B128: =VLOOKUP(A128,#REF!,3)/12 ->  | C128: =-#REF!/12 ->  | D128: =-IF($A128>#REF!,0,(#REF!*(1+#REF!)^(INT((A128-1)/12)))/12) ->  | F128: =-#REF!/12 ->  | G128: =-IF($A128>#REF!,0,(#REF!*(1+#REF!)^(INT(($A128-1)/12)))/12) ->  | I128: =IF(AND(A128>#REF!,A128<(#REF!+#REF!+1)),#REF!/#REF!,0) ->  | J128: =IF(AND($A128>#REF!,$A128<(#REF!+#REF!+1)),#REF!/#REF!,0) ->  | K128: =IF(AND($A128>#REF!,$A128<(#REF!+#REF!+1)),#REF!/#REF!,0) ->  | L128: =IF(AND($A128>#REF!,$A128<(#REF!+#REF!+1)),#REF!/#REF!,0) ->  | M128: =IF(AND($A128>#REF!,$A128<(#REF!+#REF!+1)),#REF!/#REF!,0) ->  | N128: =IF(AND($A128>#REF!,$A128<(#REF!+#REF!+1)),#REF!/#REF!,0) ->  | O128: =IF(AND($A128>#REF!,$A128<(#REF!+#REF!+1)),#REF!/#REF!,0) ->  | P128: =IF(AND($A128>#REF!,$A128<(#REF!+#REF!+1)),#REF!/#REF!,0) ->  | Q128: =-SUMIF(#REF!,A128,#REF!)/#REF! -> 
A129: 126 | B129: =VLOOKUP(A129,#REF!,3)/12 ->  | C129: =-#REF!/12 ->  | D129: =-IF($A129>#REF!,0,(#REF!*(1+#REF!)^(INT((A129-1)/12)))/12) ->  | F129: =-#REF!/12 ->  | G129: =-IF($A129>#REF!,0,(#REF!*(1+#REF!)^(INT(($A129-1)/12)))/12) ->  | I129: =IF(AND(A129>#REF!,A129<(#REF!+#REF!+1)),#REF!/#REF!,0) ->  | J129: =IF(AND($A129>#REF!,$A129<(#REF!+#REF!+1)),#REF!/#REF!,0) ->  | K129: =IF(AND($A129>#REF!,$A129<(#REF!+#REF!+1)),#REF!/#REF!,0) ->  | L129: =IF(AND($A129>#REF!,$A129<(#REF!+#REF!+1)),#REF!/#REF!,0) ->  | M129: =IF(AND($A129>#REF!,$A129<(#REF!+#REF!+1)),#REF!/#REF!,0) ->  | N129: =IF(AND($A129>#REF!,$A129<(#REF!+#REF!+1)),#REF!/#REF!,0) ->  | O129: =IF(AND($A129>#REF!,$A129<(#REF!+#REF!+1)),#REF!/#REF!,0) ->  | P129: =IF(AND($A129>#REF!,$A129<(#REF!+#REF!+1)),#REF!/#REF!,0) ->  | Q129: =-SUMIF(#REF!,A129,#REF!)/#REF! -> 
A130: 127 | B130: =VLOOKUP(A130,#REF!,3)/12 ->  | C130: =-#REF!/12 ->  | D130: =-IF($A130>#REF!,0,(#REF!*(1+#REF!)^(INT((A130-1)/12)))/12) ->  | F130: =-#REF!/12 ->  | G130: =-IF($A130>#REF!,0,(#REF!*(1+#REF!)^(INT(($A130-1)/12)))/12) ->  | I130: =IF(AND(A130>#REF!,A130<(#REF!+#REF!+1)),#REF!/#REF!,0) ->  | J130: =IF(AND($A130>#REF!,$A130<(#REF!+#REF!+1)),#REF!/#REF!,0) ->  | K130: =IF(AND($A130>#REF!,$A130<(#REF!+#REF!+1)),#REF!/#REF!,0) ->  | L130: =IF(AND($A130>#REF!,$A130<(#REF!+#REF!+1)),#REF!/#REF!,0) ->  | M130: =IF(AND($A130>#REF!,$A130<(#REF!+#REF!+1)),#REF!/#REF!,0) ->  | N130: =IF(AND($A130>#REF!,$A130<(#REF!+#REF!+1)),#REF!/#REF!,0) ->  | O130: =IF(AND($A130>#REF!,$A130<(#REF!+#REF!+1)),#REF!/#REF!,0) ->  | P130: =IF(AND($A130>#REF!,$A130<(#REF!+#REF!+1)),#REF!/#REF!,0) ->  | Q130: =-SUMIF(#REF!,A130,#REF!)/#REF! -> 
A131: 128 | B131: =VLOOKUP(A131,#REF!,3)/12 ->  | C131: =-#REF!/12 ->  | D131: =-IF($A131>#REF!,0,(#REF!*(1+#REF!)^(INT((A131-1)/12)))/12) ->  | F131: =-#REF!/12 ->  | G131: =-IF($A131>#REF!,0,(#REF!*(1+#REF!)^(INT(($A131-1)/12)))/12) ->  | I131: =IF(AND(A131>#REF!,A131<(#REF!+#REF!+1)),#REF!/#REF!,0) ->  | J131: =IF(AND($A131>#REF!,$A131<(#REF!+#REF!+1)),#REF!/#REF!,0) ->  | K131: =IF(AND($A131>#REF!,$A131<(#REF!+#REF!+1)),#REF!/#REF!,0) ->  | L131: =IF(AND($A131>#REF!,$A131<(#REF!+#REF!+1)),#REF!/#REF!,0) ->  | M131: =IF(AND($A131>#REF!,$A131<(#REF!+#REF!+1)),#REF!/#REF!,0) ->  | N131: =IF(AND($A131>#REF!,$A131<(#REF!+#REF!+1)),#REF!/#REF!,0) ->  | O131: =IF(AND($A131>#REF!,$A131<(#REF!+#REF!+1)),#REF!/#REF!,0) ->  | P131: =IF(AND($A131>#REF!,$A131<(#REF!+#REF!+1)),#REF!/#REF!,0) ->  | Q131: =-SUMIF(#REF!,A131,#REF!)/#REF! ->  | R131: =SUM(H131:Q131)+E131+B131 -> 
A132: 129 | B132: =VLOOKUP(A132,#REF!,3)/12 ->  | C132: =-#REF!/12 ->  | D132: =-IF($A132>#REF!,0,(#REF!*(1+#REF!)^(INT((A132-1)/12)))/12) ->  | E132: =IF(D132>C132,D132,C132) ->  | F132: =-#REF!/12 ->  | G132: =-IF($A132>#REF!,0,(#REF!*(1+#REF!)^(INT(($A132-1)/12)))/12) ->  | H132: =IF(G132>F132,G132,F132) ->  | I132: =IF(AND(A132>#REF!,A132<(#REF!+#REF!+1)),#REF!/#REF!,0) ->  | J132: =IF(AND($A132>#REF!,$A132<(#REF!+#REF!+1)),#REF!/#REF!,0) ->  | K132: =IF(AND($A132>#REF!,$A132<(#REF!+#REF!+1)),#REF!/#REF!,0) ->  | L132: =IF(AND($A132>#REF!,$A132<(#REF!+#REF!+1)),#REF!/#REF!,0) ->  | M132: =IF(AND($A132>#REF!,$A132<(#REF!+#REF!+1)),#REF!/#REF!,0) ->  | N132: =IF(AND($A132>#REF!,$A132<(#REF!+#REF!+1)),#REF!/#REF!,0) ->  | O132: =IF(AND($A132>#REF!,$A132<(#REF!+#REF!+1)),#REF!/#REF!,0) ->  | P132: =IF(AND($A132>#REF!,$A132<(#REF!+#REF!+1)),#REF!/#REF!,0) ->  | Q132: =-SUMIF(#REF!,A132,#REF!)/#REF! -> 
A133: 130 | B133: =VLOOKUP(A133,#REF!,3)/12 ->  | C133: =-#REF!/12 ->  | D133: =-IF($A133>#REF!,0,(#REF!*(1+#REF!)^(INT((A133-1)/12)))/12) ->  | F133: =-#REF!/12 ->  | G133: =-IF($A133>#REF!,0,(#REF!*(1+#REF!)^(INT(($A133-1)/12)))/12) ->  | I133: =IF(AND(A133>#REF!,A133<(#REF!+#REF!+1)),#REF!/#REF!,0) ->  | J133: =IF(AND($A133>#REF!,$A133<(#REF!+#REF!+1)),#REF!/#REF!,0) ->  | K133: =IF(AND($A133>#REF!,$A133<(#REF!+#REF!+1)),#REF!/#REF!,0) ->  | L133: =IF(AND($A133>#REF!,$A133<(#REF!+#REF!+1)),#REF!/#REF!,0) ->  | M133: =IF(AND($A133>#REF!,$A133<(#REF!+#REF!+1)),#REF!/#REF!,0) ->  | N133: =IF(AND($A133>#REF!,$A133<(#REF!+#REF!+1)),#REF!/#REF!,0) ->  | O133: =IF(AND($A133>#REF!,$A133<(#REF!+#REF!+1)),#REF!/#REF!,0) ->  | P133: =IF(AND($A133>#REF!,$A133<(#REF!+#REF!+1)),#REF!/#REF!,0) ->  | Q133: =-SUMIF(#REF!,A133,#REF!)/#REF! -> 
A134: 131 | B134: =VLOOKUP(A134,#REF!,3)/12 ->  | C134: =-#REF!/12 ->  | D134: =-IF($A134>#REF!,0,(#REF!*(1+#REF!)^(INT((A134-1)/12)))/12) ->  | F134: =-#REF!/12 ->  | G134: =-IF($A134>#REF!,0,(#REF!*(1+#REF!)^(INT(($A134-1)/12)))/12) ->  | I134: =IF(AND(A134>#REF!,A134<(#REF!+#REF!+1)),#REF!/#REF!,0) ->  | J134: =IF(AND($A134>#REF!,$A134<(#REF!+#REF!+1)),#REF!/#REF!,0) ->  | K134: =IF(AND($A134>#REF!,$A134<(#REF!+#REF!+1)),#REF!/#REF!,0) ->  | L134: =IF(AND($A134>#REF!,$A134<(#REF!+#REF!+1)),#REF!/#REF!,0) ->  | M134: =IF(AND($A134>#REF!,$A134<(#REF!+#REF!+1)),#REF!/#REF!,0) ->  | N134: =IF(AND($A134>#REF!,$A134<(#REF!+#REF!+1)),#REF!/#REF!,0) ->  | O134: =IF(AND($A134>#REF!,$A134<(#REF!+#REF!+1)),#REF!/#REF!,0) ->  | P134: =IF(AND($A134>#REF!,$A134<(#REF!+#REF!+1)),#REF!/#REF!,0) ->  | Q134: =-SUMIF(#REF!,A134,#REF!)/#REF! -> 
A135: 132 | B135: =VLOOKUP(A135,#REF!,3)/12 ->  | C135: =-#REF!/12 ->  | D135: =-IF($A135>#REF!,0,(#REF!*(1+#REF!)^(INT((A135-1)/12)))/12) ->  | F135: =-#REF!/12 ->  | G135: =-IF($A135>#REF!,0,(#REF!*(1+#REF!)^(INT(($A135-1)/12)))/12) ->  | I135: =IF(AND(A135>#REF!,A135<(#REF!+#REF!+1)),#REF!/#REF!,0) ->  | J135: =IF(AND($A135>#REF!,$A135<(#REF!+#REF!+1)),#REF!/#REF!,0) ->  | K135: =IF(AND($A135>#REF!,$A135<(#REF!+#REF!+1)),#REF!/#REF!,0) ->  | L135: =IF(AND($A135>#REF!,$A135<(#REF!+#REF!+1)),#REF!/#REF!,0) ->  | M135: =IF(AND($A135>#REF!,$A135<(#REF!+#REF!+1)),#REF!/#REF!,0) ->  | N135: =IF(AND($A135>#REF!,$A135<(#REF!+#REF!+1)),#REF!/#REF!,0) ->  | O135: =IF(AND($A135>#REF!,$A135<(#REF!+#REF!+1)),#REF!/#REF!,0) ->  | P135: =IF(AND($A135>#REF!,$A135<(#REF!+#REF!+1)),#REF!/#REF!,0) ->  | Q135: =-SUMIF(#REF!,A135,#REF!)/#REF! -> 
A136: 133 | B136: =VLOOKUP(A136,#REF!,3)/12 ->  | C136: =-#REF!/12 ->  | D136: =-IF($A136>#REF!,0,(#REF!*(1+#REF!)^(INT((A136-1)/12)))/12) ->  | F136: =-#REF!/12 ->  | G136: =-IF($A136>#REF!,0,(#REF!*(1+#REF!)^(INT(($A136-1)/12)))/12) ->  | I136: =IF(AND(A136>#REF!,A136<(#REF!+#REF!+1)),#REF!/#REF!,0) ->  | J136: =IF(AND($A136>#REF!,$A136<(#REF!+#REF!+1)),#REF!/#REF!,0) ->  | K136: =IF(AND($A136>#REF!,$A136<(#REF!+#REF!+1)),#REF!/#REF!,0) ->  | L136: =IF(AND($A136>#REF!,$A136<(#REF!+#REF!+1)),#REF!/#REF!,0) ->  | M136: =IF(AND($A136>#REF!,$A136<(#REF!+#REF!+1)),#REF!/#REF!,0) ->  | N136: =IF(AND($A136>#REF!,$A136<(#REF!+#REF!+1)),#REF!/#REF!,0) ->  | O136: =IF(AND($A136>#REF!,$A136<(#REF!+#REF!+1)),#REF!/#REF!,0) ->  | P136: =IF(AND($A136>#REF!,$A136<(#REF!+#REF!+1)),#REF!/#REF!,0) ->  | Q136: =-SUMIF(#REF!,A136,#REF!)/#REF! -> 
A137: 134 | B137: =VLOOKUP(A137,#REF!,3)/12 ->  | C137: =-#REF!/12 ->  | D137: =-IF($A137>#REF!,0,(#REF!*(1+#REF!)^(INT((A137-1)/12)))/12) ->  | F137: =-#REF!/12 ->  | G137: =-IF($A137>#REF!,0,(#REF!*(1+#REF!)^(INT(($A137-1)/12)))/12) ->  | I137: =IF(AND(A137>#REF!,A137<(#REF!+#REF!+1)),#REF!/#REF!,0) ->  | J137: =IF(AND($A137>#REF!,$A137<(#REF!+#REF!+1)),#REF!/#REF!,0) ->  | K137: =IF(AND($A137>#REF!,$A137<(#REF!+#REF!+1)),#REF!/#REF!,0) ->  | L137: =IF(AND($A137>#REF!,$A137<(#REF!+#REF!+1)),#REF!/#REF!,0) ->  | M137: =IF(AND($A137>#REF!,$A137<(#REF!+#REF!+1)),#REF!/#REF!,0) ->  | N137: =IF(AND($A137>#REF!,$A137<(#REF!+#REF!+1)),#REF!/#REF!,0) ->  | O137: =IF(AND($A137>#REF!,$A137<(#REF!+#REF!+1)),#REF!/#REF!,0) ->  | P137: =IF(AND($A137>#REF!,$A137<(#REF!+#REF!+1)),#REF!/#REF!,0) ->  | Q137: =-SUMIF(#REF!,A137,#REF!)/#REF! -> 
A138: 135 | B138: =VLOOKUP(A138,#REF!,3)/12 ->  | C138: =-#REF!/12 ->  | D138: =-IF($A138>#REF!,0,(#REF!*(1+#REF!)^(INT((A138-1)/12)))/12) ->  | F138: =-#REF!/12 ->  | G138: =-IF($A138>#REF!,0,(#REF!*(1+#REF!)^(INT(($A138-1)/12)))/12) ->  | I138: =IF(AND(A138>#REF!,A138<(#REF!+#REF!+1)),#REF!/#REF!,0) ->  | J138: =IF(AND($A138>#REF!,$A138<(#REF!+#REF!+1)),#REF!/#REF!,0) ->  | K138: =IF(AND($A138>#REF!,$A138<(#REF!+#REF!+1)),#REF!/#REF!,0) ->  | L138: =IF(AND($A138>#REF!,$A138<(#REF!+#REF!+1)),#REF!/#REF!,0) ->  | M138: =IF(AND($A138>#REF!,$A138<(#REF!+#REF!+1)),#REF!/#REF!,0) ->  | N138: =IF(AND($A138>#REF!,$A138<(#REF!+#REF!+1)),#REF!/#REF!,0) ->  | O138: =IF(AND($A138>#REF!,$A138<(#REF!+#REF!+1)),#REF!/#REF!,0) ->  | P138: =IF(AND($A138>#REF!,$A138<(#REF!+#REF!+1)),#REF!/#REF!,0) ->  | Q138: =-SUMIF(#REF!,A138,#REF!)/#REF! -> 
A139: 136 | B139: =VLOOKUP(A139,#REF!,3)/12 ->  | C139: =-#REF!/12 ->  | D139: =-IF($A139>#REF!,0,(#REF!*(1+#REF!)^(INT((A139-1)/12)))/12) ->  | F139: =-#REF!/12 ->  | G139: =-IF($A139>#REF!,0,(#REF!*(1+#REF!)^(INT(($A139-1)/12)))/12) ->  | I139: =IF(AND(A139>#REF!,A139<(#REF!+#REF!+1)),#REF!/#REF!,0) ->  | J139: =IF(AND($A139>#REF!,$A139<(#REF!+#REF!+1)),#REF!/#REF!,0) ->  | K139: =IF(AND($A139>#REF!,$A139<(#REF!+#REF!+1)),#REF!/#REF!,0) ->  | L139: =IF(AND($A139>#REF!,$A139<(#REF!+#REF!+1)),#REF!/#REF!,0) ->  | M139: =IF(AND($A139>#REF!,$A139<(#REF!+#REF!+1)),#REF!/#REF!,0) ->  | N139: =IF(AND($A139>#REF!,$A139<(#REF!+#REF!+1)),#REF!/#REF!,0) ->  | O139: =IF(AND($A139>#REF!,$A139<(#REF!+#REF!+1)),#REF!/#REF!,0) ->  | P139: =IF(AND($A139>#REF!,$A139<(#REF!+#REF!+1)),#REF!/#REF!,0) ->  | Q139: =-SUMIF(#REF!,A139,#REF!)/#REF! -> 
A140: 137 | B140: =VLOOKUP(A140,#REF!,3)/12 ->  | C140: =-#REF!/12 ->  | D140: =-IF($A140>#REF!,0,(#REF!*(1+#REF!)^(INT((A140-1)/12)))/12) ->  | F140: =-#REF!/12 ->  | G140: =-IF($A140>#REF!,0,(#REF!*(1+#REF!)^(INT(($A140-1)/12)))/12) ->  | I140: =IF(AND(A140>#REF!,A140<(#REF!+#REF!+1)),#REF!/#REF!,0) ->  | J140: =IF(AND($A140>#REF!,$A140<(#REF!+#REF!+1)),#REF!/#REF!,0) ->  | K140: =IF(AND($A140>#REF!,$A140<(#REF!+#REF!+1)),#REF!/#REF!,0) ->  | L140: =IF(AND($A140>#REF!,$A140<(#REF!+#REF!+1)),#REF!/#REF!,0) ->  | M140: =IF(AND($A140>#REF!,$A140<(#REF!+#REF!+1)),#REF!/#REF!,0) ->  | N140: =IF(AND($A140>#REF!,$A140<(#REF!+#REF!+1)),#REF!/#REF!,0) ->  | O140: =IF(AND($A140>#REF!,$A140<(#REF!+#REF!+1)),#REF!/#REF!,0) ->  | P140: =IF(AND($A140>#REF!,$A140<(#REF!+#REF!+1)),#REF!/#REF!,0) ->  | Q140: =-SUMIF(#REF!,A140,#REF!)/#REF! -> 
A141: 138 | B141: =VLOOKUP(A141,#REF!,3)/12 ->  | C141: =-#REF!/12 ->  | D141: =-IF($A141>#REF!,0,(#REF!*(1+#REF!)^(INT((A141-1)/12)))/12) ->  | F141: =-#REF!/12 ->  | G141: =-IF($A141>#REF!,0,(#REF!*(1+#REF!)^(INT(($A141-1)/12)))/12) ->  | I141: =IF(AND(A141>#REF!,A141<(#REF!+#REF!+1)),#REF!/#REF!,0) ->  | J141: =IF(AND($A141>#REF!,$A141<(#REF!+#REF!+1)),#REF!/#REF!,0) ->  | K141: =IF(AND($A141>#REF!,$A141<(#REF!+#REF!+1)),#REF!/#REF!,0) ->  | L141: =IF(AND($A141>#REF!,$A141<(#REF!+#REF!+1)),#REF!/#REF!,0) ->  | M141: =IF(AND($A141>#REF!,$A141<(#REF!+#REF!+1)),#REF!/#REF!,0) ->  | N141: =IF(AND($A141>#REF!,$A141<(#REF!+#REF!+1)),#REF!/#REF!,0) ->  | O141: =IF(AND($A141>#REF!,$A141<(#REF!+#REF!+1)),#REF!/#REF!,0) ->  | P141: =IF(AND($A141>#REF!,$A141<(#REF!+#REF!+1)),#REF!/#REF!,0) ->  | Q141: =-SUMIF(#REF!,A141,#REF!)/#REF! -> 
A142: 139 | B142: =VLOOKUP(A142,#REF!,3)/12 ->  | C142: =-#REF!/12 ->  | D142: =-IF($A142>#REF!,0,(#REF!*(1+#REF!)^(INT((A142-1)/12)))/12) ->  | F142: =-#REF!/12 ->  | G142: =-IF($A142>#REF!,0,(#REF!*(1+#REF!)^(INT(($A142-1)/12)))/12) ->  | I142: =IF(AND(A142>#REF!,A142<(#REF!+#REF!+1)),#REF!/#REF!,0) ->  | J142: =IF(AND($A142>#REF!,$A142<(#REF!+#REF!+1)),#REF!/#REF!,0) ->  | K142: =IF(AND($A142>#REF!,$A142<(#REF!+#REF!+1)),#REF!/#REF!,0) ->  | L142: =IF(AND($A142>#REF!,$A142<(#REF!+#REF!+1)),#REF!/#REF!,0) ->  | M142: =IF(AND($A142>#REF!,$A142<(#REF!+#REF!+1)),#REF!/#REF!,0) ->  | N142: =IF(AND($A142>#REF!,$A142<(#REF!+#REF!+1)),#REF!/#REF!,0) ->  | O142: =IF(AND($A142>#REF!,$A142<(#REF!+#REF!+1)),#REF!/#REF!,0) ->  | P142: =IF(AND($A142>#REF!,$A142<(#REF!+#REF!+1)),#REF!/#REF!,0) ->  | Q142: =-SUMIF(#REF!,A142,#REF!)/#REF! -> 
A143: 140 | B143: =VLOOKUP(A143,#REF!,3)/12 ->  | C143: =-#REF!/12 ->  | D143: =-IF($A143>#REF!,0,(#REF!*(1+#REF!)^(INT((A143-1)/12)))/12) ->  | F143: =-#REF!/12 ->  | G143: =-IF($A143>#REF!,0,(#REF!*(1+#REF!)^(INT(($A143-1)/12)))/12) ->  | I143: =IF(AND(A143>#REF!,A143<(#REF!+#REF!+1)),#REF!/#REF!,0) ->  | J143: =IF(AND($A143>#REF!,$A143<(#REF!+#REF!+1)),#REF!/#REF!,0) ->  | K143: =IF(AND($A143>#REF!,$A143<(#REF!+#REF!+1)),#REF!/#REF!,0) ->  | L143: =IF(AND($A143>#REF!,$A143<(#REF!+#REF!+1)),#REF!/#REF!,0) ->  | M143: =IF(AND($A143>#REF!,$A143<(#REF!+#REF!+1)),#REF!/#REF!,0) ->  | N143: =IF(AND($A143>#REF!,$A143<(#REF!+#REF!+1)),#REF!/#REF!,0) ->  | O143: =IF(AND($A143>#REF!,$A143<(#REF!+#REF!+1)),#REF!/#REF!,0) ->  | P143: =IF(AND($A143>#REF!,$A143<(#REF!+#REF!+1)),#REF!/#REF!,0) ->  | Q143: =-SUMIF(#REF!,A143,#REF!)/#REF! -> 
A144: 141 | B144: =VLOOKUP(A144,#REF!,3)/12 ->  | C144: =-#REF!/12 ->  | D144: =-IF($A144>#REF!,0,(#REF!*(1+#REF!)^(INT((A144-1)/12)))/12) ->  | F144: =-#REF!/12 ->  | G144: =-IF($A144>#REF!,0,(#REF!*(1+#REF!)^(INT(($A144-1)/12)))/12) ->  | I144: =IF(AND(A144>#REF!,A144<(#REF!+#REF!+1)),#REF!/#REF!,0) ->  | J144: =IF(AND($A144>#REF!,$A144<(#REF!+#REF!+1)),#REF!/#REF!,0) ->  | K144: =IF(AND($A144>#REF!,$A144<(#REF!+#REF!+1)),#REF!/#REF!,0) ->  | L144: =IF(AND($A144>#REF!,$A144<(#REF!+#REF!+1)),#REF!/#REF!,0) ->  | M144: =IF(AND($A144>#REF!,$A144<(#REF!+#REF!+1)),#REF!/#REF!,0) ->  | N144: =IF(AND($A144>#REF!,$A144<(#REF!+#REF!+1)),#REF!/#REF!,0) ->  | O144: =IF(AND($A144>#REF!,$A144<(#REF!+#REF!+1)),#REF!/#REF!,0) ->  | P144: =IF(AND($A144>#REF!,$A144<(#REF!+#REF!+1)),#REF!/#REF!,0) ->  | Q144: =-SUMIF(#REF!,A144,#REF!)/#REF! -> 
A145: 142 | B145: =VLOOKUP(A145,#REF!,3)/12 ->  | C145: =-#REF!/12 ->  | D145: =-IF($A145>#REF!,0,(#REF!*(1+#REF!)^(INT((A145-1)/12)))/12) ->  | F145: =-#REF!/12 ->  | G145: =-IF($A145>#REF!,0,(#REF!*(1+#REF!)^(INT(($A145-1)/12)))/12) ->  | I145: =IF(AND(A145>#REF!,A145<(#REF!+#REF!+1)),#REF!/#REF!,0) ->  | J145: =IF(AND($A145>#REF!,$A145<(#REF!+#REF!+1)),#REF!/#REF!,0) ->  | K145: =IF(AND($A145>#REF!,$A145<(#REF!+#REF!+1)),#REF!/#REF!,0) ->  | L145: =IF(AND($A145>#REF!,$A145<(#REF!+#REF!+1)),#REF!/#REF!,0) ->  | M145: =IF(AND($A145>#REF!,$A145<(#REF!+#REF!+1)),#REF!/#REF!,0) ->  | N145: =IF(AND($A145>#REF!,$A145<(#REF!+#REF!+1)),#REF!/#REF!,0) ->  | O145: =IF(AND($A145>#REF!,$A145<(#REF!+#REF!+1)),#REF!/#REF!,0) ->  | P145: =IF(AND($A145>#REF!,$A145<(#REF!+#REF!+1)),#REF!/#REF!,0) ->  | Q145: =-SUMIF(#REF!,A145,#REF!)/#REF! -> 
A146: 143 | B146: =VLOOKUP(A146,#REF!,3)/12 ->  | C146: =-#REF!/12 ->  | D146: =-IF($A146>#REF!,0,(#REF!*(1+#REF!)^(INT((A146-1)/12)))/12) ->  | F146: =-#REF!/12 ->  | G146: =-IF($A146>#REF!,0,(#REF!*(1+#REF!)^(INT(($A146-1)/12)))/12) ->  | I146: =IF(AND(A146>#REF!,A146<(#REF!+#REF!+1)),#REF!/#REF!,0) ->  | J146: =IF(AND($A146>#REF!,$A146<(#REF!+#REF!+1)),#REF!/#REF!,0) ->  | K146: =IF(AND($A146>#REF!,$A146<(#REF!+#REF!+1)),#REF!/#REF!,0) ->  | L146: =IF(AND($A146>#REF!,$A146<(#REF!+#REF!+1)),#REF!/#REF!,0) ->  | M146: =IF(AND($A146>#REF!,$A146<(#REF!+#REF!+1)),#REF!/#REF!,0) ->  | N146: =IF(AND($A146>#REF!,$A146<(#REF!+#REF!+1)),#REF!/#REF!,0) ->  | O146: =IF(AND($A146>#REF!,$A146<(#REF!+#REF!+1)),#REF!/#REF!,0) ->  | P146: =IF(AND($A146>#REF!,$A146<(#REF!+#REF!+1)),#REF!/#REF!,0) ->  | Q146: =-SUMIF(#REF!,A146,#REF!)/#REF! -> 
A147: 144 | B147: =VLOOKUP(A147,#REF!,3)/12 ->  | C147: =-#REF!/12 ->  | D147: =-IF($A147>#REF!,0,(#REF!*(1+#REF!)^(INT((A147-1)/12)))/12) ->  | F147: =-#REF!/12 ->  | G147: =-IF($A147>#REF!,0,(#REF!*(1+#REF!)^(INT(($A147-1)/12)))/12) ->  | I147: =IF(AND(A147>#REF!,A147<(#REF!+#REF!+1)),#REF!/#REF!,0) ->  | J147: =IF(AND($A147>#REF!,$A147<(#REF!+#REF!+1)),#REF!/#REF!,0) ->  | K147: =IF(AND($A147>#REF!,$A147<(#REF!+#REF!+1)),#REF!/#REF!,0) ->  | L147: =IF(AND($A147>#REF!,$A147<(#REF!+#REF!+1)),#REF!/#REF!,0) ->  | M147: =IF(AND($A147>#REF!,$A147<(#REF!+#REF!+1)),#REF!/#REF!,0) ->  | N147: =IF(AND($A147>#REF!,$A147<(#REF!+#REF!+1)),#REF!/#REF!,0) ->  | O147: =IF(AND($A147>#REF!,$A147<(#REF!+#REF!+1)),#REF!/#REF!,0) ->  | P147: =IF(AND($A147>#REF!,$A147<(#REF!+#REF!+1)),#REF!/#REF!,0) ->  | Q147: =-SUMIF(#REF!,A147,#REF!)/#REF! -> 
A148: 145 | B148: =VLOOKUP(A148,#REF!,3)/12 ->  | C148: =-#REF!/12 ->  | D148: =-IF($A148>#REF!,0,(#REF!*(1+#REF!)^(INT((A148-1)/12)))/12) ->  | F148: =-#REF!/12 ->  | G148: =-IF($A148>#REF!,0,(#REF!*(1+#REF!)^(INT(($A148-1)/12)))/12) ->  | I148: =IF(AND(A148>#REF!,A148<(#REF!+#REF!+1)),#REF!/#REF!,0) ->  | J148: =IF(AND($A148>#REF!,$A148<(#REF!+#REF!+1)),#REF!/#REF!,0) ->  | K148: =IF(AND($A148>#REF!,$A148<(#REF!+#REF!+1)),#REF!/#REF!,0) ->  | L148: =IF(AND($A148>#REF!,$A148<(#REF!+#REF!+1)),#REF!/#REF!,0) ->  | M148: =IF(AND($A148>#REF!,$A148<(#REF!+#REF!+1)),#REF!/#REF!,0) ->  | N148: =IF(AND($A148>#REF!,$A148<(#REF!+#REF!+1)),#REF!/#REF!,0) ->  | O148: =IF(AND($A148>#REF!,$A148<(#REF!+#REF!+1)),#REF!/#REF!,0) ->  | P148: =IF(AND($A148>#REF!,$A148<(#REF!+#REF!+1)),#REF!/#REF!,0) ->  | Q148: =-SUMIF(#REF!,A148,#REF!)/#REF! -> 
A149: 146 | B149: =VLOOKUP(A149,#REF!,3)/12 ->  | C149: =-#REF!/12 ->  | D149: =-IF($A149>#REF!,0,(#REF!*(1+#REF!)^(INT((A149-1)/12)))/12) ->  | F149: =-#REF!/12 ->  | G149: =-IF($A149>#REF!,0,(#REF!*(1+#REF!)^(INT(($A149-1)/12)))/12) ->  | I149: =IF(AND(A149>#REF!,A149<(#REF!+#REF!+1)),#REF!/#REF!,0) ->  | J149: =IF(AND($A149>#REF!,$A149<(#REF!+#REF!+1)),#REF!/#REF!,0) ->  | K149: =IF(AND($A149>#REF!,$A149<(#REF!+#REF!+1)),#REF!/#REF!,0) ->  | L149: =IF(AND($A149>#REF!,$A149<(#REF!+#REF!+1)),#REF!/#REF!,0) ->  | M149: =IF(AND($A149>#REF!,$A149<(#REF!+#REF!+1)),#REF!/#REF!,0) ->  | N149: =IF(AND($A149>#REF!,$A149<(#REF!+#REF!+1)),#REF!/#REF!,0) ->  | O149: =IF(AND($A149>#REF!,$A149<(#REF!+#REF!+1)),#REF!/#REF!,0) ->  | P149: =IF(AND($A149>#REF!,$A149<(#REF!+#REF!+1)),#REF!/#REF!,0) ->  | Q149: =-SUMIF(#REF!,A149,#REF!)/#REF! -> 
A150: 147 | B150: =VLOOKUP(A150,#REF!,3)/12 ->  | C150: =-#REF!/12 ->  | D150: =-IF($A150>#REF!,0,(#REF!*(1+#REF!)^(INT((A150-1)/12)))/12) ->  | F150: =-#REF!/12 ->  | G150: =-IF($A150>#REF!,0,(#REF!*(1+#REF!)^(INT(($A150-1)/12)))/12) ->  | I150: =IF(AND(A150>#REF!,A150<(#REF!+#REF!+1)),#REF!/#REF!,0) ->  | J150: =IF(AND($A150>#REF!,$A150<(#REF!+#REF!+1)),#REF!/#REF!,0) ->  | K150: =IF(AND($A150>#REF!,$A150<(#REF!+#REF!+1)),#REF!/#REF!,0) ->  | L150: =IF(AND($A150>#REF!,$A150<(#REF!+#REF!+1)),#REF!/#REF!,0) ->  | M150: =IF(AND($A150>#REF!,$A150<(#REF!+#REF!+1)),#REF!/#REF!,0) ->  | N150: =IF(AND($A150>#REF!,$A150<(#REF!+#REF!+1)),#REF!/#REF!,0) ->  | O150: =IF(AND($A150>#REF!,$A150<(#REF!+#REF!+1)),#REF!/#REF!,0) ->  | P150: =IF(AND($A150>#REF!,$A150<(#REF!+#REF!+1)),#REF!/#REF!,0) ->  | Q150: =-SUMIF(#REF!,A150,#REF!)/#REF! -> 
A151: 148 | B151: =VLOOKUP(A151,#REF!,3)/12 ->  | C151: =-#REF!/12 ->  | D151: =-IF($A151>#REF!,0,(#REF!*(1+#REF!)^(INT((A151-1)/12)))/12) ->  | F151: =-#REF!/12 ->  | G151: =-IF($A151>#REF!,0,(#REF!*(1+#REF!)^(INT(($A151-1)/12)))/12) ->  | I151: =IF(AND(A151>#REF!,A151<(#REF!+#REF!+1)),#REF!/#REF!,0) ->  | J151: =IF(AND($A151>#REF!,$A151<(#REF!+#REF!+1)),#REF!/#REF!,0) ->  | K151: =IF(AND($A151>#REF!,$A151<(#REF!+#REF!+1)),#REF!/#REF!,0) ->  | L151: =IF(AND($A151>#REF!,$A151<(#REF!+#REF!+1)),#REF!/#REF!,0) ->  | M151: =IF(AND($A151>#REF!,$A151<(#REF!+#REF!+1)),#REF!/#REF!,0) ->  | N151: =IF(AND($A151>#REF!,$A151<(#REF!+#REF!+1)),#REF!/#REF!,0) ->  | O151: =IF(AND($A151>#REF!,$A151<(#REF!+#REF!+1)),#REF!/#REF!,0) ->  | P151: =IF(AND($A151>#REF!,$A151<(#REF!+#REF!+1)),#REF!/#REF!,0) ->  | Q151: =-SUMIF(#REF!,A151,#REF!)/#REF! -> 
A152: 149 | B152: =VLOOKUP(A152,#REF!,3)/12 ->  | C152: =-#REF!/12 ->  | D152: =-IF($A152>#REF!,0,(#REF!*(1+#REF!)^(INT((A152-1)/12)))/12) ->  | F152: =-#REF!/12 ->  | G152: =-IF($A152>#REF!,0,(#REF!*(1+#REF!)^(INT(($A152-1)/12)))/12) ->  | I152: =IF(AND(A152>#REF!,A152<(#REF!+#REF!+1)),#REF!/#REF!,0) ->  | J152: =IF(AND($A152>#REF!,$A152<(#REF!+#REF!+1)),#REF!/#REF!,0) ->  | K152: =IF(AND($A152>#REF!,$A152<(#REF!+#REF!+1)),#REF!/#REF!,0) ->  | L152: =IF(AND($A152>#REF!,$A152<(#REF!+#REF!+1)),#REF!/#REF!,0) ->  | M152: =IF(AND($A152>#REF!,$A152<(#REF!+#REF!+1)),#REF!/#REF!,0) ->  | N152: =IF(AND($A152>#REF!,$A152<(#REF!+#REF!+1)),#REF!/#REF!,0) ->  | O152: =IF(AND($A152>#REF!,$A152<(#REF!+#REF!+1)),#REF!/#REF!,0) ->  | P152: =IF(AND($A152>#REF!,$A152<(#REF!+#REF!+1)),#REF!/#REF!,0) ->  | Q152: =-SUMIF(#REF!,A152,#REF!)/#REF! -> 
A153: 150 | B153: =VLOOKUP(A153,#REF!,3)/12 ->  | C153: =-#REF!/12 ->  | D153: =-IF($A153>#REF!,0,(#REF!*(1+#REF!)^(INT((A153-1)/12)))/12) ->  | F153: =-#REF!/12 ->  | G153: =-IF($A153>#REF!,0,(#REF!*(1+#REF!)^(INT(($A153-1)/12)))/12) ->  | I153: =IF(AND(A153>#REF!,A153<(#REF!+#REF!+1)),#REF!/#REF!,0) ->  | J153: =IF(AND($A153>#REF!,$A153<(#REF!+#REF!+1)),#REF!/#REF!,0) ->  | K153: =IF(AND($A153>#REF!,$A153<(#REF!+#REF!+1)),#REF!/#REF!,0) ->  | L153: =IF(AND($A153>#REF!,$A153<(#REF!+#REF!+1)),#REF!/#REF!,0) ->  | M153: =IF(AND($A153>#REF!,$A153<(#REF!+#REF!+1)),#REF!/#REF!,0) ->  | N153: =IF(AND($A153>#REF!,$A153<(#REF!+#REF!+1)),#REF!/#REF!,0) ->  | O153: =IF(AND($A153>#REF!,$A153<(#REF!+#REF!+1)),#REF!/#REF!,0) ->  | P153: =IF(AND($A153>#REF!,$A153<(#REF!+#REF!+1)),#REF!/#REF!,0) ->  | Q153: =-SUMIF(#REF!,A153,#REF!)/#REF! -> 
A154: 151 | B154: =VLOOKUP(A154,#REF!,3)/12 ->  | C154: =-#REF!/12 ->  | D154: =-IF($A154>#REF!,0,(#REF!*(1+#REF!)^(INT((A154-1)/12)))/12) ->  | F154: =-#REF!/12 ->  | G154: =-IF($A154>#REF!,0,(#REF!*(1+#REF!)^(INT(($A154-1)/12)))/12) ->  | I154: =IF(AND(A154>#REF!,A154<(#REF!+#REF!+1)),#REF!/#REF!,0) ->  | J154: =IF(AND($A154>#REF!,$A154<(#REF!+#REF!+1)),#REF!/#REF!,0) ->  | K154: =IF(AND($A154>#REF!,$A154<(#REF!+#REF!+1)),#REF!/#REF!,0) ->  | L154: =IF(AND($A154>#REF!,$A154<(#REF!+#REF!+1)),#REF!/#REF!,0) ->  | M154: =IF(AND($A154>#REF!,$A154<(#REF!+#REF!+1)),#REF!/#REF!,0) ->  | N154: =IF(AND($A154>#REF!,$A154<(#REF!+#REF!+1)),#REF!/#REF!,0) ->  | O154: =IF(AND($A154>#REF!,$A154<(#REF!+#REF!+1)),#REF!/#REF!,0) ->  | P154: =IF(AND($A154>#REF!,$A154<(#REF!+#REF!+1)),#REF!/#REF!,0) ->  | Q154: =-SUMIF(#REF!,A154,#REF!)/#REF! -> 
A155: 152 | B155: =VLOOKUP(A155,#REF!,3)/12 ->  | C155: =-#REF!/12 ->  | D155: =-IF($A155>#REF!,0,(#REF!*(1+#REF!)^(INT((A155-1)/12)))/12) ->  | F155: =-#REF!/12 ->  | G155: =-IF($A155>#REF!,0,(#REF!*(1+#REF!)^(INT(($A155-1)/12)))/12) ->  | I155: =IF(AND(A155>#REF!,A155<(#REF!+#REF!+1)),#REF!/#REF!,0) ->  | J155: =IF(AND($A155>#REF!,$A155<(#REF!+#REF!+1)),#REF!/#REF!,0) ->  | K155: =IF(AND($A155>#REF!,$A155<(#REF!+#REF!+1)),#REF!/#REF!,0) ->  | L155: =IF(AND($A155>#REF!,$A155<(#REF!+#REF!+1)),#REF!/#REF!,0) ->  | M155: =IF(AND($A155>#REF!,$A155<(#REF!+#REF!+1)),#REF!/#REF!,0) ->  | N155: =IF(AND($A155>#REF!,$A155<(#REF!+#REF!+1)),#REF!/#REF!,0) ->  | O155: =IF(AND($A155>#REF!,$A155<(#REF!+#REF!+1)),#REF!/#REF!,0) ->  | P155: =IF(AND($A155>#REF!,$A155<(#REF!+#REF!+1)),#REF!/#REF!,0) ->  | Q155: =-SUMIF(#REF!,A155,#REF!)/#REF! -> 
A156: 153 | B156: =VLOOKUP(A156,#REF!,3)/12 ->  | C156: =-#REF!/12 ->  | D156: =-IF($A156>#REF!,0,(#REF!*(1+#REF!)^(INT((A156-1)/12)))/12) ->  | F156: =-#REF!/12 ->  | G156: =-IF($A156>#REF!,0,(#REF!*(1+#REF!)^(INT(($A156-1)/12)))/12) ->  | I156: =IF(AND(A156>#REF!,A156<(#REF!+#REF!+1)),#REF!/#REF!,0) ->  | J156: =IF(AND($A156>#REF!,$A156<(#REF!+#REF!+1)),#REF!/#REF!,0) ->  | K156: =IF(AND($A156>#REF!,$A156<(#REF!+#REF!+1)),#REF!/#REF!,0) ->  | L156: =IF(AND($A156>#REF!,$A156<(#REF!+#REF!+1)),#REF!/#REF!,0) ->  | M156: =IF(AND($A156>#REF!,$A156<(#REF!+#REF!+1)),#REF!/#REF!,0) ->  | N156: =IF(AND($A156>#REF!,$A156<(#REF!+#REF!+1)),#REF!/#REF!,0) ->  | O156: =IF(AND($A156>#REF!,$A156<(#REF!+#REF!+1)),#REF!/#REF!,0) ->  | P156: =IF(AND($A156>#REF!,$A156<(#REF!+#REF!+1)),#REF!/#REF!,0) ->  | Q156: =-SUMIF(#REF!,A156,#REF!)/#REF! -> 
A157: 154 | B157: =VLOOKUP(A157,#REF!,3)/12 ->  | C157: =-#REF!/12 ->  | D157: =-IF($A157>#REF!,0,(#REF!*(1+#REF!)^(INT((A157-1)/12)))/12) ->  | F157: =-#REF!/12 ->  | G157: =-IF($A157>#REF!,0,(#REF!*(1+#REF!)^(INT(($A157-1)/12)))/12) ->  | I157: =IF(AND(A157>#REF!,A157<(#REF!+#REF!+1)),#REF!/#REF!,0) ->  | J157: =IF(AND($A157>#REF!,$A157<(#REF!+#REF!+1)),#REF!/#REF!,0) ->  | K157: =IF(AND($A157>#REF!,$A157<(#REF!+#REF!+1)),#REF!/#REF!,0) ->  | L157: =IF(AND($A157>#REF!,$A157<(#REF!+#REF!+1)),#REF!/#REF!,0) ->  | M157: =IF(AND($A157>#REF!,$A157<(#REF!+#REF!+1)),#REF!/#REF!,0) ->  | N157: =IF(AND($A157>#REF!,$A157<(#REF!+#REF!+1)),#REF!/#REF!,0) ->  | O157: =IF(AND($A157>#REF!,$A157<(#REF!+#REF!+1)),#REF!/#REF!,0) ->  | P157: =IF(AND($A157>#REF!,$A157<(#REF!+#REF!+1)),#REF!/#REF!,0) ->  | Q157: =-SUMIF(#REF!,A157,#REF!)/#REF! -> 
A158: 155 | B158: =VLOOKUP(A158,#REF!,3)/12 ->  | C158: =-#REF!/12 ->  | D158: =-IF($A158>#REF!,0,(#REF!*(1+#REF!)^(INT((A158-1)/12)))/12) ->  | F158: =-#REF!/12 ->  | G158: =-IF($A158>#REF!,0,(#REF!*(1+#REF!)^(INT(($A158-1)/12)))/12) ->  | I158: =IF(AND(A158>#REF!,A158<(#REF!+#REF!+1)),#REF!/#REF!,0) ->  | J158: =IF(AND($A158>#REF!,$A158<(#REF!+#REF!+1)),#REF!/#REF!,0) ->  | K158: =IF(AND($A158>#REF!,$A158<(#REF!+#REF!+1)),#REF!/#REF!,0) ->  | L158: =IF(AND($A158>#REF!,$A158<(#REF!+#REF!+1)),#REF!/#REF!,0) ->  | M158: =IF(AND($A158>#REF!,$A158<(#REF!+#REF!+1)),#REF!/#REF!,0) ->  | N158: =IF(AND($A158>#REF!,$A158<(#REF!+#REF!+1)),#REF!/#REF!,0) ->  | O158: =IF(AND($A158>#REF!,$A158<(#REF!+#REF!+1)),#REF!/#REF!,0) ->  | P158: =IF(AND($A158>#REF!,$A158<(#REF!+#REF!+1)),#REF!/#REF!,0) ->  | Q158: =-SUMIF(#REF!,A158,#REF!)/#REF! -> 
A159: 156 | B159: =VLOOKUP(A159,#REF!,3)/12 ->  | C159: =-#REF!/12 ->  | D159: =-IF($A159>#REF!,0,(#REF!*(1+#REF!)^(INT((A159-1)/12)))/12) ->  | F159: =-#REF!/12 ->  | G159: =-IF($A159>#REF!,0,(#REF!*(1+#REF!)^(INT(($A159-1)/12)))/12) ->  | I159: =IF(AND(A159>#REF!,A159<(#REF!+#REF!+1)),#REF!/#REF!,0) ->  | J159: =IF(AND($A159>#REF!,$A159<(#REF!+#REF!+1)),#REF!/#REF!,0) ->  | K159: =IF(AND($A159>#REF!,$A159<(#REF!+#REF!+1)),#REF!/#REF!,0) ->  | L159: =IF(AND($A159>#REF!,$A159<(#REF!+#REF!+1)),#REF!/#REF!,0) ->  | M159: =IF(AND($A159>#REF!,$A159<(#REF!+#REF!+1)),#REF!/#REF!,0) ->  | N159: =IF(AND($A159>#REF!,$A159<(#REF!+#REF!+1)),#REF!/#REF!,0) ->  | O159: =IF(AND($A159>#REF!,$A159<(#REF!+#REF!+1)),#REF!/#REF!,0) ->  | P159: =IF(AND($A159>#REF!,$A159<(#REF!+#REF!+1)),#REF!/#REF!,0) ->  | Q159: =-SUMIF(#REF!,A159,#REF!)/#REF! -> 
A160: 157 | B160: =VLOOKUP(A160,#REF!,3)/12 ->  | C160: =-#REF!/12 ->  | D160: =-IF($A160>#REF!,0,(#REF!*(1+#REF!)^(INT((A160-1)/12)))/12) ->  | F160: =-#REF!/12 ->  | G160: =-IF($A160>#REF!,0,(#REF!*(1+#REF!)^(INT(($A160-1)/12)))/12) ->  | I160: =IF(AND(A160>#REF!,A160<(#REF!+#REF!+1)),#REF!/#REF!,0) ->  | J160: =IF(AND($A160>#REF!,$A160<(#REF!+#REF!+1)),#REF!/#REF!,0) ->  | K160: =IF(AND($A160>#REF!,$A160<(#REF!+#REF!+1)),#REF!/#REF!,0) ->  | L160: =IF(AND($A160>#REF!,$A160<(#REF!+#REF!+1)),#REF!/#REF!,0) ->  | M160: =IF(AND($A160>#REF!,$A160<(#REF!+#REF!+1)),#REF!/#REF!,0) ->  | N160: =IF(AND($A160>#REF!,$A160<(#REF!+#REF!+1)),#REF!/#REF!,0) ->  | O160: =IF(AND($A160>#REF!,$A160<(#REF!+#REF!+1)),#REF!/#REF!,0) ->  | P160: =IF(AND($A160>#REF!,$A160<(#REF!+#REF!+1)),#REF!/#REF!,0) ->  | Q160: =-SUMIF(#REF!,A160,#REF!)/#REF! -> 
A161: 158 | B161: =VLOOKUP(A161,#REF!,3)/12 ->  | C161: =-#REF!/12 ->  | D161: =-IF($A161>#REF!,0,(#REF!*(1+#REF!)^(INT((A161-1)/12)))/12) ->  | F161: =-#REF!/12 ->  | G161: =-IF($A161>#REF!,0,(#REF!*(1+#REF!)^(INT(($A161-1)/12)))/12) ->  | I161: =IF(AND(A161>#REF!,A161<(#REF!+#REF!+1)),#REF!/#REF!,0) ->  | J161: =IF(AND($A161>#REF!,$A161<(#REF!+#REF!+1)),#REF!/#REF!,0) ->  | K161: =IF(AND($A161>#REF!,$A161<(#REF!+#REF!+1)),#REF!/#REF!,0) ->  | L161: =IF(AND($A161>#REF!,$A161<(#REF!+#REF!+1)),#REF!/#REF!,0) ->  | M161: =IF(AND($A161>#REF!,$A161<(#REF!+#REF!+1)),#REF!/#REF!,0) ->  | N161: =IF(AND($A161>#REF!,$A161<(#REF!+#REF!+1)),#REF!/#REF!,0) ->  | O161: =IF(AND($A161>#REF!,$A161<(#REF!+#REF!+1)),#REF!/#REF!,0) ->  | P161: =IF(AND($A161>#REF!,$A161<(#REF!+#REF!+1)),#REF!/#REF!,0) ->  | Q161: =-SUMIF(#REF!,A161,#REF!)/#REF! -> 
A162: 159 | B162: =VLOOKUP(A162,#REF!,3)/12 ->  | C162: =-#REF!/12 ->  | D162: =-IF($A162>#REF!,0,(#REF!*(1+#REF!)^(INT((A162-1)/12)))/12) ->  | F162: =-#REF!/12 ->  | G162: =-IF($A162>#REF!,0,(#REF!*(1+#REF!)^(INT(($A162-1)/12)))/12) ->  | I162: =IF(AND(A162>#REF!,A162<(#REF!+#REF!+1)),#REF!/#REF!,0) ->  | J162: =IF(AND($A162>#REF!,$A162<(#REF!+#REF!+1)),#REF!/#REF!,0) ->  | K162: =IF(AND($A162>#REF!,$A162<(#REF!+#REF!+1)),#REF!/#REF!,0) ->  | L162: =IF(AND($A162>#REF!,$A162<(#REF!+#REF!+1)),#REF!/#REF!,0) ->  | M162: =IF(AND($A162>#REF!,$A162<(#REF!+#REF!+1)),#REF!/#REF!,0) ->  | N162: =IF(AND($A162>#REF!,$A162<(#REF!+#REF!+1)),#REF!/#REF!,0) ->  | O162: =IF(AND($A162>#REF!,$A162<(#REF!+#REF!+1)),#REF!/#REF!,0) ->  | P162: =IF(AND($A162>#REF!,$A162<(#REF!+#REF!+1)),#REF!/#REF!,0) ->  | Q162: =-SUMIF(#REF!,A162,#REF!)/#REF! -> 
A163: 160 | B163: =VLOOKUP(A163,#REF!,3)/12 ->  | C163: =-#REF!/12 ->  | D163: =-IF($A163>#REF!,0,(#REF!*(1+#REF!)^(INT((A163-1)/12)))/12) ->  | F163: =-#REF!/12 ->  | G163: =-IF($A163>#REF!,0,(#REF!*(1+#REF!)^(INT(($A163-1)/12)))/12) ->  | I163: =IF(AND(A163>#REF!,A163<(#REF!+#REF!+1)),#REF!/#REF!,0) ->  | J163: =IF(AND($A163>#REF!,$A163<(#REF!+#REF!+1)),#REF!/#REF!,0) ->  | K163: =IF(AND($A163>#REF!,$A163<(#REF!+#REF!+1)),#REF!/#REF!,0) ->  | L163: =IF(AND($A163>#REF!,$A163<(#REF!+#REF!+1)),#REF!/#REF!,0) ->  | M163: =IF(AND($A163>#REF!,$A163<(#REF!+#REF!+1)),#REF!/#REF!,0) ->  | N163: =IF(AND($A163>#REF!,$A163<(#REF!+#REF!+1)),#REF!/#REF!,0) ->  | O163: =IF(AND($A163>#REF!,$A163<(#REF!+#REF!+1)),#REF!/#REF!,0) ->  | P163: =IF(AND($A163>#REF!,$A163<(#REF!+#REF!+1)),#REF!/#REF!,0) ->  | Q163: =-SUMIF(#REF!,A163,#REF!)/#REF! ->  | R163: =SUM(H163:Q163)+E163+B163 -> 
A164: 161 | B164: =VLOOKUP(A164,#REF!,3)/12 ->  | C164: =-#REF!/12 ->  | D164: =-IF($A164>#REF!,0,(#REF!*(1+#REF!)^(INT((A164-1)/12)))/12) ->  | E164: =IF(D164>C164,D164,C164) ->  | F164: =-#REF!/12 ->  | G164: =-IF($A164>#REF!,0,(#REF!*(1+#REF!)^(INT(($A164-1)/12)))/12) ->  | H164: =IF(G164>F164,G164,F164) ->  | I164: =IF(AND(A164>#REF!,A164<(#REF!+#REF!+1)),#REF!/#REF!,0) ->  | J164: =IF(AND($A164>#REF!,$A164<(#REF!+#REF!+1)),#REF!/#REF!,0) ->  | K164: =IF(AND($A164>#REF!,$A164<(#REF!+#REF!+1)),#REF!/#REF!,0) ->  | L164: =IF(AND($A164>#REF!,$A164<(#REF!+#REF!+1)),#REF!/#REF!,0) ->  | M164: =IF(AND($A164>#REF!,$A164<(#REF!+#REF!+1)),#REF!/#REF!,0) ->  | N164: =IF(AND($A164>#REF!,$A164<(#REF!+#REF!+1)),#REF!/#REF!,0) ->  | O164: =IF(AND($A164>#REF!,$A164<(#REF!+#REF!+1)),#REF!/#REF!,0) ->  | P164: =IF(AND($A164>#REF!,$A164<(#REF!+#REF!+1)),#REF!/#REF!,0) ->  | Q164: =-SUMIF(#REF!,A164,#REF!)/#REF! -> 
A165: 162 | B165: =VLOOKUP(A165,#REF!,3)/12 ->  | C165: =-#REF!/12 ->  | D165: =-IF($A165>#REF!,0,(#REF!*(1+#REF!)^(INT((A165-1)/12)))/12) ->  | F165: =-#REF!/12 ->  | G165: =-IF($A165>#REF!,0,(#REF!*(1+#REF!)^(INT(($A165-1)/12)))/12) ->  | I165: =IF(AND(A165>#REF!,A165<(#REF!+#REF!+1)),#REF!/#REF!,0) ->  | J165: =IF(AND($A165>#REF!,$A165<(#REF!+#REF!+1)),#REF!/#REF!,0) ->  | K165: =IF(AND($A165>#REF!,$A165<(#REF!+#REF!+1)),#REF!/#REF!,0) ->  | L165: =IF(AND($A165>#REF!,$A165<(#REF!+#REF!+1)),#REF!/#REF!,0) ->  | M165: =IF(AND($A165>#REF!,$A165<(#REF!+#REF!+1)),#REF!/#REF!,0) ->  | N165: =IF(AND($A165>#REF!,$A165<(#REF!+#REF!+1)),#REF!/#REF!,0) ->  | O165: =IF(AND($A165>#REF!,$A165<(#REF!+#REF!+1)),#REF!/#REF!,0) ->  | P165: =IF(AND($A165>#REF!,$A165<(#REF!+#REF!+1)),#REF!/#REF!,0) ->  | Q165: =-SUMIF(#REF!,A165,#REF!)/#REF! -> 
A166: 163 | B166: =VLOOKUP(A166,#REF!,3)/12 ->  | C166: =-#REF!/12 ->  | D166: =-IF($A166>#REF!,0,(#REF!*(1+#REF!)^(INT((A166-1)/12)))/12) ->  | F166: =-#REF!/12 ->  | G166: =-IF($A166>#REF!,0,(#REF!*(1+#REF!)^(INT(($A166-1)/12)))/12) ->  | I166: =IF(AND(A166>#REF!,A166<(#REF!+#REF!+1)),#REF!/#REF!,0) ->  | J166: =IF(AND($A166>#REF!,$A166<(#REF!+#REF!+1)),#REF!/#REF!,0) ->  | K166: =IF(AND($A166>#REF!,$A166<(#REF!+#REF!+1)),#REF!/#REF!,0) ->  | L166: =IF(AND($A166>#REF!,$A166<(#REF!+#REF!+1)),#REF!/#REF!,0) ->  | M166: =IF(AND($A166>#REF!,$A166<(#REF!+#REF!+1)),#REF!/#REF!,0) ->  | N166: =IF(AND($A166>#REF!,$A166<(#REF!+#REF!+1)),#REF!/#REF!,0) ->  | O166: =IF(AND($A166>#REF!,$A166<(#REF!+#REF!+1)),#REF!/#REF!,0) ->  | P166: =IF(AND($A166>#REF!,$A166<(#REF!+#REF!+1)),#REF!/#REF!,0) ->  | Q166: =-SUMIF(#REF!,A166,#REF!)/#REF! -> 
A167: 164 | B167: =VLOOKUP(A167,#REF!,3)/12 ->  | C167: =-#REF!/12 ->  | D167: =-IF($A167>#REF!,0,(#REF!*(1+#REF!)^(INT((A167-1)/12)))/12) ->  | F167: =-#REF!/12 ->  | G167: =-IF($A167>#REF!,0,(#REF!*(1+#REF!)^(INT(($A167-1)/12)))/12) ->  | I167: =IF(AND(A167>#REF!,A167<(#REF!+#REF!+1)),#REF!/#REF!,0) ->  | J167: =IF(AND($A167>#REF!,$A167<(#REF!+#REF!+1)),#REF!/#REF!,0) ->  | K167: =IF(AND($A167>#REF!,$A167<(#REF!+#REF!+1)),#REF!/#REF!,0) ->  | L167: =IF(AND($A167>#REF!,$A167<(#REF!+#REF!+1)),#REF!/#REF!,0) ->  | M167: =IF(AND($A167>#REF!,$A167<(#REF!+#REF!+1)),#REF!/#REF!,0) ->  | N167: =IF(AND($A167>#REF!,$A167<(#REF!+#REF!+1)),#REF!/#REF!,0) ->  | O167: =IF(AND($A167>#REF!,$A167<(#REF!+#REF!+1)),#REF!/#REF!,0) ->  | P167: =IF(AND($A167>#REF!,$A167<(#REF!+#REF!+1)),#REF!/#REF!,0) ->  | Q167: =-SUMIF(#REF!,A167,#REF!)/#REF! -> 
A168: 165 | B168: =VLOOKUP(A168,#REF!,3)/12 ->  | C168: =-#REF!/12 ->  | D168: =-IF($A168>#REF!,0,(#REF!*(1+#REF!)^(INT((A168-1)/12)))/12) ->  | F168: =-#REF!/12 ->  | G168: =-IF($A168>#REF!,0,(#REF!*(1+#REF!)^(INT(($A168-1)/12)))/12) ->  | I168: =IF(AND(A168>#REF!,A168<(#REF!+#REF!+1)),#REF!/#REF!,0) ->  | J168: =IF(AND($A168>#REF!,$A168<(#REF!+#REF!+1)),#REF!/#REF!,0) ->  | K168: =IF(AND($A168>#REF!,$A168<(#REF!+#REF!+1)),#REF!/#REF!,0) ->  | L168: =IF(AND($A168>#REF!,$A168<(#REF!+#REF!+1)),#REF!/#REF!,0) ->  | M168: =IF(AND($A168>#REF!,$A168<(#REF!+#REF!+1)),#REF!/#REF!,0) ->  | N168: =IF(AND($A168>#REF!,$A168<(#REF!+#REF!+1)),#REF!/#REF!,0) ->  | O168: =IF(AND($A168>#REF!,$A168<(#REF!+#REF!+1)),#REF!/#REF!,0) ->  | P168: =IF(AND($A168>#REF!,$A168<(#REF!+#REF!+1)),#REF!/#REF!,0) ->  | Q168: =-SUMIF(#REF!,A168,#REF!)/#REF! -> 
A169: 166 | B169: =VLOOKUP(A169,#REF!,3)/12 ->  | C169: =-#REF!/12 ->  | D169: =-IF($A169>#REF!,0,(#REF!*(1+#REF!)^(INT((A169-1)/12)))/12) ->  | F169: =-#REF!/12 ->  | G169: =-IF($A169>#REF!,0,(#REF!*(1+#REF!)^(INT(($A169-1)/12)))/12) ->  | I169: =IF(AND(A169>#REF!,A169<(#REF!+#REF!+1)),#REF!/#REF!,0) ->  | J169: =IF(AND($A169>#REF!,$A169<(#REF!+#REF!+1)),#REF!/#REF!,0) ->  | K169: =IF(AND($A169>#REF!,$A169<(#REF!+#REF!+1)),#REF!/#REF!,0) ->  | L169: =IF(AND($A169>#REF!,$A169<(#REF!+#REF!+1)),#REF!/#REF!,0) ->  | M169: =IF(AND($A169>#REF!,$A169<(#REF!+#REF!+1)),#REF!/#REF!,0) ->  | N169: =IF(AND($A169>#REF!,$A169<(#REF!+#REF!+1)),#REF!/#REF!,0) ->  | O169: =IF(AND($A169>#REF!,$A169<(#REF!+#REF!+1)),#REF!/#REF!,0) ->  | P169: =IF(AND($A169>#REF!,$A169<(#REF!+#REF!+1)),#REF!/#REF!,0) ->  | Q169: =-SUMIF(#REF!,A169,#REF!)/#REF! -> 
A170: 167 | B170: =VLOOKUP(A170,#REF!,3)/12 ->  | C170: =-#REF!/12 ->  | D170: =-IF($A170>#REF!,0,(#REF!*(1+#REF!)^(INT((A170-1)/12)))/12) ->  | F170: =-#REF!/12 ->  | G170: =-IF($A170>#REF!,0,(#REF!*(1+#REF!)^(INT(($A170-1)/12)))/12) ->  | I170: =IF(AND(A170>#REF!,A170<(#REF!+#REF!+1)),#REF!/#REF!,0) ->  | J170: =IF(AND($A170>#REF!,$A170<(#REF!+#REF!+1)),#REF!/#REF!,0) ->  | K170: =IF(AND($A170>#REF!,$A170<(#REF!+#REF!+1)),#REF!/#REF!,0) ->  | L170: =IF(AND($A170>#REF!,$A170<(#REF!+#REF!+1)),#REF!/#REF!,0) ->  | M170: =IF(AND($A170>#REF!,$A170<(#REF!+#REF!+1)),#REF!/#REF!,0) ->  | N170: =IF(AND($A170>#REF!,$A170<(#REF!+#REF!+1)),#REF!/#REF!,0) ->  | O170: =IF(AND($A170>#REF!,$A170<(#REF!+#REF!+1)),#REF!/#REF!,0) ->  | P170: =IF(AND($A170>#REF!,$A170<(#REF!+#REF!+1)),#REF!/#REF!,0) ->  | Q170: =-SUMIF(#REF!,A170,#REF!)/#REF! -> 
A171: 168 | B171: =VLOOKUP(A171,#REF!,3)/12 ->  | C171: =-#REF!/12 ->  | D171: =-IF($A171>#REF!,0,(#REF!*(1+#REF!)^(INT((A171-1)/12)))/12) ->  | F171: =-#REF!/12 ->  | G171: =-IF($A171>#REF!,0,(#REF!*(1+#REF!)^(INT(($A171-1)/12)))/12) ->  | I171: =IF(AND(A171>#REF!,A171<(#REF!+#REF!+1)),#REF!/#REF!,0) ->  | J171: =IF(AND($A171>#REF!,$A171<(#REF!+#REF!+1)),#REF!/#REF!,0) ->  | K171: =IF(AND($A171>#REF!,$A171<(#REF!+#REF!+1)),#REF!/#REF!,0) ->  | L171: =IF(AND($A171>#REF!,$A171<(#REF!+#REF!+1)),#REF!/#REF!,0) ->  | M171: =IF(AND($A171>#REF!,$A171<(#REF!+#REF!+1)),#REF!/#REF!,0) ->  | N171: =IF(AND($A171>#REF!,$A171<(#REF!+#REF!+1)),#REF!/#REF!,0) ->  | O171: =IF(AND($A171>#REF!,$A171<(#REF!+#REF!+1)),#REF!/#REF!,0) ->  | P171: =IF(AND($A171>#REF!,$A171<(#REF!+#REF!+1)),#REF!/#REF!,0) ->  | Q171: =-SUMIF(#REF!,A171,#REF!)/#REF! -> 
A172: 169 | B172: =VLOOKUP(A172,#REF!,3)/12 ->  | C172: =-#REF!/12 ->  | D172: =-IF($A172>#REF!,0,(#REF!*(1+#REF!)^(INT((A172-1)/12)))/12) ->  | F172: =-#REF!/12 ->  | G172: =-IF($A172>#REF!,0,(#REF!*(1+#REF!)^(INT(($A172-1)/12)))/12) ->  | I172: =IF(AND(A172>#REF!,A172<(#REF!+#REF!+1)),#REF!/#REF!,0) ->  | J172: =IF(AND($A172>#REF!,$A172<(#REF!+#REF!+1)),#REF!/#REF!,0) ->  | K172: =IF(AND($A172>#REF!,$A172<(#REF!+#REF!+1)),#REF!/#REF!,0) ->  | L172: =IF(AND($A172>#REF!,$A172<(#REF!+#REF!+1)),#REF!/#REF!,0) ->  | M172: =IF(AND($A172>#REF!,$A172<(#REF!+#REF!+1)),#REF!/#REF!,0) ->  | N172: =IF(AND($A172>#REF!,$A172<(#REF!+#REF!+1)),#REF!/#REF!,0) ->  | O172: =IF(AND($A172>#REF!,$A172<(#REF!+#REF!+1)),#REF!/#REF!,0) ->  | P172: =IF(AND($A172>#REF!,$A172<(#REF!+#REF!+1)),#REF!/#REF!,0) ->  | Q172: =-SUMIF(#REF!,A172,#REF!)/#REF! -> 
A173: 170 | B173: =VLOOKUP(A173,#REF!,3)/12 ->  | C173: =-#REF!/12 ->  | D173: =-IF($A173>#REF!,0,(#REF!*(1+#REF!)^(INT((A173-1)/12)))/12) ->  | F173: =-#REF!/12 ->  | G173: =-IF($A173>#REF!,0,(#REF!*(1+#REF!)^(INT(($A173-1)/12)))/12) ->  | I173: =IF(AND(A173>#REF!,A173<(#REF!+#REF!+1)),#REF!/#REF!,0) ->  | J173: =IF(AND($A173>#REF!,$A173<(#REF!+#REF!+1)),#REF!/#REF!,0) ->  | K173: =IF(AND($A173>#REF!,$A173<(#REF!+#REF!+1)),#REF!/#REF!,0) ->  | L173: =IF(AND($A173>#REF!,$A173<(#REF!+#REF!+1)),#REF!/#REF!,0) ->  | M173: =IF(AND($A173>#REF!,$A173<(#REF!+#REF!+1)),#REF!/#REF!,0) ->  | N173: =IF(AND($A173>#REF!,$A173<(#REF!+#REF!+1)),#REF!/#REF!,0) ->  | O173: =IF(AND($A173>#REF!,$A173<(#REF!+#REF!+1)),#REF!/#REF!,0) ->  | P173: =IF(AND($A173>#REF!,$A173<(#REF!+#REF!+1)),#REF!/#REF!,0) ->  | Q173: =-SUMIF(#REF!,A173,#REF!)/#REF! -> 
A174: 171 | B174: =VLOOKUP(A174,#REF!,3)/12 ->  | C174: =-#REF!/12 ->  | D174: =-IF($A174>#REF!,0,(#REF!*(1+#REF!)^(INT((A174-1)/12)))/12) ->  | F174: =-#REF!/12 ->  | G174: =-IF($A174>#REF!,0,(#REF!*(1+#REF!)^(INT(($A174-1)/12)))/12) ->  | I174: =IF(AND(A174>#REF!,A174<(#REF!+#REF!+1)),#REF!/#REF!,0) ->  | J174: =IF(AND($A174>#REF!,$A174<(#REF!+#REF!+1)),#REF!/#REF!,0) ->  | K174: =IF(AND($A174>#REF!,$A174<(#REF!+#REF!+1)),#REF!/#REF!,0) ->  | L174: =IF(AND($A174>#REF!,$A174<(#REF!+#REF!+1)),#REF!/#REF!,0) ->  | M174: =IF(AND($A174>#REF!,$A174<(#REF!+#REF!+1)),#REF!/#REF!,0) ->  | N174: =IF(AND($A174>#REF!,$A174<(#REF!+#REF!+1)),#REF!/#REF!,0) ->  | O174: =IF(AND($A174>#REF!,$A174<(#REF!+#REF!+1)),#REF!/#REF!,0) ->  | P174: =IF(AND($A174>#REF!,$A174<(#REF!+#REF!+1)),#REF!/#REF!,0) ->  | Q174: =-SUMIF(#REF!,A174,#REF!)/#REF! -> 
A175: 172 | B175: =VLOOKUP(A175,#REF!,3)/12 ->  | C175: =-#REF!/12 ->  | D175: =-IF($A175>#REF!,0,(#REF!*(1+#REF!)^(INT((A175-1)/12)))/12) ->  | F175: =-#REF!/12 ->  | G175: =-IF($A175>#REF!,0,(#REF!*(1+#REF!)^(INT(($A175-1)/12)))/12) ->  | I175: =IF(AND(A175>#REF!,A175<(#REF!+#REF!+1)),#REF!/#REF!,0) ->  | J175: =IF(AND($A175>#REF!,$A175<(#REF!+#REF!+1)),#REF!/#REF!,0) ->  | K175: =IF(AND($A175>#REF!,$A175<(#REF!+#REF!+1)),#REF!/#REF!,0) ->  | L175: =IF(AND($A175>#REF!,$A175<(#REF!+#REF!+1)),#REF!/#REF!,0) ->  | M175: =IF(AND($A175>#REF!,$A175<(#REF!+#REF!+1)),#REF!/#REF!,0) ->  | N175: =IF(AND($A175>#REF!,$A175<(#REF!+#REF!+1)),#REF!/#REF!,0) ->  | O175: =IF(AND($A175>#REF!,$A175<(#REF!+#REF!+1)),#REF!/#REF!,0) ->  | P175: =IF(AND($A175>#REF!,$A175<(#REF!+#REF!+1)),#REF!/#REF!,0) ->  | Q175: =-SUMIF(#REF!,A175,#REF!)/#REF! -> 
A176: 173 | B176: =VLOOKUP(A176,#REF!,3)/12 ->  | C176: =-#REF!/12 ->  | D176: =-IF($A176>#REF!,0,(#REF!*(1+#REF!)^(INT((A176-1)/12)))/12) ->  | F176: =-#REF!/12 ->  | G176: =-IF($A176>#REF!,0,(#REF!*(1+#REF!)^(INT(($A176-1)/12)))/12) ->  | I176: =IF(AND(A176>#REF!,A176<(#REF!+#REF!+1)),#REF!/#REF!,0) ->  | J176: =IF(AND($A176>#REF!,$A176<(#REF!+#REF!+1)),#REF!/#REF!,0) ->  | K176: =IF(AND($A176>#REF!,$A176<(#REF!+#REF!+1)),#REF!/#REF!,0) ->  | L176: =IF(AND($A176>#REF!,$A176<(#REF!+#REF!+1)),#REF!/#REF!,0) ->  | M176: =IF(AND($A176>#REF!,$A176<(#REF!+#REF!+1)),#REF!/#REF!,0) ->  | N176: =IF(AND($A176>#REF!,$A176<(#REF!+#REF!+1)),#REF!/#REF!,0) ->  | O176: =IF(AND($A176>#REF!,$A176<(#REF!+#REF!+1)),#REF!/#REF!,0) ->  | P176: =IF(AND($A176>#REF!,$A176<(#REF!+#REF!+1)),#REF!/#REF!,0) ->  | Q176: =-SUMIF(#REF!,A176,#REF!)/#REF! -> 
A177: 174 | B177: =VLOOKUP(A177,#REF!,3)/12 ->  | C177: =-#REF!/12 ->  | D177: =-IF($A177>#REF!,0,(#REF!*(1+#REF!)^(INT((A177-1)/12)))/12) ->  | F177: =-#REF!/12 ->  | G177: =-IF($A177>#REF!,0,(#REF!*(1+#REF!)^(INT(($A177-1)/12)))/12) ->  | I177: =IF(AND(A177>#REF!,A177<(#REF!+#REF!+1)),#REF!/#REF!,0) ->  | J177: =IF(AND($A177>#REF!,$A177<(#REF!+#REF!+1)),#REF!/#REF!,0) ->  | K177: =IF(AND($A177>#REF!,$A177<(#REF!+#REF!+1)),#REF!/#REF!,0) ->  | L177: =IF(AND($A177>#REF!,$A177<(#REF!+#REF!+1)),#REF!/#REF!,0) ->  | M177: =IF(AND($A177>#REF!,$A177<(#REF!+#REF!+1)),#REF!/#REF!,0) ->  | N177: =IF(AND($A177>#REF!,$A177<(#REF!+#REF!+1)),#REF!/#REF!,0) ->  | O177: =IF(AND($A177>#REF!,$A177<(#REF!+#REF!+1)),#REF!/#REF!,0) ->  | P177: =IF(AND($A177>#REF!,$A177<(#REF!+#REF!+1)),#REF!/#REF!,0) ->  | Q177: =-SUMIF(#REF!,A177,#REF!)/#REF! -> 
A178: 175 | B178: =VLOOKUP(A178,#REF!,3)/12 ->  | C178: =-#REF!/12 ->  | D178: =-IF($A178>#REF!,0,(#REF!*(1+#REF!)^(INT((A178-1)/12)))/12) ->  | F178: =-#REF!/12 ->  | G178: =-IF($A178>#REF!,0,(#REF!*(1+#REF!)^(INT(($A178-1)/12)))/12) ->  | I178: =IF(AND(A178>#REF!,A178<(#REF!+#REF!+1)),#REF!/#REF!,0) ->  | J178: =IF(AND($A178>#REF!,$A178<(#REF!+#REF!+1)),#REF!/#REF!,0) ->  | K178: =IF(AND($A178>#REF!,$A178<(#REF!+#REF!+1)),#REF!/#REF!,0) ->  | L178: =IF(AND($A178>#REF!,$A178<(#REF!+#REF!+1)),#REF!/#REF!,0) ->  | M178: =IF(AND($A178>#REF!,$A178<(#REF!+#REF!+1)),#REF!/#REF!,0) ->  | N178: =IF(AND($A178>#REF!,$A178<(#REF!+#REF!+1)),#REF!/#REF!,0) ->  | O178: =IF(AND($A178>#REF!,$A178<(#REF!+#REF!+1)),#REF!/#REF!,0) ->  | P178: =IF(AND($A178>#REF!,$A178<(#REF!+#REF!+1)),#REF!/#REF!,0) ->  | Q178: =-SUMIF(#REF!,A178,#REF!)/#REF! -> 
A179: 176 | B179: =VLOOKUP(A179,#REF!,3)/12 ->  | C179: =-#REF!/12 ->  | D179: =-IF($A179>#REF!,0,(#REF!*(1+#REF!)^(INT((A179-1)/12)))/12) ->  | F179: =-#REF!/12 ->  | G179: =-IF($A179>#REF!,0,(#REF!*(1+#REF!)^(INT(($A179-1)/12)))/12) ->  | I179: =IF(AND(A179>#REF!,A179<(#REF!+#REF!+1)),#REF!/#REF!,0) ->  | J179: =IF(AND($A179>#REF!,$A179<(#REF!+#REF!+1)),#REF!/#REF!,0) ->  | K179: =IF(AND($A179>#REF!,$A179<(#REF!+#REF!+1)),#REF!/#REF!,0) ->  | L179: =IF(AND($A179>#REF!,$A179<(#REF!+#REF!+1)),#REF!/#REF!,0) ->  | M179: =IF(AND($A179>#REF!,$A179<(#REF!+#REF!+1)),#REF!/#REF!,0) ->  | N179: =IF(AND($A179>#REF!,$A179<(#REF!+#REF!+1)),#REF!/#REF!,0) ->  | O179: =IF(AND($A179>#REF!,$A179<(#REF!+#REF!+1)),#REF!/#REF!,0) ->  | P179: =IF(AND($A179>#REF!,$A179<(#REF!+#REF!+1)),#REF!/#REF!,0) ->  | Q179: =-SUMIF(#REF!,A179,#REF!)/#REF! -> 
A180: 177 | B180: =VLOOKUP(A180,#REF!,3)/12 ->  | C180: =-#REF!/12 ->  | D180: =-IF($A180>#REF!,0,(#REF!*(1+#REF!)^(INT((A180-1)/12)))/12) ->  | F180: =-#REF!/12 ->  | G180: =-IF($A180>#REF!,0,(#REF!*(1+#REF!)^(INT(($A180-1)/12)))/12) ->  | I180: =IF(AND(A180>#REF!,A180<(#REF!+#REF!+1)),#REF!/#REF!,0) ->  | J180: =IF(AND($A180>#REF!,$A180<(#REF!+#REF!+1)),#REF!/#REF!,0) ->  | K180: =IF(AND($A180>#REF!,$A180<(#REF!+#REF!+1)),#REF!/#REF!,0) ->  | L180: =IF(AND($A180>#REF!,$A180<(#REF!+#REF!+1)),#REF!/#REF!,0) ->  | M180: =IF(AND($A180>#REF!,$A180<(#REF!+#REF!+1)),#REF!/#REF!,0) ->  | N180: =IF(AND($A180>#REF!,$A180<(#REF!+#REF!+1)),#REF!/#REF!,0) ->  | O180: =IF(AND($A180>#REF!,$A180<(#REF!+#REF!+1)),#REF!/#REF!,0) ->  | P180: =IF(AND($A180>#REF!,$A180<(#REF!+#REF!+1)),#REF!/#REF!,0) ->  | Q180: =-SUMIF(#REF!,A180,#REF!)/#REF! -> 
A181: 178 | B181: =VLOOKUP(A181,#REF!,3)/12 ->  | C181: =-#REF!/12 ->  | D181: =-IF($A181>#REF!,0,(#REF!*(1+#REF!)^(INT((A181-1)/12)))/12) ->  | F181: =-#REF!/12 ->  | G181: =-IF($A181>#REF!,0,(#REF!*(1+#REF!)^(INT(($A181-1)/12)))/12) ->  | I181: =IF(AND(A181>#REF!,A181<(#REF!+#REF!+1)),#REF!/#REF!,0) ->  | J181: =IF(AND($A181>#REF!,$A181<(#REF!+#REF!+1)),#REF!/#REF!,0) ->  | K181: =IF(AND($A181>#REF!,$A181<(#REF!+#REF!+1)),#REF!/#REF!,0) ->  | L181: =IF(AND($A181>#REF!,$A181<(#REF!+#REF!+1)),#REF!/#REF!,0) ->  | M181: =IF(AND($A181>#REF!,$A181<(#REF!+#REF!+1)),#REF!/#REF!,0) ->  | N181: =IF(AND($A181>#REF!,$A181<(#REF!+#REF!+1)),#REF!/#REF!,0) ->  | O181: =IF(AND($A181>#REF!,$A181<(#REF!+#REF!+1)),#REF!/#REF!,0) ->  | P181: =IF(AND($A181>#REF!,$A181<(#REF!+#REF!+1)),#REF!/#REF!,0) ->  | Q181: =-SUMIF(#REF!,A181,#REF!)/#REF! -> 
A182: 179 | B182: =VLOOKUP(A182,#REF!,3)/12 ->  | C182: =-#REF!/12 ->  | D182: =-IF($A182>#REF!,0,(#REF!*(1+#REF!)^(INT((A182-1)/12)))/12) ->  | F182: =-#REF!/12 ->  | G182: =-IF($A182>#REF!,0,(#REF!*(1+#REF!)^(INT(($A182-1)/12)))/12) ->  | I182: =IF(AND(A182>#REF!,A182<(#REF!+#REF!+1)),#REF!/#REF!,0) ->  | J182: =IF(AND($A182>#REF!,$A182<(#REF!+#REF!+1)),#REF!/#REF!,0) ->  | K182: =IF(AND($A182>#REF!,$A182<(#REF!+#REF!+1)),#REF!/#REF!,0) ->  | L182: =IF(AND($A182>#REF!,$A182<(#REF!+#REF!+1)),#REF!/#REF!,0) ->  | M182: =IF(AND($A182>#REF!,$A182<(#REF!+#REF!+1)),#REF!/#REF!,0) ->  | N182: =IF(AND($A182>#REF!,$A182<(#REF!+#REF!+1)),#REF!/#REF!,0) ->  | O182: =IF(AND($A182>#REF!,$A182<(#REF!+#REF!+1)),#REF!/#REF!,0) ->  | P182: =IF(AND($A182>#REF!,$A182<(#REF!+#REF!+1)),#REF!/#REF!,0) ->  | Q182: =-SUMIF(#REF!,A182,#REF!)/#REF! -> 
A183: 180 | B183: =VLOOKUP(A183,#REF!,3)/12 ->  | C183: =-#REF!/12 ->  | D183: =-IF($A183>#REF!,0,(#REF!*(1+#REF!)^(INT((A183-1)/12)))/12) ->  | F183: =-#REF!/12 ->  | G183: =-IF($A183>#REF!,0,(#REF!*(1+#REF!)^(INT(($A183-1)/12)))/12) ->  | I183: =IF(AND(A183>#REF!,A183<(#REF!+#REF!+1)),#REF!/#REF!,0) ->  | J183: =IF(AND($A183>#REF!,$A183<(#REF!+#REF!+1)),#REF!/#REF!,0) ->  | K183: =IF(AND($A183>#REF!,$A183<(#REF!+#REF!+1)),#REF!/#REF!,0) ->  | L183: =IF(AND($A183>#REF!,$A183<(#REF!+#REF!+1)),#REF!/#REF!,0) ->  | M183: =IF(AND($A183>#REF!,$A183<(#REF!+#REF!+1)),#REF!/#REF!,0) ->  | N183: =IF(AND($A183>#REF!,$A183<(#REF!+#REF!+1)),#REF!/#REF!,0) ->  | O183: =IF(AND($A183>#REF!,$A183<(#REF!+#REF!+1)),#REF!/#REF!,0) ->  | P183: =IF(AND($A183>#REF!,$A183<(#REF!+#REF!+1)),#REF!/#REF!,0) ->  | Q183: =-SUMIF(#REF!,A183,#REF!)/#REF! -> 

Sheet Alt Retail Comp Grid 2
A1: Retail Comparison Grid
A2: Enter data in the yellow cells only.
B4: Subject | C4: Comparable 1 | E4: Comparable 2 | G4: Comparable 3
A5: Property Name
A6: Base rental rate
A7: - Concessions
A8: + Exp. pass-through
A9: + Tenant-paid improv.
A10: = Effective rent | C10: =SUM(C6,-C7,C8,C9) -> 0 | E10: =SUM(E6,-E7,E8,E9) -> 0 | G10: =SUM(G6,-G7,G8,G9) -> 0
A12: Categories | B12: Description | C12: Description | D12: +\- Adj | E12: Description | F12: +\- Adj | G12: Description | H12: +\- Adj
A13: Anchor draw
A14: Tenant mix synergy
A15: Parking
A16: Street visibility
A17: Drive-by traffic
A18: Vacancy rate
A19: Ingress/egress
A20: Signage
A21: Overall appearance
A22: Proximity to transit
A23: Amenities/features
A35: Total rent adjustments | C35: =SUM(D13:D33) -> 0 | E35: =SUM(F13:F33) -> 0 | G35: =SUM(H13:H33) -> 0
A36: Adjusted effective rent | C36: =SUM(C10,C35) -> 0 | E36: =SUM(E10,E35) -> 0 | G36: =SUM(G10,G35) -> 0
A37: Average adjusted effective rent | B37: =IF(AND(C36>0,E36>0,G36>0),AVERAGE(C36:H36),IF(AND(C36>0,E36>0,G36<=0),AVERAGE(C36:F36),IF(AND(C36>0,E36<=0,G36<=0),C36,IF(AND(C36<=0,E36<=0,H36<=0),0)))) -> 0
A38: All figures are per annual rentable square foot.

Sheet As-Is BTCF T Bars
A1: As Is Before-Tax Cash Flow T-Bars
A2: This tab automatically calculates figures based on data entered in other tabs.
D4: Final Cash Flow | E4: NSP
B5: 2 Year T-BAR
B6: N | C6: $
B7: Current Equity | C7: =-'As-Is Before-Tax Cash Flow'!$B$29 -> 0
B8: BTCF Year 1 | C8: =+'As-Is Before-Tax Cash Flow'!$F$9 -> -1.00500875e-09
B9: BTCF Year 2 + NSP | C9: =SUM(D9,E9) -> -1.00500875e-09 | D9: =+'As-Is Before-Tax Cash Flow'!$G$9 -> -1.00500875e-09 | E9: =+'As-Is Before-Tax Cash Flow'!G17 -> -
B12: 3 Year T-BAR
B13: N | C13: $
B14: Current Equity | C14: =-'As-Is Before-Tax Cash Flow'!$B$29 -> 0
B15: BTCF Year 1 | C15: =+'As-Is Before-Tax Cash Flow'!$F$9 -> -1.00500875e-09
B16: BTCF Year 2 | C16: =+'As-Is Before-Tax Cash Flow'!$G$9 -> -1.00500875e-09
B17: BTCF Year 3 + NSP | C17: =SUM(D17,E17) -> -1.00500875e-09 | D17: =+'As-Is Before-Tax Cash Flow'!$H$9 -> -1.00500875e-09 | E17: =+'As-Is Before-Tax Cash Flow'!H17 -> -
B20: 4 Year T-BAR
B21: N | C21: $
B22: Current Equity | C22: =-'As-Is Before-Tax Cash Flow'!$B$29 -> 0
B23: BTCF Year 1 | C23: =+'As-Is Before-Tax Cash Flow'!$F$9 -> -1.00500875e-09
B24: BTCF Year 2 | C24: =+'As-Is Before-Tax Cash Flow'!$G$9 -> -1.00500875e-09
B25: BTCF Year 3 | C25: =+'As-Is Before-Tax Cash Flow'!$H$9 -> -1.00500875e-09
B26: BTCF Year 4 + NSP | C26: =SUM(D26,E26) -> -1.00500875e-09 | D26: =+'As-Is Before-Tax Cash Flow'!$I$9 -> -1.00500875e-09 | E26: =+'As-Is Before-Tax Cash Flow'!I17 -> -
B29: 5 Year T-BAR
B30: N | C30: $
B31: Current Equity | C31: =-'As-Is Before-Tax Cash Flow'!$B$29 -> 0
B32: BTCF Year 1 | C32: =+'As-Is Before-Tax Cash Flow'!$F$9 -> -1.00500875e-09
B33: BTCF Year 2 | C33: =+'As-Is Before-Tax Cash Flow'!$G$9 -> -1.00500875e-09
B34: BTCF Year 3 | C34: =+'As-Is Before-Tax Cash Flow'!$H$9 -> -1.00500875e-09
B35: BTCF Year 4 | C35: =+'As-Is Before-Tax Cash Flow'!$I$9 -> -1.00500875e-09
B36: BTCF Year 5 + NSP | C36: =SUM(D36,E36) -> -1.00500875e-09 | D36: =+'As-Is Before-Tax Cash Flow'!$J$9 -> -1.00500875e-09 | E36: =+'As-Is Before-Tax Cash Flow'!J17 -> -

Sheet As-Is Loan Amortization
A1: As Is Loan Amortization
A2: This tab automatically calculates figures based on data entered in other tabs.
A4: Loan Amount | C4: =IF('As-Is Owner Goals'!C4<=0,0.000001,+'As-Is Before-Tax Cash Flow'!C4) -> 1e-06
A5: Loan Interest Rate | C5: =IF('As-Is Owner Goals'!C5<=0,0.00001,+'As-Is Owner Goals'!C5) -> 1e-05 | D5: Number of Months | E5: =+C6*12 -> 12000
A6: Loan Amortization Period | C6: =IF('As-Is Owner Goals'!C7<=0,1000,+'As-Is Owner Goals'!C7) -> 1000 | D6: Rate per Month | E6: =IF('As-Is Owner Goals'!C14="Monthly",C5/12,((1+C5/2)^(2/12)-1)) -> 8.333333333e-07
A8: =IF(A10<=0,1,+A10-1) -> 0 | B8: =PMT($E$6,$E$5,$C$4,0,0) -> -8.375072917e-11 | C8: =IF(A8<=1,0,PPMT($E$6,$A8,$E$5,$C$4)) -> 0 | D8: =IF(A8<=1,0,IPMT($E$6,$A8,$E$5,$C$4)) -> 0 | F8: =IF(OR(SUM($E$5-$A10)=0,SUM($E$5-$A10)>0),-FV($E$6,$A8,$B8,$C$4,0),0) -> 1e-06
A9: Period | B9: Payment | C9: Principal Payment | D9: Interest Payment | F9: Loan Balance
A10: =IF(+'As-Is Before-Tax Cash Flow'!C7<=0,1,'As-Is Before-Tax Cash Flow'!C7) -> 1 | B10: =IF(E6=0,"-",IF(E5=0,"-",IF(C4=0,"-",PMT($E$6,$E$5,$C$4,0,0)))) -> -8.375072917e-11 | C10: =IF(OR(SUM($E$5-$A10)=0,SUM($E$5-$A10)>0),PPMT($E$6,$A10,$E$5,$C$4),0) -> -8.291739583e-11 | D10: =IF(OR(SUM($E$5-$A10)=0,SUM($E$5-$A10)>0),IPMT($E$6,$A10,$E$5,$C$4),0) -> -8.333333333e-13 | F10: =IF(OR(SUM($E$5-$A10)=0,SUM($E$5-$A10)>0),-FV($E$6,$A10,$B10,$C$4,0),0) -> 9.999170826e-07
A11: =+A10+1 -> 2 | B11: =PMT($E$6,$E$5,$C$4,0,0) -> -8.375072917e-11 | C11: -8.291746493e-11 | D11: -8.332642355e-13 | F11: 9.998341651e-07
A12: 3 | B12: -8.375072917e-11 | C12: -8.291753403e-11 | D12: -8.331951376e-13 | F12: 9.997512476e-07
A13: 4 | B13: -8.375072917e-11 | C13: -8.291760313e-11 | D13: -8.331260397e-13 | F13: 9.9966833e-07
A14: 5 | B14: -8.375072917e-11 | C14: -8.291767222e-11 | D14: -8.330569417e-13 | F14: 9.995854123e-07
A15: 6 | B15: -8.375072917e-11 | C15: -8.291774132e-11 | D15: -8.329878436e-13 | F15: 9.995024946e-07
A16: 7 | B16: -8.375072917e-11 | C16: -8.291781042e-11 | D16: -8.329187455e-13 | F16: 9.994195768e-07
A17: 8 | B17: -8.375072917e-11 | C17: -8.291787952e-11 | D17: -8.328496473e-13 | F17: 9.993366589e-07
A18: 9 | B18: -8.375072917e-11 | C18: -8.291794862e-11 | D18: -8.327805491e-13 | F18: 9.99253741e-07
A19: 10 | B19: -8.375072917e-11 | C19: -8.291801771e-11 | D19: -8.327114508e-13 | F19: 9.991708229e-07
A20: 11 | B20: -8.375072917e-11 | C20: -8.291808681e-11 | D20: -8.326423524e-13 | F20: 9.990879048e-07
A21: 12 | B21: -8.375072917e-11 | C21: -8.291815591e-11 | D21: -8.32573254e-13 | F21: 9.990049867e-07
B22: Period Total 1 | C22: =SUM(C10:C21) -> -9.950133105e-10 | D22: =SUM(D10:D21) -> -9.995439531e-12 | E22: Year of Ownership | F22: =+A21/12 -> 1
A23: =+A21+1 -> 13 | B23: =PMT($E$6,$E$5,$C$4,0,0) -> -8.375072917e-11 | C23: =IF(OR(SUM($E$5-$A23)=0,SUM($E$5-$A23)>0),PPMT($E$6,$A23,$E$5,$C$4),0) -> -8.291822501e-11 | D23: =IF(OR(SUM($E$5-$A23)=0,SUM($E$5-$A23)>0),IPMT($E$6,$A23,$E$5,$C$4),0) -> -8.325041556e-13 | F23: =IF(OR(SUM($E$5-$A23)=0,SUM($E$5-$A23)>0),-FV($E$6,$A23,$B23,$C$4,0),0) -> 9.989220685e-07
A24: =+A23+1 -> 14 | B24: -8.375072917e-11 | C24: -8.291829411e-11 | D24: -8.324350571e-13 | F24: 9.988391502e-07
A25: 15 | B25: -8.375072917e-11 | C25: -8.291836321e-11 | D25: -8.323659585e-13 | F25: 9.987562318e-07
A26: 16 | B26: -8.375072917e-11 | C26: -8.291843231e-11 | D26: -8.322968598e-13 | F26: 9.986733134e-07
A27: 17 | B27: -8.375072917e-11 | C27: -8.29185014e-11 | D27: -8.322277611e-13 | F27: 9.985903949e-07
A28: 18 | B28: -8.375072917e-11 | C28: -8.29185705e-11 | D28: -8.321586624e-13 | F28: 9.985074763e-07
A29: 19 | B29: -8.375072917e-11 | C29: -8.29186396e-11 | D29: -8.320895636e-13 | F29: 9.984245577e-07
A30: 20 | B30: -8.375072917e-11 | C30: -8.29187087e-11 | D30: -8.320204647e-13 | F30: 9.98341639e-07
A31: 21 | B31: -8.375072917e-11 | C31: -8.29187778e-11 | D31: -8.319513658e-13 | F31: 9.982587202e-07
A32: 22 | B32: -8.375072917e-11 | C32: -8.29188469e-11 | D32: -8.318822668e-13 | F32: 9.981758013e-07
A33: 23 | B33: -8.375072917e-11 | C33: -8.2918916e-11 | D33: -8.318131678e-13 | F33: 9.980928824e-07
A34: 24 | B34: -8.375072917e-11 | C34: -8.29189851e-11 | D34: -8.317440687e-13 | F34: 9.980099634e-07
B35: Period Total 2 | C35: =SUM(C23:C34) -> -9.950232606e-10 | D35: =SUM(D23:D34) -> -9.985489352e-12 | E35: Year of Ownership | F35: =+A34/12 -> 2
A36: =+A34+1 -> 25 | B36: =PMT($E$6,$E$5,$C$4,0,0) -> -8.375072917e-11 | C36: =IF(OR(SUM($E$5-$A36)=0,SUM($E$5-$A36)>0),PPMT($E$6,$A36,$E$5,$C$4),0) -> -8.29190542e-11 | D36: =IF(OR(SUM($E$5-$A36)=0,SUM($E$5-$A36)>0),IPMT($E$6,$A36,$E$5,$C$4),0) -> -8.316749695e-13 | F36: =IF(OR(SUM($E$5-$A36)=0,SUM($E$5-$A36)>0),-FV($E$6,$A36,$B36,$C$4,0),0) -> 9.979270444e-07
A37: =+A36+1 -> 26 | B37: -8.375072917e-11 | C37: -8.291912329e-11 | D37: -8.316058703e-13 | F37: 9.978441253e-07
A38: 27 | B38: -8.375072917e-11 | C38: -8.291919239e-11 | D38: -8.31536771e-13 | F38: 9.977612061e-07
A39: 28 | B39: -8.375072917e-11 | C39: -8.291926149e-11 | D39: -8.314676717e-13 | F39: 9.976782868e-07
A40: 29 | B40: -8.375072917e-11 | C40: -8.291933059e-11 | D40: -8.313985723e-13 | F40: 9.975953675e-07
A41: 30 | B41: -8.375072917e-11 | C41: -8.291939969e-11 | D41: -8.313294729e-13 | F41: 9.975124481e-07
A42: 31 | B42: -8.375072917e-11 | C42: -8.291946879e-11 | D42: -8.312603734e-13 | F42: 9.974295286e-07
A43: 32 | B43: -8.375072917e-11 | C43: -8.291953789e-11 | D43: -8.311912738e-13 | F43: 9.973466091e-07
A44: 33 | B44: -8.375072917e-11 | C44: -8.291960699e-11 | D44: -8.311221742e-13 | F44: 9.972636895e-07
A45: 34 | B45: -8.375072917e-11 | C45: -8.291967609e-11 | D45: -8.310530745e-13 | F45: 9.971807698e-07
A46: 35 | B46: -8.375072917e-11 | C46: -8.291974519e-11 | D46: -8.309839748e-13 | F46: 9.9709785e-07
A47: 36 | B47: -8.375072917e-11 | C47: -8.291981429e-11 | D47: -8.30914875e-13 | F47: 9.970149302e-07
B48: Period Total 3 | C48: =SUM(C36:C47) -> -9.950332109e-10 | D48: =SUM(D36:D47) -> -9.975539074e-12 | E48: Year of Ownership | F48: =+A47/12 -> 3
A49: =+A47+1 -> 37 | B49: =PMT($E$6,$E$5,$C$4,0,0) -> -8.375072917e-11 | C49: =IF(OR(SUM($E$5-$A49)=0,SUM($E$5-$A49)>0),PPMT($E$6,$A49,$E$5,$C$4),0) -> -8.291988339e-11 | D49: =IF(OR(SUM($E$5-$A49)=0,SUM($E$5-$A49)>0),IPMT($E$6,$A49,$E$5,$C$4),0) -> -8.308457752e-13 | F49: =IF(OR(SUM($E$5-$A49)=0,SUM($E$5-$A49)>0),-FV($E$6,$A49,$B49,$C$4,0),0) -> 9.969320103e-07
A50: =+A49+1 -> 38 | B50: -8.375072917e-11 | C50: -8.291995249e-11 | D50: -8.307766753e-13 | F50: 9.968490904e-07
A51: 39 | B51: -8.375072917e-11 | C51: -8.292002159e-11 | D51: -8.307075753e-13 | F51: 9.967661704e-07
A52: 40 | B52: -8.375072917e-11 | C52: -8.292009069e-11 | D52: -8.306384753e-13 | F52: 9.966832503e-07
A53: 41 | B53: -8.375072917e-11 | C53: -8.292015979e-11 | D53: -8.305693752e-13 | F53: 9.966003301e-07
A54: 42 | B54: -8.375072917e-11 | C54: -8.292022889e-11 | D54: -8.305002751e-13 | F54: 9.965174099e-07
A55: 43 | B55: -8.375072917e-11 | C55: -8.292029799e-11 | D55: -8.304311749e-13 | F55: 9.964344896e-07
A56: 44 | B56: -8.375072917e-11 | C56: -8.292036709e-11 | D56: -8.303620747e-13 | F56: 9.963515692e-07
A57: 45 | B57: -8.375072917e-11 | C57: -8.292043619e-11 | D57: -8.302929743e-13 | F57: 9.962686488e-07
A58: 46 | B58: -8.375072917e-11 | C58: -8.292050529e-11 | D58: -8.30223874e-13 | F58: 9.961857283e-07
A59: 47 | B59: -8.375072917e-11 | C59: -8.292057439e-11 | D59: -8.301547736e-13 | F59: 9.961028077e-07
A60: 48 | B60: -8.375072917e-11 | C60: -8.292064349e-11 | D60: -8.300856731e-13 | F60: 9.960198871e-07
B61: Period Total 4 | C61: =SUM(C49:C60) -> -9.950431613e-10 | D61: =SUM(D49:D60) -> -9.965588696e-12 | E61: Year of Ownership | F61: =+A60/12 -> 4
A62: =+A60+1 -> 49 | B62: =PMT($E$6,$E$5,$C$4,0,0) -> -8.375072917e-11 | C62: =IF(OR(SUM($E$5-$A62)=0,SUM($E$5-$A62)>0),PPMT($E$6,$A62,$E$5,$C$4),0) -> -8.292071259e-11 | D62: =IF(OR(SUM($E$5-$A62)=0,SUM($E$5-$A62)>0),IPMT($E$6,$A62,$E$5,$C$4),0) -> -8.300165725e-13 | F62: =IF(OR(SUM($E$5-$A62)=0,SUM($E$5-$A62)>0),-FV($E$6,$A62,$B62,$C$4,0),0) -> 9.959369663e-07
A63: =+A62+1 -> 50 | B63: -8.375072917e-11 | C63: -8.292078169e-11 | D63: -8.29947472e-13 | F63: 9.958540456e-07
A64: 51 | B64: -8.375072917e-11 | C64: -8.292085079e-11 | D64: -8.298783713e-13 | F64: 9.957711247e-07
A65: 52 | B65: -8.375072917e-11 | C65: -8.292091989e-11 | D65: -8.298092706e-13 | F65: 9.956882038e-07
A66: 53 | B66: -8.375072917e-11 | C66: -8.2920989e-11 | D66: -8.297401698e-13 | F66: 9.956052828e-07
A67: 54 | B67: -8.375072917e-11 | C67: -8.29210581e-11 | D67: -8.29671069e-13 | F67: 9.955223617e-07
A68: 55 | B68: -8.375072917e-11 | C68: -8.29211272e-11 | D68: -8.296019681e-13 | F68: 9.954394406e-07
A69: 56 | B69: -8.375072917e-11 | C69: -8.29211963e-11 | D69: -8.295328672e-13 | F69: 9.953565194e-07
A70: 57 | B70: -8.375072917e-11 | C70: -8.29212654e-11 | D70: -8.294637662e-13 | F70: 9.952735982e-07
A71: 58 | B71: -8.375072917e-11 | C71: -8.29213345e-11 | D71: -8.293946651e-13 | F71: 9.951906768e-07
A72: 59 | B72: -8.375072917e-11 | C72: -8.29214036e-11 | D72: -8.29325564e-13 | F72: 9.951077554e-07
A73: 60 | B73: -8.375072917e-11 | C73: -8.29214727e-11 | D73: -8.292564628e-13 | F73: 9.950248339e-07
B74: Period Total 5 | C74: =SUM(C62:C73) -> -9.950531118e-10 | D74: =SUM(D62:D73) -> -9.955638219e-12 | E74: Year of Ownership | F74: =+A73/12 -> 5

Sheet Alt BTCF T Bars
A1: Alternative Before-Tax Cash Flow T-Bars
A2: This tab automatically calculates figures based on data entered in other tabs.
D4: Final Cash Flow | E4: NSP
B5: 2 Year T-BAR
B6: N | C6: $
B7: Current Equity | C7: =-'Alt Before-Tax Cash Flow'!$B$29 -> 0
B8: BTCF Year 1 | C8: =+'Alt Before-Tax Cash Flow'!$F$9 -> -1.00500875e-09
B9: BTCF Year 2 + NSP | C9: =SUM(D9,E9) -> -1.00500875e-09 | D9: =+'Alt Before-Tax Cash Flow'!$G$9 -> -1.00500875e-09 | E9: =+'Alt Before-Tax Cash Flow'!G17 -> -
B12: 3 Year T-BAR
B13: N | C13: $
B14: Current Equity | C14: =-'Alt Before-Tax Cash Flow'!$B$29 -> 0
B15: BTCF Year 1 | C15: =+'Alt Before-Tax Cash Flow'!$F$9 -> -1.00500875e-09
B16: BTCF Year 2 | C16: =+'Alt Before-Tax Cash Flow'!$G$9 -> -1.00500875e-09
B17: BTCF Year 3 + NSP | C17: =SUM(D17,E17) -> -1.00500875e-09 | D17: =+'Alt Before-Tax Cash Flow'!$H$9 -> -1.00500875e-09 | E17: =+'Alt Before-Tax Cash Flow'!H17 -> -
B20: 4 Year T-BAR
B21: N | C21: $
B22: Current Equity | C22: =-'Alt Before-Tax Cash Flow'!$B$29 -> 0
B23: BTCF Year 1 | C23: =+'Alt Before-Tax Cash Flow'!$F$9 -> -1.00500875e-09
B24: BTCF Year 2 | C24: =+'Alt Before-Tax Cash Flow'!$G$9 -> -1.00500875e-09
B25: BTCF Year 3 | C25: =+'Alt Before-Tax Cash Flow'!$H$9 -> -1.00500875e-09
B26: BTCF Year 4 + NSP | C26: =SUM(D26,E26) -> -1.00500875e-09 | D26: =+'Alt Before-Tax Cash Flow'!$I$9 -> -1.00500875e-09 | E26: =+'Alt Before-Tax Cash Flow'!I17 -> -
B29: 5 Year T-BAR
B30: N | C30: $
B31: Current Equity | C31: =-'Alt Before-Tax Cash Flow'!$B$29 -> 0
B32: BTCF Year 1 | C32: =+'Alt Before-Tax Cash Flow'!$F$9 -> -1.00500875e-09
B33: BTCF Year 2 | C33: =+'Alt Before-Tax Cash Flow'!$G$9 -> -1.00500875e-09
B34: BTCF Year 3 | C34: =+'Alt Before-Tax Cash Flow'!$H$9 -> -1.00500875e-09
B35: BTCF Year 4 | C35: =+'Alt Before-Tax Cash Flow'!$I$9 -> -1.00500875e-09
B36: BTCF Year 5 + NSP | C36: =SUM(D36,E36) -> -1.00500875e-09 | D36: =+'Alt Before-Tax Cash Flow'!$J$9 -> -1.00500875e-09 | E36: =+'Alt Before-Tax Cash Flow'!J17 -> -

Sheet Alt Loan Amortization
A1: Alternative Loan Amortization
A2: This tab automatically calculates figures based on data entered in other tabs.
A4: Loan Amount | C4: =IF('Alt Owner Goals'!C4<=0,0.000001,+'Alt Before-Tax Cash Flow'!C4) -> 1e-06
A5: Loan Interest Rate | C5: =IF('Alt Owner Goals'!C5<=0,0.00001,+'Alt Owner Goals'!C5) -> 1e-05 | D5: Number of Months | E5: =+C6*12 -> 12000
A6: Loan Amortization Period | C6: =IF('Alt Owner Goals'!C7<=0,1000,+'Alt Owner Goals'!C7) -> 1000 | D6: Rate per Month | E6: =IF('Alt Owner Goals'!C14="Monthly",C5/12,((1+C5/2)^(2/12)-1)) -> 8.333333333e-07
A8: =IF(A10<=0,1,+A10-1) -> 0 | B8: =PMT($E$6,$E$5,$C$4,0,0) -> -8.375072917e-11 | C8: =IF(A8<=1,0,PPMT($E$6,$A8,$E$5,$C$4)) -> 0 | D8: =IF(A8<=1,0,IPMT($E$6,$A8,$E$5,$C$4)) -> 0 | F8: =IF(OR(SUM($E$5-$A10)=0,SUM($E$5-$A10)>0),-FV($E$6,$A8,$B8,$C$4,0),0) -> 1e-06
A9: Period | B9: Payment | C9: Principal Payment | D9: Interest Payment | F9: Loan Balance
A10: =IF(+'Alt Before-Tax Cash Flow'!C7<=0,1,'Alt Before-Tax Cash Flow'!C7) -> 1 | B10: =IF(E6=0,"-",IF(E5=0,"-",IF(C4=0,"-",PMT($E$6,$E$5,$C$4,0,0)))) -> -8.375072917e-11 | C10: =IF(OR(SUM($E$5-$A10)=0,SUM($E$5-$A10)>0),PPMT($E$6,$A10,$E$5,$C$4),0) -> -8.291739583e-11 | D10: =IF(OR(SUM($E$5-$A10)=0,SUM($E$5-$A10)>0),IPMT($E$6,$A10,$E$5,$C$4),0) -> -8.333333333e-13 | F10: =IF(OR(SUM($E$5-$A10)=0,SUM($E$5-$A10)>0),-FV($E$6,$A10,$B10,$C$4,0),0) -> 9.999170826e-07
A11: =+A10+1 -> 2 | B11: =PMT($E$6,$E$5,$C$4,0,0) -> -8.375072917e-11 | C11: -8.291746493e-11 | D11: =IF(OR(SUM($E$5-$A11)=0,SUM($E$5-$A11)>0),IPMT($E$6,$A11,$E$5,$C$4),0) -> -8.332642355e-13 | F11: =IF(OR(SUM($E$5-$A11)=0,SUM($E$5-$A11)>0),-FV($E$6,$A11,$B11,$C$4,0),0) -> 9.998341651e-07
A12: 3 | B12: -8.375072917e-11 | C12: -8.291753403e-11 | D12: -8.331951376e-13 | F12: 9.997512476e-07
A13: 4 | B13: -8.375072917e-11 | C13: -8.291760313e-11 | D13: -8.331260397e-13 | F13: 9.9966833e-07
A14: 5 | B14: -8.375072917e-11 | C14: -8.291767222e-11 | D14: -8.330569417e-13 | F14: 9.995854123e-07
A15: 6 | B15: -8.375072917e-11 | C15: -8.291774132e-11 | D15: -8.329878436e-13 | F15: 9.995024946e-07
A16: 7 | B16: -8.375072917e-11 | C16: -8.291781042e-11 | D16: -8.329187455e-13 | F16: 9.994195768e-07
A17: 8 | B17: -8.375072917e-11 | C17: -8.291787952e-11 | D17: -8.328496473e-13 | F17: 9.993366589e-07
A18: 9 | B18: -8.375072917e-11 | C18: -8.291794862e-11 | D18: -8.327805491e-13 | F18: 9.99253741e-07
A19: 10 | B19: -8.375072917e-11 | C19: -8.291801771e-11 | D19: -8.327114508e-13 | F19: 9.991708229e-07
A20: 11 | B20: -8.375072917e-11 | C20: -8.291808681e-11 | D20: -8.326423524e-13 | F20: 9.990879048e-07
A21: 12 | B21: -8.375072917e-11 | C21: -8.291815591e-11 | D21: -8.32573254e-13 | F21: 9.990049867e-07
B22: Period Total 1 | C22: =SUM(C10:C21) -> -9.950133105e-10 | D22: =SUM(D10:D21) -> -9.995439531e-12 | E22: Year of Ownership | F22: =+A21/12 -> 1
A23: =+A21+1 -> 13 | B23: =PMT($E$6,$E$5,$C$4,0,0) -> -8.375072917e-11 | C23: =IF(OR(SUM($E$5-$A23)=0,SUM($E$5-$A23)>0),PPMT($E$6,$A23,$E$5,$C$4),0) -> -8.291822501e-11 | D23: =IF(OR(SUM($E$5-$A23)=0,SUM($E$5-$A23)>0),IPMT($E$6,$A23,$E$5,$C$4),0) -> -8.325041556e-13 | F23: =IF(OR(SUM($E$5-$A23)=0,SUM($E$5-$A23)>0),-FV($E$6,$A23,$B23,$C$4,0),0) -> 9.989220685e-07
A24: =+A23+1 -> 14 | B24: -8.375072917e-11 | C24: -8.291829411e-11 | D24: -8.324350571e-13 | F24: 9.988391502e-07
A25: 15 | B25: -8.375072917e-11 | C25: -8.291836321e-11 | D25: -8.323659585e-13 | F25: 9.987562318e-07
A26: 16 | B26: -8.375072917e-11 | C26: -8.291843231e-11 | D26: -8.322968598e-13 | F26: 9.986733134e-07
A27: 17 | B27: -8.375072917e-11 | C27: -8.29185014e-11 | D27: -8.322277611e-13 | F27: 9.985903949e-07
A28: 18 | B28: -8.375072917e-11 | C28: -8.29185705e-11 | D28: -8.321586624e-13 | F28: 9.985074763e-07
A29: 19 | B29: -8.375072917e-11 | C29: -8.29186396e-11 | D29: -8.320895636e-13 | F29: 9.984245577e-07
A30: 20 | B30: -8.375072917e-11 | C30: -8.29187087e-11 | D30: -8.320204647e-13 | F30: 9.98341639e-07
A31: 21 | B31: -8.375072917e-11 | C31: -8.29187778e-11 | D31: -8.319513658e-13 | F31: 9.982587202e-07
A32: 22 | B32: -8.375072917e-11 | C32: -8.29188469e-11 | D32: -8.318822668e-13 | F32: 9.981758013e-07
A33: 23 | B33: -8.375072917e-11 | C33: -8.2918916e-11 | D33: -8.318131678e-13 | F33: 9.980928824e-07
A34: 24 | B34: -8.375072917e-11 | C34: -8.29189851e-11 | D34: -8.317440687e-13 | F34: 9.980099634e-07
B35: Period Total 2 | C35: =SUM(C23:C34) -> -9.950232606e-10 | D35: =SUM(D23:D34) -> -9.985489352e-12 | E35: Year of Ownership | F35: =+A34/12 -> 2
A36: =+A34+1 -> 25 | B36: =PMT($E$6,$E$5,$C$4,0,0) -> -8.375072917e-11 | C36: =IF(OR(SUM($E$5-$A36)=0,SUM($E$5-$A36)>0),PPMT($E$6,$A36,$E$5,$C$4),0) -> -8.29190542e-11 | D36: =IF(OR(SUM($E$5-$A36)=0,SUM($E$5-$A36)>0),IPMT($E$6,$A36,$E$5,$C$4),0) -> -8.316749695e-13 | F36: =IF(OR(SUM($E$5-$A36)=0,SUM($E$5-$A36)>0),-FV($E$6,$A36,$B36,$C$4,0),0) -> 9.979270444e-07
A37: =+A36+1 -> 26 | B37: -8.375072917e-11 | C37: -8.291912329e-11 | D37: -8.316058703e-13 | F37: 9.978441253e-07
A38: 27 | B38: -8.375072917e-11 | C38: -8.291919239e-11 | D38: -8.31536771e-13 | F38: 9.977612061e-07
A39: 28 | B39: -8.375072917e-11 | C39: -8.291926149e-11 | D39: -8.314676717e-13 | F39: 9.976782868e-07
A40: 29 | B40: -8.375072917e-11 | C40: -8.291933059e-11 | D40: -8.313985723e-13 | F40: 9.975953675e-07
A41: 30 | B41: -8.375072917e-11 | C41: -8.291939969e-11 | D41: -8.313294729e-13 | F41: 9.975124481e-07
A42: 31 | B42: -8.375072917e-11 | C42: -8.291946879e-11 | D42: -8.312603734e-13 | F42: 9.974295286e-07
A43: 32 | B43: -8.375072917e-11 | C43: -8.291953789e-11 | D43: -8.311912738e-13 | F43: 9.973466091e-07
A44: 33 | B44: -8.375072917e-11 | C44: -8.291960699e-11 | D44: -8.311221742e-13 | F44: 9.972636895e-07
A45: 34 | B45: -8.375072917e-11 | C45: -8.291967609e-11 | D45: -8.310530745e-13 | F45: 9.971807698e-07
A46: 35 | B46: -8.375072917e-11 | C46: -8.291974519e-11 | D46: -8.309839748e-13 | F46: 9.9709785e-07
A47: 36 | B47: -8.375072917e-11 | C47: -8.291981429e-11 | D47: -8.30914875e-13 | F47: 9.970149302e-07
B48: Period Total 3 | C48: =SUM(C36:C47) -> -9.950332109e-10 | D48: =SUM(D36:D47) -> -9.975539074e-12 | E48: Year of Ownership | F48: =+A47/12 -> 3
A49: =+A47+1 -> 37 | B49: =PMT($E$6,$E$5,$C$4,0,0) -> -8.375072917e-11 | C49: =IF(OR(SUM($E$5-$A49)=0,SUM($E$5-$A49)>0),PPMT($E$6,$A49,$E$5,$C$4),0) -> -8.291988339e-11 | D49: =IF(OR(SUM($E$5-$A49)=0,SUM($E$5-$A49)>0),IPMT($E$6,$A49,$E$5,$C$4),0) -> -8.308457752e-13 | F49: =IF(OR(SUM($E$5-$A49)=0,SUM($E$5-$A49)>0),-FV($E$6,$A49,$B49,$C$4,0),0) -> 9.969320103e-07
A50: =+A49+1 -> 38 | B50: -8.375072917e-11 | C50: -8.291995249e-11 | D50: -8.307766753e-13 | F50: 9.968490904e-07
A51: 39 | B51: -8.375072917e-11 | C51: -8.292002159e-11 | D51: -8.307075753e-13 | F51: 9.967661704e-07
A52: 40 | B52: -8.375072917e-11 | C52: -8.292009069e-11 | D52: -8.306384753e-13 | F52: 9.966832503e-07
A53: 41 | B53: -8.375072917e-11 | C53: -8.292015979e-11 | D53: -8.305693752e-13 | F53: 9.966003301e-07
A54: 42 | B54: -8.375072917e-11 | C54: -8.292022889e-11 | D54: -8.305002751e-13 | F54: 9.965174099e-07
A55: 43 | B55: -8.375072917e-11 | C55: -8.292029799e-11 | D55: -8.304311749e-13 | F55: 9.964344896e-07
A56: 44 | B56: -8.375072917e-11 | C56: -8.292036709e-11 | D56: -8.303620747e-13 | F56: 9.963515692e-07
A57: 45 | B57: -8.375072917e-11 | C57: -8.292043619e-11 | D57: -8.302929743e-13 | F57: 9.962686488e-07
A58: 46 | B58: -8.375072917e-11 | C58: -8.292050529e-11 | D58: -8.30223874e-13 | F58: 9.961857283e-07
A59: 47 | B59: -8.375072917e-11 | C59: -8.292057439e-11 | D59: -8.301547736e-13 | F59: 9.961028077e-07
A60: 48 | B60: -8.375072917e-11 | C60: -8.292064349e-11 | D60: -8.300856731e-13 | F60: 9.960198871e-07
B61: Period Total 4 | C61: =SUM(C49:C60) -> -9.950431613e-10 | D61: =SUM(D49:D60) -> -9.965588696e-12 | E61: Year of Ownership | F61: =+A60/12 -> 4
A62: =+A60+1 -> 49 | B62: =PMT($E$6,$E$5,$C$4,0,0) -> -8.375072917e-11 | C62: =IF(OR(SUM($E$5-$A62)=0,SUM($E$5-$A62)>0),PPMT($E$6,$A62,$E$5,$C$4),0) -> -8.292071259e-11 | D62: =IF(OR(SUM($E$5-$A62)=0,SUM($E$5-$A62)>0),IPMT($E$6,$A62,$E$5,$C$4),0) -> -8.300165725e-13 | F62: =IF(OR(SUM($E$5-$A62)=0,SUM($E$5-$A62)>0),-FV($E$6,$A62,$B62,$C$4,0),0) -> 9.959369663e-07
A63: =+A62+1 -> 50 | B63: -8.375072917e-11 | C63: -8.292078169e-11 | D63: -8.29947472e-13 | F63: 9.958540456e-07
A64: 51 | B64: -8.375072917e-11 | C64: -8.292085079e-11 | D64: -8.298783713e-13 | F64: 9.957711247e-07
A65: 52 | B65: -8.375072917e-11 | C65: -8.292091989e-11 | D65: -8.298092706e-13 | F65: 9.956882038e-07
A66: 53 | B66: -8.375072917e-11 | C66: -8.2920989e-11 | D66: -8.297401698e-13 | F66: 9.956052828e-07
A67: 54 | B67: -8.375072917e-11 | C67: -8.29210581e-11 | D67: -8.29671069e-13 | F67: 9.955223617e-07
A68: 55 | B68: -8.375072917e-11 | C68: -8.29211272e-11 | D68: -8.296019681e-13 | F68: 9.954394406e-07
A69: 56 | B69: -8.375072917e-11 | C69: -8.29211963e-11 | D69: -8.295328672e-13 | F69: 9.953565194e-07
A70: 57 | B70: -8.375072917e-11 | C70: -8.29212654e-11 | D70: -8.294637662e-13 | F70: 9.952735982e-07
A71: 58 | B71: -8.375072917e-11 | C71: -8.29213345e-11 | D71: -8.293946651e-13 | F71: 9.951906768e-07
A72: 59 | B72: -8.375072917e-11 | C72: -8.29214036e-11 | D72: -8.29325564e-13 | F72: 9.951077554e-07
A73: 60 | B73: -8.375072917e-11 | C73: -8.29214727e-11 | D73: -8.292564628e-13 | F73: 9.950248339e-07
B74: Period Total 5 | C74: =SUM(C62:C73) -> -9.950531118e-10 | D74: =SUM(D62:D73) -> -9.955638219e-12 | E74: Year of Ownership | F74: =+A73/12 -> 5

Sheet Calculator
A1: Basic Math and Time Value of Money (TVM) Calculations
A2: Enter data in the yellow cells only. Press BOLD function button to perform TVM calculation.
A3: Please note: The Mac OS does not support visual basic macros. Therefore, the buttons on this tab will not function in the Mac environment.
B7: N | D7: Interest (I/YR) | F7: Present Value (PV) | H7: Payment (PMT) | J7: Future Value (FV)
B11: P/YR | D11: Beginning or End | H11: N | J11: $
H12: 0 (Present Value) | J12: =+F8 -> 0
B13: 12 | D13: End | H13: 1 (Payment) | J13: =+H8 -> 0
H20: =CONCATENATE((ROUND(B8*B13,0))," (FV)") -> 0 (FV) | J20: =+J8 -> 0
D24: Basic Math Functions
D25: Add | G25: + | I25: = | J25: =SUM(F25,H25) -> 0
D26: Subtract | G26: - | I26: = | J26: =SUM(F26,-H26) -> 0
D27: Multiply | G27: x | I27: = | J27: =+F27*H27 -> 0
D28: Divide | G28: ÷ | I28: = | J28: =IF(H28<=0,0,(+F28/H28)) -> 0
D30: Add % | G30: + | I30: = | J30: =+F30*(1+H30) -> 0
D31: Subtract % | G31: - | I31: = | J31: =+F31-(F31*H31) -> 0
D32: Multiply % | G32: x | I32: = | J32: =+F32*H32 -> 0
D33: Divide % | G33: ÷ | I33: = | J33: =IF(H33<=0,0,(+F33/H33)) -> 0
D34: Change | G34: ÷ | I34: = | J34: =IF(F34<=0,0,(H34/F34)-1) -> 0
B55: COMPUTATIONS FOR CALCULATOR - PLEASE - DO NOT ALTER
B61: Note: Computations below continually compute respective result and post above when button is pressed.
D63: End | E63: 0
D64: Beg | E64: 1
B67: =ROUND(NPER((D8/B13),H8,F8,J8,IF(D13=D63,E63,E64))/B13,2) ->  | D67: =ROUND((RATE((B8*B13),H8,F8,J8,IF(D13=D63,E63,E64))*B13),4) ->  | F67: =ROUND(PV(D8/B13,B8*B13,H8,J8,IF(D13=D63,E63,E64)),2) -> 0 | H67: =ROUND(PMT(D8/B13,B8*B13,F8,J8,IF(D13=D63,E63,E64)),2) ->  | J67: =ROUND(FV(D8/B13,B8*B13,H8,F8,IF(D13=D63,E63,E64)),2) -> 0
B69: N | D69: Rate | F69: Present Value | H69: Payment | J69: Future Value

Sheet Blank Sheet for Calculations
